Workbook

Sheet At a glance.
B2: EDUCATION
B4: Thuthukani Ndebele
B6: At a glance
B7: Finance
B8: Public expenditure on education as a proportion of total government spending (2023/24) | C8: 0.206
B9: Public expenditure on education as a proportion of GDP (2023/24) | C9: 0.068
B10: Schools | C10: 2023
B11: Pre-primary enrolment (public and independent) | C11: 818 404 (6.1%)
B12: Primary enrolment (public and independent) | C12: 7 514 384 (55.9%)
B13: Secondary enrolment (public and independent) | C13: 5 105 608 (38.0%)
B14: School output | C14: 2023
B15: National Senior Certificate (NSC/Matric) candidates | C15: 691160
B16: NSC passes (82.9%) | C16: 572839
B17: Bachelor's passes (40.9%) | C17: 282894
B18: Number of candidates who achieved more than 50% for mathematics (27.5%) | C18: 72126
B19: Higher education | C19: 2022
B20: Public university enrolment | C20: 1077768
B21: Undergraduate degrees awarded (Black) | C21: 0.725
B22: Undergraduate degrees awarded (Coloured) | C22: 0.068
B23: Undergraduate degrees awarded (Indian/Asian) | C23: 0.049
B24: Undergraduate degrees awarded (White) | C24: 0.146
B25: Total undergraduate degrees | C25: 110053
B26: Total science, engineering and technology (SET) awards | C26: 66 000 (29.2%)
B27: Proportion of people aged 20 and older with | C27: 2023
B28: No schooling | C28: 0.03
B29: Grade 9 | C29: 0.057
B30: Grade 12 | C30: 0.345
B31: Degree/higher | C31: 0.076
B32: Work and education | C32: 2024
B33: Employment rate among people who have no education | C33: 0.25
B34: Employment rate among people who have completed primary education | C34: 0.308
B35: Employment rate among people who have completed secondary education | C35: 0.438
B36: Employment rate among people who have completed tertiary education | C36: 0.715
B37: Proportion of people aged 15-34 not in employment, education or training (NEET) | C37: 0.442

Sheet FINANCE

Sheet State education exp.23-27
B2: FINANCE
A4: Overall state spending on education
A6: All state spending on educationa, 2023/24-2026/27
B8: —2023/24— | D8: —2024/25— | F8: —2025/26— | H8: —2026/27—
A9: Allocation | B9: Rbn | C9: Proportionb | D9: Rbn | E9: Proportionb | F9: Rbn | G9: Proportionb | H9: Rbn | I9: Proportionb
A10: Basic education | B10: 313.736 | C10: =B10/B12 -> 0.687224824 | D10: 324.491 | E10: =D10/D12 -> 0.692665652 | F10: 341.399 | G10: =F10/F12 -> 0.700207971 | H10: 360.039 | I10: =H10/H12 -> 0.7007949268
A11: Post-school education and training | B11: 142.79 | C11: =B11/B12 -> 0.312775176 | D11: 143.976 | E11: =D11/D12 -> 0.307334348 | F11: 146.169 | G11: =F11/F12 -> 0.299792029 | H11: 153.719 | I11: =H11/H12 -> 0.2992050732
A12: Totalc | B12: 456.526 | C12: 1 | D12: =SUM(D10:D11) -> 468.467 | E12: 1 | F12: =SUM(F10:F11) -> 487.568 | G12: 1 | H12: =SUM(H10:H11) -> 513.758 | I12: 1
A13: Source: National Treasury, Budget Review 2023, 22 February 2023, Table 5.6, p61
A14: a The main budget and spending by provinces, public entities and social security funds financed from own revenue.
A15: b CRA calculations.
A16: c Totals may not add up, owing to rounding.

Sheet Pub. education spen.96-24
B2: Public education spending as a proportion of total government spending and the bachelor’s pass rate, 1996/97-2023/24
C4: Year | D4: Proportiona | E4: Bachelor’s pass rateb
C5: 1996/97 | D5: 0.22 | E5: 0.13
C6: 1997/98 | D6: 0.214 | E6: 0.13
C7: 1998/99 | D7: 0.206 | E7: 0.12
C8: 1999/00 | D8: 0.203 | E8: 0.14
C9: 2000/01 | D9: 0.203 | E9: 0.15
C10: 2001/02 | D10: 0.205 | E10: 0.17
C11: 2002/03 | D11: 0.196 | E11: 0.19
C12: 2003/04 | D12: 0.195 | E12: 0.18
C13: 2004/05 | D13: 0.184 | E13: 0.17
C14: 2005/06 | D14: 0.181 | E14: 0.16
C15: 2006/07 | D15: 0.18 | E15: 0.15
C16: 2008/09 | D16: 0.179 | E16: 0.2
C17: 2009/10 | D17: 0.177 | E17: 0.2
C18: 2010/11 | D18: 0.182 | E18: 0.24
C19: 2011/12 | D19: 0.194 | E19: 0.24
C20: 2012/13 | D20: 0.196 | E20: 0.27
C21: 2013/14 | D21: 0.202 | E21: 0.31
C22: 2014/15 | D22: 0.203 | E22: 0.28
C23: 2015/16 | D23: 0.197 | E23: 0.258
C24: 2016/17 | D24: 0.202 | E24: 0.266
C25: 2017/18 | D25: 0.201 | E25: 0.287
C26: 2018/19 | D26: 0.207 | E26: 0.336
C27: 2019/20 | D27: 0.2054 | E27: 0.369
C28: 2020/21 | D28: 0.1969 | E28: 0.364
C29: 2021/22 | D29: 0.203 | E29: 0.364
C30: 2022/23 | D30: 0.2 | E30: 0.364
C31: 2023/24 | D31: 0.206 | E31: 0.4093032004
B32: Source: Department of Basic Education (DBE), Macro Indicator Trends in Schooling: Summary Report 2011, 2011, p63; National Treasury, Budget Review 2010, 17 February 2010, px; Budget Review 2011, 23 February 2011, px; Budget Review 2012, 22 February 2012, px; Budget Review 2013, 27 February 2013, px; Budget Review 2014, 26 February 2014, pxii; Budget Review 2015, 25 February 2015, pv; Budget Review 2016, 24 February 2016, pv; Budget Review 2018, 21 February 2018, p57; Budget Review 2019, 20 February 2019, p54; Budget Review 2020, 26 February 2020, p53; Budget Review 2022, 23 February 2022, p56; Budget Review 2023, 22 February 2023, p58; Budget Review 2024, 21 February 2024, p50
B33: a CRA calculations.
B34: b Enables a person to study for a bachelor's degree.

Sheet School spending

Sheet Basic educ.expenditure.23-27
A2: Basic education expenditure, 2023/24-2026/27
B4: —2023/24— | D4: —2024/25— | F4: —2025/26— | H4: —2026/27—
A5: Allocation | B5: Rbn | C5: Proportione | D5: Rbn | E5: Proportione | F5: Rbn | G5: Proportione | H5: Rbn | I5: Proportione
A6: Compensation of employeesa | B6: 235.342 | C6: =B6/total2 -> 0.7252651075 | D6: 241.074 | E6: =D6/total3 -> 0.706135636 | F6: 252.552 | G6: =F6/total4 -> 0.7014573421 | H6: 264.032 | I6: =H6/total4 -> 0.7333427768
A7: Goods and servicesb | B7: 15.426 | C7: 0.04753906888 | D7: 16.337 | E7: 0.04785309857 | F7: 17.14 | G7: 0.0476059538 | H7: 17.916 | I7: 0.04976127586
A8: Transfers and subsidiesc | B8: 28.571 | C8: 0.08804866699 | D8: 26.108 | E8: 0.07647356905 | F8: 27.401 | G8: =F8/total4 -> 0.07610564411 | H8: 28.553 | I8: 0.07930529748
A9: School infrastructure | B9: 13.794 | C9: 0.04250965358 | D9: 14.953 | E9: 0.04379919098 | F9: 15.63 | G9: 0.0434119637 | H9: 15.846 | I9: =H9/total4 -> 0.04401189871
A10: Early childhood developmentd | B10: 9.638 | C10: 0.02970190236 | D10: 10.54 | E10: 0.03087296682 | F10: 11.224 | G10: =F10/total4 -> 0.03117440055 | H10: 11.735 | I10: 0.03259369124
A11: Totald | B11: 313.736 | C11: 1 | D11: 324.491 | E11: 1 | F11: 341.399 | G11: 1 | H11: 360.039 | I11: 1
A12: Source: National Treasury, Budget Review 2024, 21 February 2024, Table 5.5, p52
A13: a Includes provincial employees.
A14: b Includes workbooks, the national school nutrition programme and pupil and teacher support material.
A15: c Includes subsidies for learning and teaching support material (LTSM) and property payments for schools that manage their own budgets.
A16: d Totals should add up vertically but may not, owing to rounding.
A17: e CRA calculations.

Sheet Pupils paying school fees
B3: Public school pupils who paid/did not pay school fees, 2009-22
B5: Year | C5: No fees | D5: R1-R1 000 | E5: R1 000-R12 000 | F5: R12 000+
B6: 2009 | C6: 0.501 | D6: 0.419 | E6: 0.076 | F6: 0.005
B7: 2010 | C7: 0.609 | D7: 0.297 | E7: 0.086 | F7: 0.008
B8: 2011 | C8: 0.631 | D8: 0.271 | E8: 0.089 | F8: 0.009
B9: 2012 | C9: 0.66 | D9: 0.226 | E9: 0.099 | F9: 0.016
B10: 2013 | C10: 0.661 | D10: 0.218 | E10: 0.102 | F10: 0.019
B11: 2014 | C11: 0.694 | D11: 0.18 | E11: 0.105 | F11: 0.022
B12: 2015 | C12: 0.696 | D12: 0.187 | E12: 0.096 | F12: 0.022
B13: 2016 | C13: 0.704 | D13: 0.174 | E13: 0.099 | F13: 0.024
B14: 2017 | C14: 0.702 | D14: 0.171 | E14: 0.1 | F14: 0.028
B15: 2018 | C15: 0.711 | D15: 0.159 | E15: 0.101 | F15: 0.029
B16: 2019 | C16: 0.712 | D16: 0.16 | E16: 0.095 | F16: 0.033
B17: 2020 | C17: 0.741 | D17: 0.147 | E17: 0.085 | F17: 0.026
B18: 2021 | C18: 0.755 | D18: 0.136 | E18: 0.079 | F18: 0.03
B19: 2022 | C19: 0.732 | D19: 0.14 | E19: 0.091 | F19: 0.037
B20: Source: DBE, General Household Survey: Focus on schooling 2022, March 2024, Figure 25, p29

Sheet Post-school.educ.exp.24-27
A2: Post-school education expenditure, 2023/24-2026/27
B4: —2023/24— | D4: —2024/25— | F4: —2025/26— | H4: —2026/27—
A5: Allocation | B5: Rbn | C5: Proportionb | D5: Rbn | E5: Proportionb | F5: Rbn | G5: Proportionb | H5: Rbn | I5: Proportionb
A6: University subsidies | B6: 43.959 | C6: =(B6/B11) -> 0.3078576931 | D6: 44.499 | E6: =(D6/D11) -> 0.3090723454 | F6: 47.003 | G6: =(F6/F11) -> 0.3215661324 | H6: 49.017 | I6: =(H6/H11) -> 0.3188740494
A7: National Student Financial Aid Scheme (NSFAS) | B7: 58.792 | C7: =(B7/B11) -> 0.4117375166 | D7: 53.555 | E7: =(D7/D11) -> 0.3719717175 | F7: 55.788 | G7: =(F7/F11) -> 0.3816677955 | H7: 58.687 | I7: =(H7/H11) -> 0.381781042
A8: Technical Vocational Education and Training (TVET) | B8: 12.658 | C8: =(B8/B11) -> 0.0886476644 | D8: 13.245 | E8: =(D8/D11) -> 0.09199449908 | F8: 13.678 | G8: =(F8/F11) -> 0.09357661337 | H8: 14.298 | I8: =(H8/H11) -> 0.09301387597
A9: Community Education and Training (CET) | B9: 2.678 | C9: =(B9/B11) -> 0.01875481476 | D9: 3.065 | E9: =(D9/D11) -> 0.02128827027 | F9: 3.257 | G9: =(F9/F11) -> 0.02228242651 | H9: 3.24 | I9: =(H9/H11) -> 0.02107742049
A10: Skills development levy institutions | B10: 26.157 | C10: =(B10/B11) -> 0.183185097 | D10: 28.572 | E10: =(D10/D11) -> 0.1984497416 | F10: 27.349 | G10: =(F10/F11) -> 0.187105337 | H10: 29.325 | I10: =(H10/H11) -> 0.1907701715
A11: Totala | B11: 142.79 | C11: 1 | D11: 143.976 | E11: 1 | F11: 146.169 | G11: 1 | H11: 153.719 | I11: 1
A12: Source: National Treasury, Budget Review 2024, 21 February 2024, Table 5.5, p52
A13: a Totals should add up vertically but may not, owing to rounding.
A14: b CRA calculations.

Sheet Sources of income.23
A2: Sources of income by university, 2023
B4: —Grants— | D4: —Tuition— | F4: —Othera— | H4: Totalb
A5: Institution | B5: Rm | C5: Proportion of total incomeb | D5: Rm | E5: Proportion of total incomeb | F5: Rm | G5: Proportion of total incomeb
A6: Cape Peninsula University of Technology | B6: 1662 | C6: =(B6/H6) -> 0.5071711932 | D6: 1430 | E6: =(D6/H6) -> 0.436374733 | F6: 185 | G6: =(F6/H6) -> 0.05645407385 | H6: =SUM(B6,D6,F6) -> 3277
A7: Central University of Technology | B7: 913 | C7: =(B7/H7) -> 0.6502849003 | D7: 394 | E7: =(D7/H7) -> 0.2806267806 | F7: 97 | G7: =(F7/H7) -> 0.06908831909 | H7: =SUM(B7,D7,F7) -> 1404
A8: Durban University of Technology | B8: 1598 | C8: 0.4328277356 | D8: 1694 | E8: 0.4588299025 | F8: 400 | G8: 0.1083423619 | H8: 3692
A9: Mangosuthu University of Technology | B9: 708 | C9: 0.4679444812 | D9: 686 | E9: 0.4534038334 | F9: 119 | G9: 0.07865168539 | H9: 1513
A10: Nelson Mandela University | B10: 1332 | C10: 0.3686686964 | D10: 1369 | E10: 0.3789094935 | F10: 912 | G10: 0.2524218101 | H10: 3613
A11: North West University | B11: 2536 | C11: 0.4517278233 | D11: 1783 | E11: 0.31759886 | F11: 1295 | G11: 0.2306733167 | H11: 5614
A12: Rhodes University | B12: 764 | C12: 0.4395857307 | D12: 594 | E12: 0.3417721519 | F12: 380 | G12: 0.2186421174 | H12: 1738
A13: Sefako Makgatho University | B13: 1264 | C13: 0.6617801047 | D13: 434 | E13: 0.2272251309 | F13: 212 | G13: 0.1109947644 | H13: 1910
A14: Sol Plaatje University | B14: 721 | C14: 0.6952748312 | D14: 231 | E14: 0.2227579556 | F14: 85 | G14: 0.08196721311 | H14: 1037
A15: Stellenbosch University | B15: 2604 | C15: 0.3815943728 | D15: 2016 | E15: 0.2954279015 | F15: 2204 | G15: 0.3229777257 | H15: 6824
A16: Tshwane University of Technology | B16: 2698 | C16: 0.5072382027 | D16: 2016 | E16: 0.3790186125 | F16: 605 | G16: 0.1137431848 | H16: 5319
A17: University of Cape Town | B17: 2206 | C17: 0.2846818944 | D17: 2205 | E17: 0.2845528455 | F17: 3338 | G17: 0.43076526 | H17: 7749
A18: University of Fort Hare | B18: 961 | C18: 0.4733990148 | D18: 879 | E18: 0.4330049261 | F18: 190 | G18: 0.09359605911 | H18: 2030
A19: University of the Free State | B19: 1935 | C19: 0.4200130237 | D19: 1831 | E19: 0.3974386803 | F19: 841 | G19: 0.1825482961 | H19: 4607
A20: University of Johannesburg | B20: 2883 | C20: 0.4142836614 | D20: 2493 | E20: 0.3582411266 | F20: 1583 | G20: 0.227475212 | H20: 6959
A21: University of KwaZulu-Natal | B21: 2871 | C21: 0.4583333333 | D21: 2203 | E21: 0.3516922095 | F21: 1190 | G21: 0.1899744572 | H21: 6264
A22: University of Limpopo | B22: 1489 | C22: 0.5444241316 | D22: 858 | E22: 0.3137111517 | F22: 388 | G22: 0.1418647166 | H22: 2735
A23: University of Mpumalanga | B23: 975 | C23: 0.5937880633 | D23: 348 | E23: 0.2119366626 | F23: 319 | G23: 0.1942752741 | H23: =SUM(B23,D23,F23) -> 1642
A24: University of Pretoria | B24: 3476 | C24: 0.4100507255 | D24: 2771 | E24: 0.326884511 | F24: 2230 | G24: 0.2630647635 | H24: 8477
A25: University of South Africa | B25: 5234 | C25: 0.4416504936 | D25: 5605 | E25: =(D25/H25) -> 0.4729558687 | F25: 1012 | G25: 0.08539363767 | H25: 11851
A26: University of Venda | B26: 1252 | C26: 0.5858680393 | D26: 682 | E26: 0.3191389799 | F26: 203 | G26: 0.09499298081 | H26: 2137
A27: University of the Western Cape | B27: 1871 | C27: 0.533048433 | D27: 1084 | E27: 0.3088319088 | F27: 555 | G27: 0.1581196581 | H27: 3510
A28: University of the Witwatersrand | B28: 2811 | C28: 0.3900374636 | D28: 2353 | E28: 0.3264881365 | F28: 2043 | G28: =(F28/H28) -> 0.2834743999 | H28: 7207
A29: University of Zululand | B29: 1057 | C29: 0.6333133613 | D29: 517 | E29: 0.3097663271 | F29: 95 | G29: 0.05692031156 | H29: 1669
A30: Vaal University of Technology | B30: 991 | C30: 0.54420648 | D30: 658 | E30: 0.3613399231 | F30: 172 | G30: 0.09445359692 | H30: 1821
A31: Walter Sisulu University | B31: 1736 | C31: 0.5512861226 | D31: 1342 | E31: 0.4261670372 | F31: 71 | G31: 0.02254684027 | H31: 3149
A32: Totalc | B32: 48315 | C32: 0.4496217091 | D32: 38753 | E32: 0.3606372782 | F32: 20389 | G32: 0.1897410127 | H32: 107457
A33: Source: Statistics South Africa (Stats SA), Financial statistics of higher education institutions 2023, Statistical release P9103.1, 31 October 2024, Annexure B, p9 | J33: `
A34: a Includes interest, dividends, sales of goods and services and transfers not classified elsewhere.
A35: b CRA calculations.
A36: c Figures should add up vertically and horizontally but may not, owing to rounding.

Sheet NSFAS+FUNZA
A2: Detailed state budget according to universities

Sheet Pub.spend.on.education.SC.21
B2: International comparisons
B4: Public spending on education as a proportion of GDP and of total government spending, selected countries, 2021
B6: Country | C6: Proportion of GDP | D6: Proportion of total government spending
B7: Australia | C7: 0.057 | D7: 0.131
B8: Botswana | C8: N/A | D8: N/A
B9: Brazil | C9: N/A | D9: N/A
B10: Chile | C10: 0.04 | D10: N/A
B11: China | C11: 0.033 | D11: 0.109
B12: Denmark | C12: 0.059 | D12: 0.119
B13: Egypt | C13: N/A | D13: N/A
B14: France | C14: 0.052 | D14: 0.089
B15: Germany | C15: 0.045 | D15: 0.091
B16: Ghana | C16: 0.034 | D16: 0.122
B17: Greece | C17: 0.041 | D17: 0.071
B18: Hong Kong | C18: 0.04 | D18: 0.149
B19: India | C19: 0.046 | D19: 0.146
B20: Indonesia | C20: 0.03 | D20: 0.161
B21: Ireland | C21: 0.029 | D21: 0.12
B22: Israel | C22: 0.066 | D22: 0.184
B23: Italy | C23: 0.04 | D23: 0.074
B24: Japan | C24: 0.035 | D24: 0.074
B25: Kazakhstan | C25: 0.044 | D25: 0.241
B26: Lithuania | C26: 0.048 | D26: 0.127
B27: Mexico | C27: N/A | D27: N/A
B28: Mozambique | C28: 0.07 | D28: 0.188
B29: Nigeria | C29: N/A | D29: N/A
B30: Pakistan | C30: 0.017 | D30: 0.078
B31: Philippines | C31: 0.039 | D31: 0.167
B32: Poland | C32: 0.049 | D32: 0.112
B33: Russia | C33: N/A | D33: N/A
B34: Saudi Arabia | C34: N/A | D34: N/A
B35: South Africa | C35: 0.066 | D35: 0.185
B36: Spain | C36: 0.046 | D36: 0.092
B37: Switzerland | C37: 0.056 | D37: 0.146
B38: Turkey | C38: 0.028 | D38: 0.088
B39: Uganda | C39: 0.026 | D39: 0.082
B40: United Kingdom | C40: 0.054 | D40: 0.112
B41: United States | C41: 0.056 | D41: N/A
B42: Venezuela | C42: N/A | D42: N/A
B43: Source: World Bank, wdi.worldbank.org/tables, World Development Indicators 2021, Table 2.7: Education Inputs, accessed 17 October 2024
B44: N/A — Not available.

Sheet NQF

Sheet NationalQualificationsFramewrk
A2: QUALIFICATION PROFILE OF THE POPULATION
A4: National Qualifications Framework (NQF)
A6: Levels of education in South Africa
A7: Band | B7: School grades | C7: NQF level | D7: Qualification
A8: Higher Education and Training | B8: Not applicable | C8: 10 | D8: Doctoral Degree
C9: 9 | D9: Master's Degree
C10: 8 | D10: Bachelor's Honours Degree
D11: Postgraduate Diploma
C12: 7 | D12: Bachelor's Degree
D13: Advanced Diploma
C14: 6 | D14: Diploma
D15: Advanced Certificate
C16: 5 | D16: Higher Certificate
D17: Nationally Accredited Technical Education Diploma — NATED (N4-6)
B18: 12 | D18: National Certificate
A19: Further Education and Training | C19: 4 | D19: National Certificate (Vocational)/NC(V) (Level 4)
D20: Nationally Accredited Technical Education Diploma — NATED (N3)
B21: 11 | C21: 3 | D21: Intermediate Certificate
D22: National Certificate (Vocational)/NC(V) (Level 3)
D23: Nationally Accredited Technical Education Diploma — NATED (N2)
B24: 10 | C24: 2 | D24: Elementary Certificate
D25: National Certificate (Vocational)/NC(V) (Level 2)
D26: Nationally Accredited Technical Education Diploma — NATED (N1)
B27: 9 | C27: 1 | D27: General Certificate
A28: General Education and Training | D28: Adult Education and Training (AET) Level 4
B29: 8
B30: 7 | D30: Adult Education and Training (AET) Level 4
B31: 6
B32: 5 | D32: Adult Education and Training (AET) Level 2
B33: 4
B34: 3 | D34: Adult Education and Training (AET) Level 1
B35: 2
B36: 1
B37: Reception (R)
A38: Source:South African Qualifications Authority (Saqa), Publication of the General and Further Education and Training Qualifications Sub-Framework and Higher Education Qualifications Sub Framework of the National Qualifications Framework, Government Gazette, 30 August 2013, pp7 and 23
A39: According to Section 4 of the National Qualifications Framework Act of 2008, the National Qualifications Framework (NQF) is a comprehensive system approved by the minister for the classification, registration, publication and articulation of quality-assured national qualifications. Section 3 (1) of the South African Schools Act of 1996 states that it is compulsory for children aged between 7 and 15 to attend school, or reach the end of Grade 9, whichever comes first.

Sheet Level of education

Sheet Noschoolingadults95-23#%
A2: Level of education
A4: National statistics
A6: People with no school education
A8: People aged 20 and older with no schooling by race, 1995-2023
A10: Race | B10: People aged 20+ | C10: 1995 | D10: 2002 | E10: 2010 | F10: 2023 | G10: Change 1995-2023
A11: Black | B11: Number with no schooling | C11: 2640000 | D11: 2812000 | E11: 1913000 | F11: 1127000 | G11: =(F11-C11) -> -1513000
B12: Total aged 20+ | C12: 15676000 | D12: 19783000 | E12: 22076000 | F12: 31348000 | G12: =(F12-C12) -> 15672000
B13: Proportion with no schooling | C13: =(C11/C12) -> 0.1684103088 | D13: =(D11/D12) -> 0.1421422433 | E13: =(E11/E12) -> 0.08665519116 | F13: =(F11/F12) -> 0.03595125686 | G13: —
A14: Coloured | B14: Number with no schooling | C14: 182000 | D14: 171000 | E14: 88000 | F14: 43000 | G14: =(F14-C14) -> -139000
B15: Total aged 20+ | C15: 2079000 | D15: 2332000 | E15: 2807000 | F15: 3443000 | G15: =(F15-C15) -> 1364000
B16: Proportion with no schooling | C16: =(C14/C15) -> 0.08754208754 | D16: =(D14/D15) -> 0.07332761578 | E16: =(E14/E15) -> 0.03135019594 | F16: =(F14/F15) -> 0.01248910834 | G16: —
A17: Indian/Asian | B17: Number with no schooling | C17: 34000 | D17: 27000 | E17: 16000 | F17: 14000 | G17: =(F17-C17) -> -20000
B18: Total aged 20+ | C18: 644000 | D18: 743000 | E18: 900000 | F18: 1154000 | G18: =(F18-C18) -> 510000
B19: Proportion with no schooling | C19: =(C17/C18) -> 0.05279503106 | D19: =(D17/D18) -> 0.03633916555 | E19: =(E17/E18) -> 0.01777777778 | F19: =(F17/F18) -> 0.01213171577 | G19: —
A20: White | B20: Number with no schooling | C20: 8000 | D20: 5000 | E20: 10000 | F20: 7000 | G20: =(F20-C20) -> -1000
B21: Total aged 20+ | C21: 3700000 | D21: 3069000 | E21: 3338000 | F21: 3406000 | G21: =(F21-C21) -> -294000
B22: Proportion with no schooling | C22: =(C20/C21) -> 0.002162162162 | D22: =(D20/D21) -> 0.001629195178 | E22: =(E20/E21) -> 0.002995805872 | F22: =(F20/F21) -> 0.002055196712 | G22: —
A23: Totala | B23: Number with no schooling | C23: 2864000 | D23: 3016000 | E23: 2026000 | F23: 1190000 | G23: =(F23-C23) -> -1674000
B24: Total aged 20+ | C24: 22100000 | D24: 25954000 | E24: 29121000 | F24: 39351000 | G24: =(F24-C24) -> 17251000
B25: Proportion with no schooling | C25: =(C23/C24) -> 0.1295927602 | D25: =(D23/D24) -> 0.1162055945 | E25: =(E23/E24) -> 0.06957178668 | F25: =(F23/F24) -> 0.03024065462 | G25: —
A26: Source: Statistics South Africa (Stats SA), October Household Survey 1995, Statistical release P0317, 27 November 1996, Table 8.1, p75; General Household Survey 2002, Statistical release P0318, 15 December 2003, p4; General Household Survey 2010 (Revised version), Statistical release P0318, 3 August 2011, Table 2.2, p53; General Household Survey 2023, Statistical release P0318, 23 May 2024, Table 2.2, pp88-89
A27: a Totals should add up vertically but may not, owing to rounding/the inclusion of unspecified values.

Sheet Grade9adults95-23%
A2: People with school education
A4: People aged 20 and older with grade 9a by race, 1995-2023
A6: Race | B6: People aged 20+ | C6: 1995 | D6: 2002 | E6: 2010 | F6: 2023 | G6: Change 1995-2023
A7: Black | B7: Number with grade 9 | C7: 1056000 | D7: 1322000 | E7: 1656000 | F7: 1892000 | G7: =(F7-C7) -> 836000
B8: Total aged 20+ | C8: 15676000 | D8: 19783000 | E8: 22076000 | F8: 31348000 | G8: =(F8-C8) -> 15672000
B9: Proportion with grade 9 | C9: =(C7/C8) -> 0.0673641235 | D9: =(D7/D8) -> 0.06682505181 | E9: =(E7/E8) -> 0.07501358942 | F9: =(F7/F8) -> 0.06035472757 | G9: —
A10: Coloured | B10: Number with grade 9 | C10: 186000 | D10: 202000 | E10: 257000 | F10: 274000 | G10: =(F10-C10) -> 88000
B11: Total aged 20+ | C11: 2079000 | D11: 2332000 | E11: 2807000 | F11: 3443000 | G11: =(F11-C11) -> 1364000
B12: Proportion with grade 9 | C12: =(C10/C11) -> 0.08946608947 | D12: =(D10/D11) -> 0.08662092624 | E12: =(E10/E11) -> 0.09155682223 | F12: =(F10/F11) -> 0.07958176009 | G12: —
A13: Indian/Asian | B13: Number with grade 9 | C13: 36000 | D13: 42000 | E13: 39000 | F13: 35000 | G13: =(F13-C13) -> -1000
B14: Total aged 20+ | C14: 644000 | D14: 743000 | E14: 900000 | F14: 1154000 | G14: =(F14-C14) -> 510000
B15: Proportion with grade 9 | C15: =(C13/C14) -> 0.05590062112 | D15: =(D13/D14) -> 0.05652759085 | E15: =(E13/E14) -> 0.04333333333 | F15: =(F13/F14) -> 0.03032928943 | G15: —
A16: White | B16: Number with grade 9 | C16: 104000 | D16: 77000 | E16: 75000 | F16: 29000 | G16: =(F16-C16) -> -75000
B17: Total aged 20+ | C17: 3700000 | D17: 3069000 | E17: 3338000 | F17: 3406000 | G17: =(F17-C17) -> -294000
B18: Proportion with grade 9 | C18: =(C16/C17) -> 0.02810810811 | D18: =(D16/D17) -> 0.02508960573 | E18: =(E16/E17) -> 0.02246854404 | F18: =(F16/F17) -> 0.008514386377 | G18: —
A19: Totalb | B19: Number with grade 9 | C19: 1382000 | D19: 1645000 | E19: 2027000 | F19: 2231000 | G19: =(F19-C19) -> 849000
B20: Total aged 20+ | C20: 22100000 | D20: 25954000 | E20: 29121000 | F20: 39351000 | G20: =(F20-C20) -> 17251000
B21: Proportion with grade 9 | C21: =(C19/C20) -> 0.06253393665 | D21: =(D19/D20) -> 0.06338136703 | E21: =(E19/E20) -> 0.06960612616 | F21: =(F19/F20) -> 0.05669487434 | G21: —
A22: Source:Stats SA, October Household Survey 1995, Statistical release P0317, 27 November 1996, Table 8.1, p75; General Household Survey 2002, Statistical release P0318, 15 December 2003, p4; General Household Survey 2010 (Revised version), Statistical release P0318, 3 August 2011, Table 2.2, p53; General Household Survey 2023, Statistical release P0318, 23 May 2024, Table 2.2, pp88-89
A23: a As their highest level of education. At the end of grade 9, pupils receive a school-leaving (general) certificate and qualify to study at a Technical Vocational Education and Training (TVET) college.
A24: b Totals should add up vertically but may not, owing to rounding/the inclusion of unspecified values.

Sheet Grade12adults.95-23#%
A2: People aged 20 and older with grade 12a by race, 1995-2023
A4: Race | B4: People aged 20+ | C4: 1995 | D4: 2002 | E4: 2010 | F4: 2023 | G4: Change 1995-2023
A5: Black | B5: Number with grade 12 | C5: 2110000 | D5: 3398000 | E5: 5024000 | F5: 10556000 | G5: =(F5-C5) -> 8446000
B6: Total aged 20+ | C6: 15676000 | D6: 19783000 | E6: 22076000 | F6: 31348000 | G6: =(F6-C6) -> 15672000
B7: Proportion with grade 12 | C7: =(C5/C6) -> 0.1346006634 | D7: =(D5/D6) -> 0.1717636354 | E7: =(E5/E6) -> 0.2275774597 | F7: =(F5/F6) -> 0.3367359959 | G7: —
A8: Coloured | B8: Number with grade 12 | C8: 268000 | D8: 404000 | E8: 745000 | F8: 1168000 | G8: =(F8-C8) -> 900000
B9: Total aged 20+ | C9: 2079000 | D9: 2332000 | E9: 2807000 | F9: 3443000 | G9: =(F9-C9) -> 1364000
B10: Proportion with grade 12 | C10: =(C8/C9) -> 0.1289081289 | D10: =(D8/D9) -> 0.1732418525 | E10: =(E8/E9) -> 0.2654079088 | F10: =(F8/F9) -> 0.3392390357 | G10: —
A11: Indian/Asian | B11: Number with grade 12 | C11: 207000 | D11: 246000 | E11: 362000 | F11: 529000 | G11: =(F11-C11) -> 322000
B12: Total aged 20+ | C12: 644000 | D12: 743000 | E12: 900000 | F12: 1154000 | G12: =(F12-C12) -> 510000
B13: Proportion with grade 12 | C13: =(C11/C12) -> 0.3214285714 | D13: =(D11/D12) -> 0.331090175 | E13: =(E11/E12) -> 0.4022222222 | F13: =(F11/F12) -> 0.4584055459 | G13: —
A14: White | B14: Number with grade 12 | C14: 1545000 | D14: 1228000 | E14: 1472000 | F14: 1342000 | G14: =(F14-C14) -> -203000
B15: Total aged 20+ | C15: 3700000 | D15: 3069000 | E15: 3338000 | F15: 3406000 | G15: =(F15-C15) -> -294000
B16: Proportion with grade 12 | C16: =(C14/C15) -> 0.4175675676 | D16: =(D14/D15) -> 0.4001303356 | E16: =(E14/E15) -> 0.4409826243 | F16: =(F14/F15) -> 0.3940105696 | G16: —
A17: Totalb | B17: Number with grade 12 | C17: 4131000 | D17: 5286000 | E17: 7603000 | F17: 13595000 | G17: =(F17-C17) -> 9464000
B18: Total aged 20+ | C18: 22100000 | D18: 25954000 | E18: 29121000 | F18: 39351000 | G18: =(F18-C18) -> 17251000
B19: Proportion with grade 12 | C19: =(C17/C18) -> 0.1869230769 | D19: =(D17/D18) -> 0.203668028 | E19: =(E17/E18) -> 0.2610830672 | F19: =(F17/F18) -> 0.3454804198 | G19: —
A20: Source: Stats SA, October Household Survey 1995, Statistical release P0317, 27 November 1996, Table 8.1, p75; General Household Survey 2002, Statistical release P0318, 15 December 2003, p4; General Household Survey 2010 (Revised version), Statistical release P0318, 3 August 2011, Table 2.2, p53; General Household Survey 2023, Statistical release P0318, 23 May 2024, Table 2.2, pp88-89
A21: a As their highest level of education. Figures include those who have completed the equivalent of grade 12 at TVETs.
A22: b Totals should add up vertically but may not, owing to rounding/the inclusion of unspecified values.

Sheet Dipl.cert.adults.95-23#%
A2: People aged 20 and older with a diploma/certificatea by race, 1995-2023
A4: Race | B4: People aged 20+ | C4: 1995 | D4: 2002 | E4: 2010 | F4: 2023 | G4: Change 1995-2023
A5: Black | B5: Number with a diploma/certificate | C5: 634000 | D5: 734000 | E5: 1037000 | F5: 2199000 | G5: =(F5-C5) -> 1565000
B6: Total aged 20+ | C6: 15676000 | D6: 19783000 | E6: 22076000 | F6: 31348000 | G6: =(F6-C6) -> 15672000
B7: Proportion with a diploma/certificate | C7: =(C5/C6) -> 0.04044399081 | D7: =(D5/D6) -> 0.03710256281 | E7: =(E5/E6) -> 0.04697408951 | F7: =(F5/F6) -> 0.07014801582 | G7: —
A8: Coloured | B8: Number with a diploma/certificate | C8: 78000 | D8: 88000 | E8: 141000 | F8: 234000 | G8: =(F8-C8) -> 156000
B9: Total aged 20+ | C9: 2079000 | D9: 2332000 | E9: 2807000 | F9: 3443000 | G9: =(F9-C9) -> 1364000
B10: Proportion with a diploma/certificate | C10: =(C8/C9) -> 0.03751803752 | D10: =(D8/D9) -> 0.03773584906 | E10: =(E8/E9) -> 0.05023156395 | F10: =(F8/F9) -> 0.0679639849 | G10: —
A11: Indian/Asian | B11: Number with a diploma/certificate | C11: 39000 | D11: 44000 | E11: 77000 | F11: 99000 | G11: =(F11-C11) -> 60000
B12: Total aged 20+ | C12: 644000 | D12: 743000 | E12: 900000 | F12: 1154000 | G12: =(F12-C12) -> 510000
B13: Proportion with a diploma/certificate | C13: =(C11/C12) -> 0.06055900621 | D13: =(D11/D12) -> 0.05921938089 | E13: =(E11/E12) -> 0.08555555556 | F13: =(F11/F12) -> 0.08578856153 | G13: —
A14: White | B14: Number with a diploma/certificate | C14: 549000 | D14: 407000 | E14: 421000 | F14: 589000 | G14: =(F14-C14) -> 40000
B15: Total aged 20+ | C15: 3700000 | D15: 3069000 | E15: 3338000 | F15: 3406000 | G15: =(F15-C15) -> -294000
B16: Proportion with a diploma/certificate | C16: =(C14/C15) -> 0.1483783784 | D16: =(D14/D15) -> 0.1326164875 | E16: =(E14/E15) -> 0.1261234272 | F16: =(F14/F15) -> 0.1729301233 | G16: —
A17: Totalb | B17: Number with a diploma/certificate | C17: 1300000 | D17: 1274000 | E17: 1677000 | F17: 3120000 | G17: =(F17-C17) -> 1820000
B18: Total aged 20+ | C18: 22100000 | D18: 25954000 | E18: 29121000 | F18: 39351000 | G18: =(F18-C18) -> 17251000
B19: Proportion with a diploma/certificate | C19: =(C17/C18) -> 0.05882352941 | D19: =(D17/D18) -> 0.04908684596 | E19: =(E17/E18) -> 0.05758730813 | F19: =(F17/F18) -> 0.0792864222 | G19: —
A20: Source:Stats SA, October Household Survey 1995, Statistical release P0317, 27 November 1996, Table 8.1, p75; General Household Survey 2002, Statistical release P0318, 15 December 2003, p4; General Household Survey 2010 (Revised version), Statistical release P0318, 3 August 2011, Table 2.2, p53; General Household Survey 2023, Statistical release P0318, 23 May 2024, Table 2.2, pp88-89
A21: a Excludes people with certificates/diplomas but with less than grade 12 i.e. those who finished grade 9 and enrolled at a Technical Vocational Education and Training (TVET) college to obtain their qualification. Includes Nationally Accredited Technical Education Diplomas (Levels N4-6) — these are above grade 12 and fall within the higher education band.
A22: b Totals should add up vertically but may not, owing to rounding/the inclusion of unspecified values.

Sheet Degree.higher.adults.95-23#%.
A2: People aged 20 and older with a degree and highera by race, 1995-2023
A4: Race | B4: People aged 20+ | C4: 1995 | D4: 2002 | E4: 2010 | F4: 2023 | G4: Change 1995-2023
A5: Black | B5: Number with a degree and higher | C5: 188000 | D5: 330000 | E5: 604000 | F5: 1667000 | G5: =(F5-C5) -> 1479000
B6: Total aged 20+ | C6: 15676000 | D6: 19783000 | E6: 22076000 | F6: 31348000 | G6: =(F6-C6) -> 15672000
B7: Proportion with a degree and higher | C7: =(C5/C6) -> 0.01199285532 | D7: =(D5/D6) -> 0.01668098873 | E7: =(E5/E6) -> 0.02736002899 | F7: =(F5/F6) -> 0.05317723619 | G7: —
A8: Coloured | B8: Number with a degree and higher | C8: 24000 | D8: 42000 | E8: 105000 | F8: 189000 | G8: =(F8-C8) -> 165000
B9: Total aged 20+ | C9: 2079000 | D9: 2332000 | E9: 2807000 | F9: 3443000 | G9: =(F9-C9) -> 1364000
B10: Proportion with a degree and higher | C10: =(C8/C9) -> 0.01154401154 | D10: =(D8/D9) -> 0.0180102916 | E10: =(E8/E9) -> 0.03740648379 | F10: =(F8/F9) -> 0.0548939878 | G10: —
A11: Indian/Asian | B11: Number with a degree and higher | C11: 35000 | D11: 57000 | E11: 107000 | F11: 191000 | G11: =(F11-C11) -> 156000
B12: Total aged 20+ | C12: 644000 | D12: 743000 | E12: 900000 | F12: 1154000 | G12: =(F12-C12) -> 510000
B13: Proportion with a degree and higher | C13: =(C11/C12) -> 0.05434782609 | D13: =(D11/D12) -> 0.07671601615 | E13: =(E11/E12) -> 0.1188888889 | F13: =(F11/F12) -> 0.1655112652 | G13: —
A14: White | B14: Number with a degree and higher | C14: 403000 | D14: 526000 | E14: 755000 | F14: 948000 | G14: =(F14-C14) -> 545000
B15: Total aged 20+ | C15: 3700000 | D15: 3069000 | E15: 3338000 | F15: 3406000 | G15: =(F15-C15) -> -294000
B16: Proportion with a degree and higher | C16: =(C14/C15) -> 0.1089189189 | D16: =(D14/D15) -> 0.1713913327 | E16: =(E14/E15) -> 0.2261833433 | F16: =(F14/F15) -> 0.2783323547 | G16: —
A17: Totalb | B17: Number with a degree and higher | C17: 649000 | D17: 956000 | E17: 1572000 | F17: 2996000 | G17: =(F17-C17) -> 2347000
B18: Total aged 20+ | C18: 22100000 | D18: 25954000 | E18: 29121000 | F18: 39351000 | G18: =(F18-C18) -> 17251000
B19: Proportion with a degree and higher | C19: =(C17/C18) -> 0.02936651584 | D19: =(D17/D18) -> 0.03683439932 | E19: =(E17/E18) -> 0.05398166272 | F19: =(F17/F18) -> 0.07613529516 | G19: —
A20: Source: Stats SA, October Household Survey 1995, Statistical release P0317, 27 November 1996, Table 8.1, p75; General Household Survey 2002, Statistical release P0318, 15 December 2003, p4; General Household Survey 2010 (Revised version), Statistical release P0318, 3 August 2011, Table 2.2, p53; General Household Survey 2023, Statistical release P0318, 23 May 2024, Table 2.2, pp88-89
A22: a National Qualifications Framework (NQF) Level 7-10. Includes Higher Diploma/National Certificate/B-Tech.
A23: b Totals should add up vertically but may not, owing to rounding/the inclusion of unspecified values.

Sheet Attendance

Sheet Attendancerace&age23
B2: Educational attendance
B4: Breakdown by race and age
C6: Population attending an educational institutiona by race and age, 2010 and 2023
C8: —2010—
B9: Age group | C9: Black | D9: Coloured | E9: Indian/Asian | F9: White | G9: Total
B10: 5-6 | C10: 0.886 | D10: 0.772 | E10: 0.974 | F10: 0.84 | G10: 0.877
B11: 7-15 | C11: 0.984 | D11: 0.982 | E11: 0.994 | F11: 0.994 | G11: 0.985
B12: 16-20 | C12: 0.702 | D12: 0.508 | E12: 0.628 | F12: 0.717 | G12: 0.686
B13: 21-25 | C13: 0.148 | D13: 0.069 | E13: 0.14 | F13: 0.224 | G13: 0.146
B14: 26+ | C14: 0.023 | D14: 0.016 | E14: 0.021 | F14: 0.02 | G14: 0.022
B15: Total | C15: 0.374 | D15: 0.279 | E15: 0.267 | F15: 0.242 | G15: 0.351
C17: —2023—
B18: Age group | C18: Black | D18: Coloured | E18: Indian/Asian | F18: White | G18: Total
B19: 5-6 | C19: 0.9146586345 | D19: 0.8505154639 | E19: 0.8974358974 | F19: 0.9775280899 | G19: 0.9114088159
B20: 7-15 | C20: 0.9883340602 | D20: 0.9687137891 | E20: 0.9534883721 | F20: 0.9976851852 | G20: 0.9865588871
B21: 16-20 | C21: 0.7191624943 | D21: 0.5377128954 | E21: 0.8494623656 | F21: 0.7914893617 | G21: 0.710305864
B22: 21-25 | C22: 0.168128655 | D22: 0.102244389 | E22: 0.1595744681 | F22: 0.2570281124 | G22: 0.1670792079
B23: 26+ | C23: 0.02215082215 | D23: 0.01618887015 | E23: 0.0288184438 | F23: 0.01217168482 | G23: 0.0209338336
B24: Total | C24: 0.3322635904 | D24: 0.2712039719 | E24: 0.2244614315 | F24: 0.1952992488 | G24: 0.3142948139
B25: Source: Stats SA, General Household Survey 2010 (Revised version, Statistical release P0318, 3 August 2011, Table 3.1, pp63-64; General Household Survey 2023, Statistical release P0318, 23 May 2024, Table 3.1, pp92-93
B26: a CRA calculations. The table above refers to the proportion of each age group in each race group attending an educational institution. For example, 91.5% of black 5 to 6 year-olds were attending an educational institution in 2023.

Sheet Attendance@ed.inst.9.23
B2: Breakdown by institution
B4: People aged 5 and above attending an educational institution by type of institutiona, 2009 and 2023
C6: —2009— | E6: —2023—
B7: Type of institution | C7: Number | D7: Proportion of totalb | E7: Number | F7: Proportion of totalb
B8: Pre-school (including day-care, crèche, and pre-primary) | C8: 596000 | D8: 0.037 | E8: 545000 | F8: =E8/$E$14 -> 0.03068175421
B9: School | C9: 13924000 | D9: 0.873 | E9: 15411000 | F9: 0.8675899341
B10: Higher educational institution | C10: 717000 | D10: 0.045 | E10: 962000 | F10: 0.05415751844
B11: Technical vocational education and training college | C11: 197000 | D11: 0.012 | E11: 400000 | F11: 0.02251871868
B12: Other college | C12: 168000 | D12: 0.011 | E12: 283000 | F12: 0.01593199347
B13: Otherc | C13: 226000 | D13: =(C13/C14) -> 0.01417105593 | E13: 162000 | F13: 0.009120081067
B14: Total | C14: 15948000 | D14: 1 | E14: 17763000 | F14: 1
B15: Source: Stats SA, General Household Survey 2009 (Revised version), Statistical release P0318, 3 August 2011, Table 3.3, p66; General Household Survey 2023, Statistical release P0318, 23 May 2024, Table 3.2, p94
B16: a General Household Survey figures are largely based on sampling units and may therefore differ significantly from those in other official sources of enrolment data.
B17: b CRA calculations. Refers to the proportion of people aged five and above enrolled in each type of institution. For example, in 2023, 3.1% of all people aged five and above attending an educational institution were in pre-school.
B18: c Includes home-based education/home schooling. According to the DBE, a parent/guardian who prefers to teach or hire a tutor to teach their child(ren) at home must register with their respective provincial education department in order to do so. The lessons offered must fall within the scope of the compulsory phases (grades 1 to 9).

Sheet Attendance by race.23
B2: People aged 5 and above attending an educational institution by racea and type of institution, 2023
B4: Type of institution | C4: Black | D4: Coloured | E4: Indian/Asian | F4: White | G4: Total
B5: Pre-school (including day-care, crèche, and pre-primary) | C5: 451000 | D5: 47000 | E5: 10000 | F5: 37000 | G5: 545000
B6: School | C6: 13454000 | D6: 1136000 | E6: 232000 | F6: 589000 | G6: 15411000
B7: Higher educational institution | C7: 738000 | D7: 51000 | E7: 66000 | F7: 108000 | G7: 962000
B8: Technical vocational education and training college | C8: 358000 | D8: 23000 | E8: —b | F8: 17000 | G8: 400000
B9: Other college | C9: 219000 | D9: 33000 | E9: 7000 | F9: 24000 | G9: 283000
B10: Otherc | C10: 99000 | D10: 21000 | E10: 4000 | F10: 32000 | G10: 162000
B11: Totald | C11: 15323000 | D11: 1311000 | E11: 323000 | F11: 806000 | G11: 17763000
B12: Source: Stats SA, General Household Survey 2023, Statistical release P0318, 23 May 2024, Table 3.4, p96
B13: a General Household Survey figures are largely based on sampling units and may therefore differ significantly from those in other official sources of enrolment data.
B14: b Figures too small for reliable estimates.
B15: c Includes home-based education/home schooling. According to the DBE, a parent/guardian who prefers to teach or hire a tutor to teach their child(ren) at home must register with their respective provincial education department in order to do so. The lessons offered must fall within the scope of the compulsory phases (grades 1 to 9).
B16: d Totals should add up vertically and horizontally but may not, owing to rounding.

Sheet ECD

Sheet ECDattendance.non.9.23
B2: Early Childhood Development (ECD) centres
B4: People aged between 0 and 4 attending/not attending an Early Childhood Development (ECD) centrea by race, 2009 and 2021
B5: —2009—
C6: —Number—
B7: Status | C7: Black | D7: Coloured | E7: Indian/Asian | F7: White | G7: Totalb
B8: Attending | C8: 1240000 | D8: 89000 | E8: 28000 | F8: 131000 | G8: 1488000
B9: Not attending | C9: 2979000 | D9: 323000 | E9: 69000 | F9: 115000 | G9: 3486000
B10: Totalb | C10: 4299000 | D10: 417000 | E10: 99000 | F10: 248000 | G10: 5063000
C11: —Proportionc—
B12: Status | C12: Black | D12: Coloured | E12: Indian/Asian | F12: White | G12: Totalb
B13: Attending | C13: 0.315 | D13: 0.245 | E13: 0.25 | F13: 0.48 | G13: 0.316
B14: Not attending | C14: 0.685 | D14: 0.753 | E14: 0.75 | F14: 0.52 | G14: 0.684
B15: Totalb | C15: 1 | D15: 1 | E15: 1 | F15: 1 | G15: 1
B17: —2023—
C18: —Number—
B19: Status | C19: Black | D19: Coloured | E19: Indian/Asian | F19: White | G19: Totalb
B20: Attending | C20: 437000 | D20: 31000 | E20: 6000 | F20: 56000 | G20: 531000
B21: Not attending | C21: 4559000 | D21: 441000 | E21: 89000 | F21: 146000 | G21: 5235000
B22: Totalb | C22: 4997000 | D22: 472000 | E22: 95000 | F22: 202000 | G22: 5766000
C23: —Proportionc—
B24: Status | C24: Black | D24: Coloured | E24: Indian/Asian | F24: White | G24: Totalb
B25: Attending | C25: =(C20/C22) -> 0.08745247148 | D25: =(D20/D22) -> 0.0656779661 | E25: =(E20/E22) -> 0.06315789474 | F25: =(F20/F22) -> 0.2772277228 | G25: =(G20/G22) -> 0.09209157128
B26: Not attending | C26: =(C21/C22) -> 0.9123474084 | D26: =(D21/D22) -> 0.9343220339 | E26: =(E21/E22) -> 0.9368421053 | F26: =(F21/F22) -> 0.7227722772 | G26: =(G21/G22) -> 0.9079084287
B27: Totalb | C27: 1 | D27: 1 | E27: 1 | F27: 1 | G27: 1
B28: Source: Stats SA, General Household Survey 2009, (Revised version) Statistical release P0318, 3 August 2011, Table 3.11, p75; General Household Survey 2023, Statistical release P0318, 23 May 2024, Table 3.10, p103
B29: a Includes day-care centres, crèches, playgroups, nursery schools and pre-primary schools.
B30: b Includes those who did not specify whether or not they attend an ECD centre.
B31: c CRA calculations.

Sheet ECD attendance(non)byprov.9.23
A2: People aged between 0 and 4 attending/not attending an Early Childhood Development (ECD) centrea by province, 2009 and 2023
A4: Province | B4: —Attending— | D4: —Not attending— | F4: —Totalb— | H4: —Attending proportion—
B5: 2009 | C5: 2023 | D5: 2009 | E5: 2023 | F5: 2009 | G5: 2023 | H5: 2009 | I5: 2023
A6: Eastern Cape | B6: 213000 | C6: 96000 | D6: 509000 | E6: 586000 | F6: 449000 | G6: 681000 | H6: =(B6/F6) -> 0.4743875278 | I6: =(C6/G6) -> 0.140969163
A7: Free State | B7: 109000 | C7: 19000 | D7: 188000 | E7: 258000 | F7: 299000 | G7: 277000 | H7: 0.364548495 | I7: 0.06859205776
A8: Gauteng | B8: 394000 | C8: 133000 | D8: 513000 | E8: 1161000 | F8: 945000 | G8: 1294000 | H8: 0.4169312169 | I8: 0.1027820711
A9: KwaZulu-Natal | B9: 258000 | C9: 98000 | D9: 833000 | E9: 1075000 | F9: 1103000 | G9: 1173000 | H9: 0.2339075249 | I9: 0.08354646206
A10: Limpopo | B10: 165000 | C10: 37000 | D10: 425000 | E10: 673000 | F10: 599000 | G10: 710000 | H10: 0.2754590985 | I10: 0.05211267606
A11: Mpumalanga | B11: 102000 | C11: 57000 | D11: 261000 | E11: 426000 | F11: 368000 | G11: 483000 | H11: 0.277173913 | I11: 0.1180124224
A12: North West | B12: 80000 | C12: 32000 | D12: 285000 | E12: 391000 | F12: 369000 | G12: 423000 | H12: 0.216802168 | I12: 0.0756501182
A13: Northern Cape | B13: 23000 | C13: 11000 | D13: 95000 | E13: 117000 | F13: 119000 | G13: 128000 | H13: 0.1932773109 | I13: 0.0859375
A14: Western Cape | B14: 144000 | C14: 48000 | D14: 377000 | E14: 548000 | F14: 527000 | G14: 597000 | H14: 0.2732447818 | I14: 0.08040201005
A15: South Africa | B15: 1488000 | C15: 531000 | D15: 3486000 | E15: 5235000 | F15: 5063000 | G15: 5766000 | H15: 0.2938968991 | I15: 0.09209157128
A16: Source: Stats SA, General Household Survey 2009, (Revised version) Statistical release P0318, 3 August 2011, Table 3.11, p74; General Household Survey 2023, Statistical release P0318, 23 May 2024, Table 3.9, p102
A17: a This includes day-care centres, crèches, playgroups, nursery schools and pre-primary schools.
A18: b Totals include those who did not specify whether or not they attend an ECD centre.

Sheet Non-attendance

Sheet Outofsch.7-18yrolds.13-22
B2: Non attendance
B4: People aged 7 to 18 who are out of school, 2013-22
B6: Year | C6: Number | D6: Proportion
B7: 2013 | C7: 435291.9 | D7: 0.036
B8: 2014 | C8: 391853.3 | D8: 0.034
B9: 2015 | C9: 432231.6 | D9: 0.037
B10: 2016 | C10: 412684.7 | D10: 0.035
B11: 2017 | C11: 359903.6 | D11: 0.03
B12: 2018 | C12: 353262.4 | D12: 0.029
B13: 2019 | C13: 389901.2 | D13: 0.031
B14: 2020 | C14: 440190.8 | D14: 0.034
B15: 2021 | C15: 414409.8 | D15: 0.031
B16: 2022 | C16: 407832 | D16: 0.03
B17: Source: DBE, General Household Survey: Focus on schooling 2022, March 2024, Table 6, p28

Sheet Reasons for non.attendance.22
B3: Reasons for non-attendance at an educational institution, 2022
B5: Reason | C5: 7-15 years | D5: 16-18 years
B6: Completed education/satisfied level of education/does not want to study | C6: 0.099 | D6: 0.132
B7: Difficulty getting to school (transport) | C7: 0.006 | D7: 0.004
B8: Disability | C8: 0.18 | D8: 0.034
B9: Education is useless or not interesting | C9: 0.05 | D9: 0.066
B10: Failed exams | C10: 0.048 | D10: 0.049
B11: Family commitment (e.g. child minding) | C11: 0.023 | D11: 0.043
B12: Got married | C12: 0.01 | D12: 0
B13: Illness | C13: 0.092 | D13: 0.022
B14: Left school due to Covid-19 | C14: 0 | D14: 0.011
B15: No money for fees | C15: 0.086 | D15: 0.318
B16: Not accepted for enrolment | C16: 0.04 | D16: 0.073
B17: Pregnancy | C17: 0 | D17: 0.037
B18: School/education institution is too far | C18: 0.064 | D18: 0.011
B19: Too old/young | C19: 0.192 | D19: 0.023
B20: Unable to perform at school | C20: 0.074 | D20: 0.107
B21: Violence at school | C21: 0.01 | D21: 0.003
B22: Working at home or business/job | C22: 0.011 | D22: 0.05
B23: Other | C23: 0.017 | D23: 0.018
B24: Total | C24: 1 | D24: 1
B25: Source: DBE, General Household Survey: Focus on schooling 2022, March 2024, Table 8, p31

Sheet Enrolment.schools

Sheet Enrolment.inschools.00&23
B3: Schools
B5: All schools and enrolment
B7: Enrolment by grade at ordinary public and independent schools, 2000 and 2023
C9: —Number of pupils—
B10: Grade | C10: 2000 | D10: 2023 | E10: Change | G10: ADD CHART
B11: Pre-grade R | C11: 46868 | D11: 25545 | E11: =(D11-C11)/C11 -> -0.4549586072
B12: Grade R (Reception) | C12: 226631 | D12: 792859 | E12: 2.498457846 | I12: 2000 | J12: 2000 | K12: 2023
B13: Total pre-primary | C13: 273499 | D13: 818404 | E13: 1.992347321 | H13: Pre-grade R | I13: 46868 | J13: =0-I13 -> -46868 | K13: 25545 | L13: =0-K13 -> -25545
B14: 1 | C14: 1055397 | D14: 1043144 | E14: -0.01160984918 | H14: Grade R (Reception) | I14: 226631 | J14: -226631 | K14: 792859 | L14: -792859
B15: 2 | C15: 1090765 | D15: 1058159 | E15: -0.02989278167 | H15: 1 | I15: 1055397 | J15: -1055397 | K15: 1043144 | L15: -1043144
B16: 3 | C16: 1178712 | D16: 1096607 | E16: -0.06965654036 | H16: 2 | I16: 1090765 | J16: -1090765 | K16: 1058159 | L16: -1058159
B17: 4 | C17: 1167949 | D17: 1106856 | E17: -0.05230793468 | H17: 3 | I17: 1178712 | J17: -1178712 | K17: 1096607 | L17: -1096607
B18: 5 | C18: 1088836 | D18: 1073750 | E18: -0.01385516276 | H18: 4 | I18: 1167949 | J18: -1167949 | K18: 1106856 | L18: -1106856
B19: 6 | C19: 1009782 | D19: 1066961 | E19: 0.05662509334 | H19: 5 | I19: 1088836 | J19: -1088836 | K19: 1073750 | L19: -1073750
B20: 7 | C20: 936454 | D20: 1068907 | E20: 0.1414410105 | H20: 6 | I20: 1009782 | J20: -1009782 | K20: 1066961 | L20: -1066961
B21: Total primary | C21: 7527895 | D21: 7514384 | E21: -0.00179479124 | H21: 7 | I21: 936454 | J21: -936454 | K21: 1068907 | L21: -1068907
B22: 8 | C22: 1039547 | D22: 1158279 | E22: 0.1142151341 | H22: 8 | I22: 1039547 | J22: -1039547 | K22: 1158279 | L22: -1158279
B23: 9 | C23: 922566 | D23: 1044578 | E23: 0.1322528686 | H23: 9 | I23: 922566 | J23: -922566 | K23: 1044578 | L23: -1044578
B24: 10 | C24: 836962 | D24: 1187468 | E24: 0.4187836485 | H24: 10 | I24: 836962 | J24: -836962 | K24: 1187468 | L24: -1187468
B25: 11 | C25: 724192 | D25: 974717 | E25: 0.3459372653 | H25: 11 | I25: 724192 | J25: -724192 | K25: 974717 | L25: -974717
B26: 12 | C26: 549203 | D26: 740566 | E26: 0.3484376451 | H26: 12 | I26: 549203 | J26: -549203 | K26: 740566 | L26: -740566
B27: Total secondarya | C27: 4072470 | D27: 5105608 | E27: 0.2536883022
B28: TOTAL | C28: 11 873 864b | D28: 13 439 683b | E28: 0.132
B29: Source: DBE, Education Statistics in South Africa at a Glance 2000, February 2002, Table 3, pp8-9; School Realities 2023, December 2023, Table 2, p1
B30: a Excludes TVET colleges.
B31: b The total for 2 000 excludes 29 591 pupils enrolled in special needs schools, adult learning centres, and technical colleges. The total for 2023 includes 1 287 pupils who were not listed under any grade and were classified as ‘Other'.

Sheet Pupils@pub.ind.schls.00&23
B3: Pupils in public and independent schools by province, 2000 and 2023
B5: Province | C5: Year | D5: —Publica— | F5: —Independentb—
B6: Eastern Cape | C6: 2000 | D6: 2130390 | E6: =(D6/D33) -> 0.1829104954 | F6: 8471 | G6: =(F6/F33) -> 0.03305330435
C7: 2023 | D7: 1728088 | E7: =(D7/D34) -> 0.1360530485 | F7: 78031 | G7: =(F7/F34) -> 0.1057175915
C8: 2000-23 | D8: =(D7-D6)/D6 -> -0.1888396021 | E8: — | F8: =(F7-F6)/F6 -> 8.211545272 | G8: —
B9: Free State | C9: 2000 | D9: 744868 | E9: =(D9/D33) -> 0.06395269169 | F9: 19887 | G9: =(F9/F33) -> 0.07759781179
C10: 2023 | D10: 702394 | E10: =(D10/D34) -> 0.05529975613 | F10: 21227 | G10: =(F10/F34) -> 0.02875866404
C11: 2000-23 | D11: =(D10-D9)/D9 -> -0.0570221838 | E11: — | F11: =(F10-F9)/F9 -> 0.06738070096 | G11: —
B12: Gauteng | C12: 2000 | D12: 1436964 | E12: =(D12/D33) -> 0.1233744981 | F12: 117531 | G12: =(F12/F33) -> 0.4585985024
C13: 2023 | D13: 2281492 | E13: =(D13/D34) -> 0.1796227633 | F13: 346555 | G13: =(F13/F34) -> 0.4695180109
C14: 2000-23 | D14: =(D13-D12)/D12 -> 0.5877168809 | E14: — | F14: =(F13-F12)/F12 -> 1.94862632 | G14: —
B15: KwaZulu-Natal | C15: 2000 | D15: 2619621 | E15: =(D15/D33) -> 0.224914769 | F15: 43739 | G15: =(F15/F33) -> 0.1706668019
C16: 2023 | D16: 2813108 | E16: =(D16/D34) -> 0.2214771003 | F16: 62750 | G16: =(F16/F34) -> 0.0850146591
C17: 2000-23 | D17: =(D16-D15)/D15 -> 0.07386068443 | E17: — | F17: =(F16-F15)/F15 -> 0.4346464254 | G17: —
B18: Limpopo | C18: 2000 | D18: 1830018 | E18: =(D18/D33) -> 0.1571212308 | F18: 15247 | G18: =(F18/F33) -> 0.05949282629
C19: 2023 | D19: 1714068 | E19: =(D19/D34) -> 0.1349492484 | F19: 85226 | G19: =(F19/F34) -> 0.1154654874
C20: 2000-23 | D20: =(D19-D18)/D18 -> -0.06336003252 | E20: — | F20: =(F19-F18)/F18 -> 4.589689775 | G20: —
B21: Mpumalanga | C21: 2000 | D21: 898599 | E21: =(D21/D33) -> 0.0771516897 | F21: 13180 | G21: =(F21/F33) -> 0.05142752348
C22: 2023 | D22: 1113279 | E22: =(D22/D34) -> 0.08764889394 | F22: 37077 | G22: =(F22/F34) -> 0.0502324863
C23: 2000-23 | D23: =(D22-D21)/D21 -> 0.2389052291 | E23: — | F23: =(F22-F21)/F21 -> 1.813125948 | G23: —
B24: North West | C24: 2000 | D24: 902256 | E24: =(D24/D33) -> 0.0774656715 | F24: 7650 | G24: =(F24/F33) -> 0.02984981446
C25: 2023 | D25: 850644 | E25: =(D25/D34) -> 0.06697153699 | F25: 29436 | G25: =(F25/F34) -> 0.03988034271
C26: 2000-23 | D26: =(D25-D24)/D24 -> -0.05720327712 | E26: — | F26: =(F25-F24)/F24 -> 2.847843137 | G26: —
B27: Northern Cape | C27: 2000 | D27: 196205 | E27: =(D27/D33) -> 0.01684572015 | F27: 2445 | G27: =(F27/F33) -> 0.009540234819
C28: 2023 | D28: 299163 | E28: =(D28/D34) -> 0.02355322076 | F28: 7490 | G28: =(F28/F34) -> 0.01014756648
C29: 2000-23 | D29: =(D28-D27)/D27 -> 0.5247470758 | E29: — | F29: =(F28-F27)/F27 -> 2.063394683 | G29: —
B30: Western Cape | C30: 2000 | D30: 888251 | E30: =(D30/D33) -> 0.07626323368 | F30: 28133 | G30: =(F30/F33) -> 0.1097731804
C31: 2023 | D31: 1199339 | E31: =(D31/D34) -> 0.09442443162 | F31: 70316 | G31: =(F31/F34) -> 0.09526519154
C32: 2000-23 | D32: =(D31-D30)/D30 -> 0.3502253305 | E32: — | F32: =(F31-F30)/F30 -> 1.4994135 | G32: —
B33: SOUTH AFRICA | C33: 2000 | D33: 11647172 | E33: 1 | F33: 256283 | G33: 1
C34: 2023 | D34: 12701575 | E34: 1 | F34: 738108 | G34: 1
C35: 2000-23 | D35: =(D34-D33)/D33 -> 0.09052867082 | E35: — | F35: =(F34-F33)/F33 -> 1.880050569 | G35: —
B36: Source: DBE, Education Statistics in South Africa at a glance, 2000, February 2002, p4; School Realities 2023, December 2023, Table 2, p1
B37: a Public schools are state-controlled and are contemplated under Chapter 3 of the South African Schools Act of 1996.
B38: b Independent or private schools are owned by individuals or organisations and are established in line with section 29(3) of the Constitution and section 45 of the South African Schools Act of 1996.

Sheet Schools.Public

Sheet Pubschls.00@23
B2: Public schools
B4: Public schoolsa by province, 2000 and 2023
B6: Province | C6: 2000 | D6: 2023 | E6: Change
B7: Eastern Cape | C7: 6178 | D7: 5016 | E7: =(D7-C7)/C7 -> -0.1880867595
B8: Free State | C8: 2538 | D8: 937 | E8: -0.6308116627
B9: Gauteng | C9: 1905 | D9: 2061 | E9: 0.08188976378
B10: KwaZulu-Natal | C10: 5693 | D10: 5790 | E10: 0.01703846829
B11: Limpopo | C11: 4138 | D11: 3622 | E11: -0.1246979217
B12: Mpumalanga | C12: 2053 | D12: 1632 | E12: -0.2050657574
B13: North West | C13: 2294 | D13: 1443 | E13: -0.3709677419
B14: Northern Cape | C14: 486 | D14: 543 | E14: 0.1172839506
B15: Western Cape | C15: 1504 | D15: 1467 | E15: -0.02460106383
B16: South Africa | C16: 26789 | D16: 22511 | E16: -0.1596924111
B17: Source: DBE, Education Statistics in South Africa at a Glance, 2000, February 2002, p1; School Realities 2023, December 2023, Table 2, p1
B18: a Public schools are state-controlled and are contemplated under chapter 3 of the South African Schools Act of 1996. A public school may be an ordinary or special needs school, or one with a specialised focus on talent, including sport, performing arts or creative arts, according to section 12 (3)(a) of the Act.

Sheet Pupils.teachers

Sheet Pupils & teachers.00&23
A2: Pupils and teachers
A4: Pupils and teachers at public schools by province, 2000 and 2023
B6: —Pupils— | D6: —Teachers— | F6: —Pupil-to-teacher ratioa—
A7: Province | B7: 2000 | C7: 2023 | D7: 2000 | E7: 2023 | F7: 2000 | G7: 2023
A8: Eastern Cape | B8: 2130390 | C8: 1728088 | D8: 66361 | E8: 56942 | F8: 32 to 1 | G8: 30 to 1
A9: Free State | B9: 744868 | C9: 702394 | D9: 22834 | E9: 23306 | F9: 33 to 1 | G9: 30 to 1 | K9: 2.254391
A10: Gauteng | B10: 1436964 | C10: 2281492 | D10: 43254 | E10: 74030 | F10: 33 to 1 | G10: 31 to 1
A11: KwaZulu-Natal | B11: 2619621 | C11: 2813108 | D11: 71748 | E11: 91816 | F11: 37 to 1 | G11: 31 to 1
A12: Limpopo | B12: 1830018 | C12: 1714068 | D12: 54456 | E12: 51227 | F12: 34 to 1 | G12: 33 to 1
A13: Mpumalanga | B13: 898599 | C13: 1113279 | D13: 26080 | E13: 34807 | F13: 35 to 1 | G13: 32 to 1
A14: North West | B14: 902256 | C14: 850644 | D14: 29516 | E14: 27199 | F14: 31 to 1 | G14: 31 to 1
A15: Northern Cape | B15: 196205 | C15: 299163 | D15: 6399 | E15: 10268 | F15: 31 to 1 | G15: 29 to 1
A16: Western Cape | B16: 888251 | C16: 1199339 | D16: 27714 | E16: 39893 | F16: 32 to 1 | G16: 30 to 1
A17: South Africa | B17: 11647172 | C17: 12701575 | D17: 348362 | E17: 409488 | F17: 33 to 1 | G17: 31 to 1
A18: Source: DBE, Education Statistics in South Africa at a Glance, 2000, February 2002, p4; School Realities 2023, December 2023, Table 2, p1
A19: a CRA calculations.

Sheet Facilities and amenities

Sheet Public schools & toilets.24
B2: Facilities and amenities
B4: Public schools and toilets by province, 2024
B6: Province | C6: Sitesa | D6: Pit | E6: Ventilation Improved Pitb | F6: Enviro looc | G6: Flush toilet, septic tank | H6: Flush toilet, municipal | I6: Mobile | J6: Chemical/ without sanitation facility/other
B7: Eastern Cape | C7: 5046 | D7: 427 | E7: 3143 | F7: 151 | G7: 286 | H7: 1087 | I7: 9 | J7: 44
B8: Free State | C8: 945 | D8: 2 | E8: 116 | F8: 11 | G8: 133 | H8: 731 | I8: 13 | J8: 0
B9: Gauteng | C9: 2066 | D9: 0 | E9: 10 | F9: 10 | G9: 140 | H9: 1883 | I9: 98 | J9: 6
B10: KwaZulu-Natal | C10: 5797 | D10: 254 | E10: 2702 | F10: 194 | G10: 642 | H10: 1581 | I10: 73 | J10: 75
B11: Limpopo | C11: 3649 | D11: 789 | E11: 1578 | F11: 1306 | G11: 760 | H11: 403 | I11: 0 | J11: 15
B12: Mpumalanga | C12: 1649 | D12: 40 | E12: 588 | F12: 556 | G12: 792 | H12: 668 | I12: 3 | J12: 3
B13: North West | C13: 1448 | D13: 257 | E13: 329 | F13: 45 | G13: 858 | H13: 697 | I13: 7 | J13: 9
B14: Northern Cape | C14: 545 | D14: 1 | E14: 62 | F14: 68 | G14: 198 | H14: 313 | I14: 2 | J14: 1
B15: Western Cape | C15: 1452 | D15: 0 | E15: 4 | F15: 0 | G15: 239 | H15: 1387 | I15: 3 | J15: 0
B16: South Africa | C16: 22597 | D16: =SUM(D7:D15) -> 1770 | E16: =SUM(E7:E15) -> 8532 | F16: 2341 | G16: =SUM(G7:G15) -> 4048 | H16: =SUM(H7:H15) -> 8750 | I16: =SUM(I7:I15) -> 208 | J16: =SUM(J7:J15) -> 153
B18: Source: DBE, www.education.gov.za, Education Facility Management System (EFMS) Report as at 03 July 2024, p4
B20: a One site can have more than one type of ablution.
B21: b A more sophisticated form of the pit latrine, with a black pipe (vent pipe) fitted to the pit and a screen (fly screen) at the top outlet of the pipe.
B22: c A “dry or waterless sanitation system” rather than a composting toilet. The system uses a dehydrating process over a lengthy retention period, with an ancillary, lesser composting process.

Sheet Public schools & water.24
B2: Public schools and water supply by province, 2024
B4: Province | C4: Sitesa | D4: Borehole/well on site | E4: Mobile tanker | F4: Municipal communal | G4: Municipal yard supply | H4: Rainwater
B5: Eastern Cape | C5: 5016 | D5: 421 | E5: 110 | F5: 816 | G5: 1745 | H5: 4109
B6: Free State | C6: 937 | D6: 166 | E6: 36 | F6: 99 | G6: 765 | H6: 112
B7: Gauteng | C7: 2061 | D7: 297 | E7: 25 | F7: 0 | G7: 1639 | H7: 0
B8: KwaZulu-Natal | C8: 5790 | D8: 1510 | E8: 438 | F8: 645 | G8: 2532 | H8: 5785
B9: Limpopo | C9: 3622 | D9: 2697 | E9: 230 | F9: 575 | G9: 1150 | H9: 312
B10: Mpumalanga | C10: 1632 | D10: 926 | E10: 267 | F10: 0 | G10: 790 | H10: 15
B11: North West | C11: 1443 | D11: 1090 | E11: 148 | F11: 256 | G11: 547 | H11: 42
B12: Northern Cape | C12: 543 | D12: 311 | E12: 21 | F12: 227 | G12: 230 | H12: 35
B13: Western Cape | C13: 1467 | D13: 233 | E13: 96 | F13: 70 | G13: 1318 | H13: 7
B14: South Africa | C14: 22511 | D14: =SUM(D5:D13) -> 7651 | E14: =SUM(E5:E13) -> 1371 | F14: 2688 | G14: 10716 | H14: 10417
B15: Source: DBE, www.education.gov.za, Education Facility Management System (EFMS) Report as at 03 July 2024, p3
B17: a One site can have more than one type of water source.

Sheet Public schools & electricity.24
B3: Public schools and electricity supply by province, 2024
B5: Province | C5: Sitesa | D5: Grid connection | E5: Generator powered | F5: Solar powered
B6: Eastern Cape | C6: 5016 | D6: 4635 | E6: 228 | F6: 590
B7: Free State | C7: 937 | D7: 937 | E7: 35 | F7: 10
B8: Gauteng | C8: 2061 | D8: 2059 | E8: 2 | F8: 6
B9: KwaZulu-Natal | C9: 5790 | D9: 5356 | E9: 203 | F9: 440
B10: Limpopo | C10: 3622 | D10: 3504 | E10: 97 | F10: 227
B11: Mpumalanga | C11: 1632 | D11: 1614 | E11: 156 | F11: 7
B12: North West | C12: 1443 | D12: 1421 | E12: 11 | F12: 4
B13: Northern Cape | C13: 543 | D13: 525 | E13: 62 | F13: 15
B14: Western Cape | C14: 1467 | D14: 1467 | E14: 4 | F14: 2
B15: South Africa | C15: =SUM(C6:C14) -> 22511 | D15: 21518 | E15: 798 | F15: 1301
B16: Source: DBE, www.education.gov.za, Education Facility Management System (EFMS) Report as at 03 July 2024, p2
B18: a One site can have more than one electricity source.

Sheet Pub schools&communication.24
B2: Public schools and communication systems by province, 2024
D4: —With communication systemsa— | L4: Without communication systems
B5: Province | C5: Sites | D5: Cell phone network | E5: Landline | F5: Fax | G5: Two-way radio | H5: Internet connectivity for learning and teaching | I5: Internet connectivity for administrative purposes | J5: Public call box | K5: Intercom
B6: Eastern Cape | C6: 5016 | D6: 4741 | E6: 1045 | F6: 774 | G6: 31 | H6: 518 | I6: 1147 | J6: 258 | K6: 292 | L6: 190 | M6: 0.038
B7: Free State | C7: 937 | D7: 844 | E7: 808 | F7: 721 | G7: 26 | H7: 299 | I7: 424 | J7: 381 | K7: 73 | L7: 28 | M7: 0.03
B8: Gauteng | C8: 2061 | D8: 1685 | E8: 1788 | F8: 1679 | G8: 131 | H8: 1171 | I8: 1231 | J8: 953 | K8: 485 | L8: 80 | M8: 0.039
B9: KwaZulu-Natal | C9: 5790 | D9: 5480 | E9: 2286 | F9: 1642 | G9: 53 | H9: 573 | I9: 1093 | J9: 563 | K9: 252 | L9: 156 | M9: 0.027
B10: Limpopo | C10: 3622 | D10: 3468 | E10: 825 | F10: 494 | G10: 6 | H10: 189 | I10: 384 | J10: 147 | K10: 34 | L10: 119 | M10: 0.033
B11: Mpumalanga | C11: 1632 | D11: 1477 | E11: 603 | F11: 380 | G11: 19 | H11: 459 | I11: 1037 | J11: 53 | K11: 34 | L11: 32 | M11: 0.019
B12: North West | C12: 1443 | D12: 1384 | E12: 540 | F12: 190 | G12: 23 | H12: 307 | I12: 813 | J12: 39 | K12: 109 | L12: 25 | M12: 0.017
B13: Northern Cape | C13: 543 | D13: 454 | E13: 387 | F13: 346 | G13: 7 | H13: 217 | I13: 410 | J13: 23 | K13: 79 | L13: 8 | M13: 0.015
B14: Western Cape | C14: 1467 | D14: 1059 | E14: 1334 | F14: 1247 | G14: 100 | H14: 1178 | I14: 1201 | J14: 623 | K14: 198 | L14: 72 | M14: 0.05
B15: South Africab | C15: 22511 | D15: 20592 | E15: =SUM(E6:E14) -> 9616 | F15: 7473 | G15: 396 | H15: 4911 | I15: 7740 | J15: 3040 | K15: 1556 | L15: 722 | M15: 0.032
B17: Source: DBE, www.education.gov.za, Education Facility Management System (EFMS) Report as at 03 July 2024, p11
B19: a One site can have more than one communication mode.
B20: b Figures may not add up vertically, owing to rounding.

Sheet Public schools and laboratories
B2: Public schools and laboratory facilities by province, 2024
E4: —With a laboratory— | G4: —Without a laboratory—
C5: Province | D5: Sites | E5: Number | F5: Proportion | G5: Number | H5: Proportion
C6: Eastern Cape | D6: 5016 | E6: 372 | F6: 0.074 | G6: 4644 | H6: 0.926
C7: Free State | D7: 937 | E7: 673 | F7: 0.718 | G7: 264 | H7: 0.282
C8: Gauteng | D8: 2061 | E8: 927 | F8: 0.45 | G8: 1134 | H8: 0.55
C9: KwaZulu-Natal | D9: 5790 | E9: 782 | F9: 0.135 | G9: 5008 | H9: 0.865
C10: Limpopo | D10: 3622 | E10: 228 | F10: 0.063 | G10: 3394 | H10: 0.937
C11: Mpumalanga | D11: 1632 | E11: 217 | F11: 0.133 | G11: 1415 | H11: 0.867
C12: North West | D12: 1443 | E12: 184 | F12: 0.128 | G12: 1259 | H12: 0.872
C13: Northern Cape | D13: 543 | E13: 56 | F13: 0.103 | G13: 487 | H13: 0.897
C14: Western Cape | D14: 1467 | E14: 521 | F14: 0.355 | G14: 946 | H14: 0.645
C15: South Africa | D15: 22511 | E15: 3960 | F15: 0.176 | G15: 18551 | H15: 0.824
C16: Source: DBE, www.education.gov.za, Education Facility Management System (EFMS) Report as at 03 July 2024, p8

Sheet Public schools & computer labs
B2: Public schools and computer facilities by province, 2024
D4: —With a computer facility— | F4: —Without a computer facility—
B5: Province | C5: Sites | D5: Number | E5: Proportion | F5: Number | G5: Proportion
B6: Eastern Cape | C6: 5016 | D6: 580 | E6: 0.116 | F6: 4436 | G6: 0.884
B7: Free State | C7: 937 | D7: 665 | E7: 0.71 | F7: 272 | G7: 0.29
B8: Gauteng | C8: 2061 | D8: 1687 | E8: 0.819 | F8: 374 | G8: 0.181
B9: KwaZulu-Natal | C9: 5790 | D9: 2023 | E9: 0.349 | F9: 3767 | G9: 0.651
B10: Limpopo | C10: 3622 | D10: 618 | E10: 0.171 | F10: 3004 | G10: 0.829
B11: Mpumalanga | C11: 1632 | D11: 551 | E11: 0.338 | F11: 1081 | G11: 0.662
B12: North West | C12: 1443 | D12: 552 | E12: 0.383 | F12: 891 | G12: 0.617
B13: Northern Cape | C13: 543 | D13: 100 | E13: 0.184 | F13: 443 | G13: 0.816
B14: Western Cape | C14: 1467 | D14: 896 | E14: 0.611 | F14: 571 | G14: 0.389
B15: South Africa | C15: 22511 | D15: =SUM(D6:D14) -> 7672 | E15: 0.341 | F15: =SUM(F6:F14) -> 14839 | G15: 0.659
B16: Source: DBE, www.education.gov.za, Education Facility Management System (EFMS) Report as at 03 July 2024, p9

Sheet Public schools and libraries.
B2: Public schools and library facilities by province, 2024
D4: —With a library— | F4: —With a stocked library— | H4: —Without a library—
B5: Province | C5: Sites | D5: Number | E5: Proportion | F5: Number | G5: Proportion | H5: Number | I5: Proportion
B6: Eastern Cape | C6: 5016 | D6: 364 | E6: 0.073 | F6: 215 | G6: 0.591 | H6: 4652 | I6: 0.927
B7: Free State | C7: 937 | D7: 645 | E7: 0.688 | F7: 201 | G7: 0.312 | H7: 292 | I7: 0.312
B8: Gauteng | C8: 2061 | D8: 1403 | E8: 0.681 | F8: 881 | G8: 0.628 | H8: 658 | I8: 0.319
B9: KwaZulu-Natal | C9: 5790 | D9: 1509 | E9: 0.261 | F9: 995 | G9: 0.659 | H9: 4281 | I9: 0.739
B10: Limpopo | C10: 3622 | D10: 314 | E10: 0.087 | F10: 108 | G10: 0.344 | H10: 3308 | I10: 0.913
B11: Mpumalanga | C11: 1632 | D11: 341 | E11: 0.209 | F11: 159 | G11: 0.466 | H11: 1291 | I11: 0.791
B12: North West | C12: 1443 | D12: 364 | E12: 0.252 | F12: 197 | G12: 1 | H12: 1079 | I12: 0.748
B13: Northern Cape | C13: 543 | D13: 107 | E13: 0.197 | F13: 107 | G13: 0.541 | H13: 436 | I13: 0.803
B14: Western Cape | C14: 1467 | D14: 816 | E14: 0.556 | F14: 449 | G14: 0.55 | H14: 651 | I14: 0.444
B15: South Africa | C15: 22511 | D15: =SUM(D6:D14) -> 5863 | E15: 0.26 | F15: 3312 | G15: 0.565 | H15: 16648 | I15: 0.74
B16: Source: DBE, www.education.gov.za, Education Facility Management System (EFMS) Report as at 03 July 2024, p7

Sheet Pub.schools & sportsfacilities
B2: Public schools and sporting facilities by province, 2024
D4: — With sports facilitiesa — | N4: Without sports facilities
B5: Province | C5: Sites | D5: Athletics | E5: Tennis | F5: Combi courtb | G5: Hockey | H5: Netball | I5: Swimming pool | J5: Soccer | K5: Cricket | L5: Rugby | M5: Squash court
B6: Eastern Cape | C6: 5016 | D6: 153 | E6: 170 | F6: 132 | G6: 80 | H6: 1485 | I6: 72 | J6: 1214 | K6: 177 | L6: 476 | M6: 19 | N6: 3045 | O6: 0.607
B7: Free State | C7: 937 | D7: 64 | E7: 142 | F7: 64 | G7: 49 | H7: 534 | I7: 16 | J7: 457 | K7: 113 | L7: 42 | M7: 6 | N7: 253 | O7: 0.27
B8: Gauteng | C8: 2061 | D8: 428 | E8: 430 | F8: 358 | G8: 244 | H8: 1277 | I8: 168 | J8: 1074 | K8: 456 | L8: 236 | M8: 9 | N8: 505 | O8: 0.245
B9: KwaZulu-Natal | C9: 5790 | D9: 209 | E9: 160 | F9: 317 | G9: 129 | H9: 1967 | I9: 185 | J9: 1622 | K9: 275 | L9: 121 | M9: 17 | N9: 3143 | O9: 0.543
B10: Limpopo | C10: 3622 | D10: 86 | E10: 109 | F10: 74 | G10: 40 | H10: 2149 | I10: 43 | J10: 1617 | K10: 68 | L10: 37 | M10: 2 | N10: 1179 | O10: 0.326
B11: Mpumalanga | C11: 1632 | D11: 78 | E11: 121 | F11: 134 | G11: 58 | H11: 744 | I11: 22 | J11: 694 | K11: 69 | L11: 278 | M11: 2 | N11: 574 | O11: 0.352
B12: North West | C12: 1443 | D12: 127 | E12: 103 | F12: 396 | G12: 50 | H12: 687 | I12: 33 | J12: 807 | K12: 93 | L12: 81 | M12: 6 | N12: 297 | O12: 0.206
B13: Northern Cape | C13: 543 | D13: 47 | E13: 125 | F13: 47 | G13: 27 | H13: 278 | I13: 20 | J13: 168 | K13: 53 | L13: 83 | M13: 2 | N13: 192 | O13: 0.354
B14: Western Cape | C14: 1467 | D14: 87 | E14: 232 | F14: 37 | G14: 113 | H14: 854 | I14: 23 | J14: 744 | K14: 156 | L14: 105 | M14: 1 | N14: 396 | O14: 0.27
B15: South Africac | C15: 22511 | D15: 1279 | E15: 1592 | F15: 1559 | G15: 790 | H15: 9975 | I15: 582 | J15: 8397 | K15: 1460 | L15: 1459 | M15: 64 | N15: 9584 | O15: 0.426
B17: Source: DBE, www.education.gov.za, Education Facility Management System (EFMS) Report as at 03 July 2024, p10
B18: a One site can have more than one sporting facility.
B19: b Caters for more than one sporting code.
B20: c Figures may not add up vertically, owing to rounding.

Sheet Pub schools & safety.24
A2: Safety in schools
A4: Public schools and fencing/security by province, 2024
C6: —With fencing/security—
A7: Province | B7: Sitesa | C7: Palisade | D7: Wire/Razor wire | E7: Precast wall | F7: Brick wall | G7: Electric fence | H7: Gate | I7: Access control | J7: Security room/guard house room | K7: Alarm system | L7: Security lights | M7: Surveillance camera
A8: Eastern Cape | B8: 5016 | C8: 408 | D8: 6477 | E8: 24 | F8: 371 | G8: 14 | H8: 4610 | I8: 141 | J8: 381 | K8: 445 | L8: 402 | M8: 151
A9: Free State | B9: 937 | C9: 287 | D9: 800 | E9: 4 | F9: 87 | G9: 4 | H9: 850 | I9: 40 | J9: 50 | K9: 67 | L9: 93 | M9: 70
A10: Gauteng | B10: 2061 | C10: 1529 | D10: 982 | E10: 113 | F10: 568 | G10: 31 | H10: 1930 | I10: 954 | J10: 531 | K10: 146 | L10: 587 | M10: 194
A11: KwaZulu-Natal | B11: 5790 | C11: 546 | D11: 8482 | E11: 101 | F11: 576 | G11: 19 | H11: 5473 | I11: 433 | J11: 2172 | K11: 159 | L11: 434 | M11: 184
A12: Limpopo | B12: 3622 | C12: 575 | D12: 4193 | E12: 13 | F12: 470 | G12: 7 | H12: 3336 | I12: 167 | J12: 354 | K12: 107 | L12: 110 | M12: 28
A13: Mpumalanga | B13: 1632 | C13: 558 | D13: 1418 | E13: 7 | F13: 100 | G13: 7 | H13: 1457 | I13: 370 | J13: 463 | K13: 468 | L13: 115 | M13: 110
A14: North West | B14: 1443 | C14: 421 | D14: 1889 | E14: 19 | F14: 212 | G14: 12 | H14: 1362 | I14: 170 | J14: 220 | K14: 411 | L14: 281 | M14: 223
A15: Northern Cape | B15: 543 | C15: 208 | D15: 523 | E15: 2 | F15: 31 | G15: 5 | H15: 512 | I15: 68 | J15: 14 | K15: 167 | L15: 39 | M15: 45
A16: Western Cape | B16: 1467 | C16: 183 | D16: 1311 | E16: 17 | F16: 91 | G16: 13 | H16: 1285 | I16: 350 | J16: 94 | K16: 200 | L16: 156 | M16: 89
A17: South Africab | B17: 22511 | C17: 4715 | D17: 26075 | E17: 300 | F17: =SUM(F8:F16) -> 2506 | G17: 112 | H17: 20815 | I17: 2693 | J17: 4279 | K17: 2170 | L17: =SUM(L8:L16) -> 2217 | M17: 1094
A19: Source: DBE, www.education.gov.za, ducation Facility Management System (EFMS) Report as at 03 July 2024, p6
A21: a One site can have more than one fencing/security type.
A22: b Figures may not add up vertically, owing to rounding.

Sheet Independent schools

Sheet Independent schools.2000&23
C2: Independent schools
C4: Number of schools
C6: Independent schoolsa by province, 2000 and 2023
C8: Province | D8: 2000 | E8: 2023 | F8: Change
C9: Eastern Cape | D9: 39 | E9: 269 | F9: =(E9-D9)/D9 -> 5.897435897
C10: Free State | D10: 61 | E10: 84 | F10: 0.3770491803
C11: Gauteng | D11: 365 | E11: 918 | F11: 1.515068493
C12: KwaZulu-Natal | D12: 198 | E12: 230 | F12: 0.1616161616
C13: Limpopo | D13: 60 | E13: 217 | F13: 2.616666667
C14: Mpumalanga | D14: 62 | E14: 139 | F14: 1.241935484
C15: North West | D15: 36 | E15: 106 | F15: 1.944444444
C16: Northern Cape | D16: 24 | E16: 43 | F16: 0.7916666667
C17: Western Cape | D17: 126 | E17: 319 | F17: 1.531746032
C18: South Africa | D18: 971 | E18: 2325 | F18: 1.394438723
C19: Source: DBE, Education Statistics in South Africa at a Glance, 2000, p1; School Realities 2023, December 2023, Table 2, p1
C20: a Independent or private schools are owned by individuals or organisations and are established in line with section 29(3) of the Constitution and section 45 of the South African Schools Act of 1996. Section 46 of the Act states that an independent school must not have standards inferior to those of comparable public schools, its admission policy must not discriminate on grounds of race, and it must comply with the grounds for registration of the provincial education department it is registered under.

Sheet Pupils & teachers.00&23.
A2: Pupils and teachers
A4: Pupils and teachers at independent schools by province, 2000 and 2023
B6: —Pupils— | D6: —Teachers— | F6: —Pupil-to-teacher ratioa—
A7: Province | B7: 2000 | C7: 2023 | D7: 2000 | E7: 2023 | F7: 2000 | G7: 2023
A8: Eastern Cape | B8: 8471 | C8: 78031 | D8: 453 | E8: 4361 | F8: 19 to 1 | G8: 18 to 1
A9: Free State | B9: 19887 | C9: 21227 | D9: 486 | E9: 1269 | F9: 41 to 1 | G9: 17 to 1
A10: Gauteng | B10: 117531 | C10: 346555 | D10: 7004 | E10: 20830 | F10: 17 to 1 | G10: 17 to 1
A11: KwaZulu-Natal | B11: 43739 | C11: 62750 | D11: 2921 | E11: 4591 | F11: 15 to 1 | G11: 14 to 1
A12: Limpopo | B12: 15247 | C12: 85226 | D12: 683 | E12: 4095 | F12: 22 to 1 | G12: 21 to 1
A13: Mpumalanga | B13: 13180 | C13: 37077 | D13: 661 | E13: 2336 | F13: 20 to 1 | G13: 16 to 1
A14: North West | B14: 7650 | C14: 29436 | D14: 508 | E14: 1508 | F14: 15 to 1 | G14: 20 to 1
A15: Northern Cape | B15: 2445 | C15: 7490 | D15: 157 | E15: 601 | F15: 16 to 1 | G15: 12 to 1
A16: Western Cape | B16: 28133 | C16: 70316 | D16: 2108 | E16: 5670 | F16: 13 to 1 | G16: 12 to 1
A17: South Africa | B17: 256283 | C17: 738108 | D17: 14981 | E17: 45261 | F17: 17 to 1 | G17: 16 to 1
A18: Source: DBE, Education Statistics in South Africa at a Glance, 2000, February 2002, p4; School Realities 2023, December 2023, Table 2, p1
A19: a CRA calculations.

Sheet School examinations

Sheet National Senior. Certi.
A2: Examinations and output
A4: Public examinations
A6: National Senior Certificate (NSC)
A8: The minimum duration of an NSC is three years, namely grades 10, 11 and 12. In order to qualify for the NSC, a pupil must register for a minimum of seven subjects, and provide full evidence of a school-based assessment for each subject. To obtain the NSC, a candidate must:
A9: • complete the programme requirements for grades 10, 11 and 12 separately and fulfil the assessment standards for each of the three grades; and
A10: • comply with internal assessment requirements for grades 10, 11 and 12 and with the external assessment requirements of grade 12.
A11: In the NSC final examinations at grade 12, a candidate needs to:
A12: • achieve 40% in three subjects, one of which must be an official language studied as a home language;
A13: • achieve 30% in three additional subjects; and
A14: • provide full evidence of the school-based assessment component for subjects failed.
A16: NSC subjects are as follows:
A17: • Accounting | B17: • Information technology
A18: • Agricultural science | B18: • Languages
A19: • Business studies | B19: • Life sciences
A20: • Consumer studies | B20: • Mathematics
A21: • Dramatic arts | B21: • Mathematical literacy
A22: • Economics | B22: • Music
A23: • Engineering graphics and design | B23: • Physical science
A24: • Geography | B24: • Religious studies
A25: • History | B25: • Visual arts
A27: Higher Education Admission
A28: a) Bachelor's degree: In order to be admitted to university to study towards a (bachelor's) degree, one needs an NSC (at least six subjects), having achieved not less than 30% in the language of instruction; 40% or more in their home language; and 50% in four subjects*.
A29: b) Diploma: To be admitted to study towards a diploma, one needs an NSC (at least six subjects), having achieved not less than 30% in two subjects, including the language of instruction; and 40% or more in four subjects, one of which is their official language studied as a home language*.
A30: c) Higher Certificate: In order to be admitted to study towards a higher certificate, one needs an NSC (at least six subjects), having achieved not less than 30% in three subjects, including the language of instruction; 40% in two subjects; and 40% in their home language.
A31: Endorsed NSC: This is for candidates who are unable to meet the stipulated requirements owing to impairment (visual, oral and hearing) and other disorders. For an endorsed NSC, candidates only need to register for five subjects, (namely first additional language, mathematics/mathematical literacy, life orientation and two other subjects) and are expected to achieve a minimum of 30% in each of those five subjects.
A32: Source: DBE, National Senior Certificate Examination Report 2018, 4 January 2018, pp6-7; National Senior Certificate Examination Report 2022, January 2023, Table 3.3.2, p23
A33: * Excluding life orientation.

Sheet Matric results

Sheet Overall NSC results.08-23
A2: Overall results
A4: National Senior Certificate (NSC) examination results (new curriculum), 2008-23
C6: —Pass— | E6: —Higher Certificate admission— | G6: —Diploma admission— | I6: —Bachelor's admission—
A7: Year | B7: Candidates | C7: Number | D7: Proportion | E7: Number | F7: Proportion | G7: Number | H7: Proportion | I7: Number | J7: Proportion
A8: 2008 | B8: 533561 | C8: 334744 | D8: 0.627 | E8: 102032 | F8: 0.191 | G8: 124258 | H8: 0.233 | I8: 107274 | J8: 0.201
A9: 2009 | B9: 552073 | C9: 334718 | D9: 0.606 | E9: 93356 | F9: 0.17 | G9: 131035 | H9: 0.238 | I9: 109697 | J9: 0.199
A10: 2010 | B10: 537543 | C10: 364513 | D10: 0.678 | E10: 91241 | F10: 0.171 | G10: 146224 | H10: 0.272 | I10: 126371 | J10: 0.235
A11: 2011 | B11: 496090 | C11: 348114 | D11: 0.702 | E11: 85296 | F11: 0.172 | G11: 141584 | H11: 0.285 | I11: 120767 | J11: 0.243
A12: 2012 | B12: 511152 | C12: 377829 | D12: 0.739 | E12: 88604 | F12: 0.173 | G12: 152881 | H12: 0.299 | I12: 136047 | J12: 0.266
A13: 2013 | B13: 562112 | C13: 439779 | D13: 0.782 | E13: 94556 | F13: 0.168 | G13: 173292 | H13: 0.308 | I13: 171755 | J13: 0.306
A14: 2014 | B14: 532860 | C14: 403874 | D14: 0.758 | E14: 86022 | F14: 0.161 | G14: 166689 | H14: 0.313 | I14: 150752 | J14: 0.283
A15: 2015 | B15: 644536 | C15: 455825 | D15: 0.707 | E15: 105770 | F15: 0.164 | G15: 183720 | H15: 0.285 | I15: 166263 | J15: 0.258
A16: 2016 | B16: 610178 | C16: 442672 | D16: 0.725 | E16: 100486 | F16: 0.165 | G16: 179619 | H16: 0.294 | I16: 162374 | J16: 0.266
A17: 2017 | B17: 534484 | C17: 401307 | D17: 0.751 | E17: 86265 | F17: 0.161 | G17: 161333 | H17: 0.302 | I17: 153610 | J17: 0.287
A18: 2018 | B18: 512735 | C18: 400632 | D18: 0.781 | E18: 86790 | F18: 0.169 | G18: 141700 | H18: 0.276 | I18: 172043 | J18: 0.336
A19: 2019 | B19: 504303 | C19: 409906 | D19: 0.813 | E19: 78984 | F19: 0.157 | G19: 144672 | H19: 0.287 | I19: 186058 | J19: 0.369
A20: 2020 | B20: 578468 | C20: 440598 | D20: 0.762 | E20: 79117 | F20: 0.137 | G20: 150600 | H20: 0.26 | I20: 210820 | J20: 0.364
A21: 2021 | B21: 704021 | C21: 537565 | D21: 0.764 | E21: 103859 | F21: 0.148 | G21: 177572 | H21: 0.252 | I21: 256031 | J21: 0.364
A22: 2022 | B22: 725146 | C22: 580555 | D22: =(C22/B22) -> 0.8006042921 | E22: 108159 | F22: =(E22/B22) -> 0.1491547909 | G22: 193357 | H22: =(G22/B22) -> 0.2666456134 | I22: 278814 | J22: =(I22/B22) -> 0.3844936054
A23: 2023 | B23: 691160 | C23: 572839 | D23: =(C23/B23) -> 0.8288080907 | E23: 101973 | F23: =(E23/B23) -> 0.1475389201 | G23: 187876 | H23: =(G23/B23) -> 0.2718270733 | I23: 282894 | J23: =(I23/B23) -> 0.4093032004
A24: 2008-23 | B24: =(B23-B8)/B8 -> 0.2953720381 | C24: =(C23-C8)/C8 -> 0.7112748847 | D24: 0.3218629836 | E24: -0.0005782499608 | F24: -0.2275449211 | G24: 0.5119831319 | H24: 0.1666397997 | I24: 1.63711617 | J24: 1.03633433
A25: Source: DBE, National Senior Certificate Examination Reports, 2009-22; 2023 NSC Exam Results Technical Report, January 2024, Table 6.1.4, p38

Sheet Grade 1 class 2012
B2: The grade 1 class of 2012
B4: Class progress | C4: Number | D4: Proportion
B5: Grade 1 in 2012 | C5: 1208973 | D5: 1 | H5: Grade 1 in 2012 | I5: 1208973
B6: Grade 10 in 2021 | C6: 1081618 | D6: =(C6/C5) -> 0.8946585242 | H6: Grade 10 in 2021 | I6: 1081618
B7: Grade 11 in 2022 | C7: 928050 | D7: =(C7/C5) -> 0.7676350092 | H7: Grade 11 in 2022 | I7: 928050
B8: Grade 12 in 2023 | C8: 740566 | D8: =(C8/C5) -> 0.6125579314 | H8: Grade 12 in 2023 | I8: 740566
B9: NSC candidates who wrote in 2023 | C9: 691160 | D9: =(C9/C5) -> 0.5716918409 | H9: NSC candidates who wrote in 2023 | I9: 691160
B10: NSC passes in 2023 | C10: 572839 | D10: =(C10/C5) -> 0.4738228232 | H10: NSC passes in 2023 | I10: 572839
B11: Bachelor's passes in 2023 | C11: 282894 | D11: =(C11/C5) -> 0.2339953001 | H11: Bachelor's passes in 2023 | I11: 282894
B12: Source: DBE, School Realities 2012, September 2012, Table 4, pp2-3; School Realities 2021, January 2022, Table 4, pp2-3; School Realities 2022, December 2022, Table 4, pp2-3; School Realities 2023, December 2023, Table 4, pp2-3; 2023 NSC Exam Results Technical Report, January 2024, Table 6.1.4, p38

Sheet Grade 12 class 2022
B2: The grade 12 class of 2023
H3: BC
B4: Achievement | C4: Number | D4: Proportion of totala
B5: Higher certificate admission | C5: 101973 | D5: =(C5/C11) -> 0.1475389201 | H5: Candidates who wrote | I5: 691160
B6: Diploma admission | C6: 187876 | D6: =(C6/C11) -> 0.2718270733 | H6: Passed | I6: 572839
B7: Bachelor’s admission | C7: 282894 | D7: =(C7/C11) -> 0.4093032004 | H7: Failed | I7: 118321
B8: NSCb | C8: 96 | D8: =(C8/C11) -> 0.0001388969269 | H8: Higher certificate admission | I8: 101973
B9: Passed/Achieved | C9: 572839 | D9: =(C9/C11) -> 0.8288080907 | H9: Diploma admission | I9: 187876
B10: Failed | C10: =(C11-C9) -> 118321 | D10: =(C10/C11) -> 0.1711919093 | H10: Bachelor’s admission | I10: 282894
B11: Totalc | C11: 691160 | D11: 1
B12: Source: DBE, 2023 NSC Exam Results Technical Report, January 2024, Table 6.1.4, p38
B13: a CRA calculations.
B14: b Candidates who obtained an NSC but did not satisfy the minimum requirements to study for a higher certificate, diploma, or bachelor's degree.
B15: c Full-time candidates only. | J15: Higher certificate admission | K15: 0.1475389201
J16: Diploma admission | K16: 0.2718270733
J17: Bachelor’s admission | K17: 0.4093032004
J18: NSC | K18: 0.0001388969269
J19: Fail | K19: 0.171

Sheet Overall NSC results 2023
A2: NSC passes by province, 2023
B4: Total wrote | C4: —Higher Certificate admission— | E4: —Diploma admission— | G4: —Bachelor's admission— | I4: Total NSC
A5: Province | C5: Number | D5: Proportion | E5: Number | F5: Proportion | G5: Number | H5: Proportion
A6: EC | B6: 95697 | C6: 13992 | D6: =(C6/B6) -> 0.14621148 | E6: 25997 | F6: =(E6/B6) -> 0.2716595087 | G6: 37898 | H6: =(G6/B6) -> 0.3960207739 | I6: 0.814
A7: FS | B7: 34451 | C7: 4952 | D7: =(C7/B7) -> 0.1437403849 | E7: 10282 | F7: =(E7/B7) -> 0.2984528751 | G7: 15414 | H7: =(G7/B7) -> 0.447418072 | I7: 0.89
A8: GAU | B8: 127697 | C8: 17364 | D8: 0.1359781357 | E8: 35038 | F8: 0.2743838931 | G8: 56552 | H8: 0.4428608346 | I8: 0.854
A9: KZN | B9: 157911 | C9: 20435 | D9: 0.1294083376 | E9: 43769 | F9: 0.2771751176 | G9: 72099 | H9: 0.4565799723 | I9: 0.864
A10: LIM | B10: 93533 | C10: 15894 | D10: 0.1699293298 | E10: 24481 | F10: 0.2617364994 | G10: 34018 | H10: 0.3637005121 | I10: 0.795
A11: MPU | B11: 65534 | C11: 11196 | D11: 0.170842616 | E11: 17412 | F11: 0.2656941435 | G11: 21819 | H11: 0.3329416791 | I11: 0.77
A12: NW | B12: 41418 | C12: 7093 | D12: 0.1712540441 | E12: 11647 | F12: 0.2812062388 | G12: 15061 | H12: 0.3636341687 | I12: 0.816
A13: NC | B13: 12842 | C13: 2222 | D13: 0.1730260084 | E13: 3665 | F13: 0.2853916835 | G13: 3851 | H13: 0.2998754088 | I13: 0.758
A14: WC | B14: 62077 | C14: 8825 | D14: 0.1421621535 | E14: 15585 | F14: 0.2510591685 | G14: 26182 | H14: 0.4217665158 | I14: 0.815
A15: SA | B15: 691160 | C15: 101973 | D15: 0.1475389201 | E15: 187876 | F15: 0.2718270733 | G15: 282894 | H15: 0.4093032004 | I15: 0.829
A16: Source: DBE, 2023 NSC Exam Results Technical Report, January 2024, Table 6.1.4, p38

Sheet Bachelor admission
A2: NSC passesa by province, 2019
A4: Province | C4: Number | D4: Proportion | E4: Number | F4: Proportion | G4: Number | H4: Proportion | N4: Bachelor's admission pass rate, 2018
M5: 2008 | N5: 2023
A6: EC | B6: 63198 | C6: 10055 | D6: 0.159 | E6: 17816 | F6: 0.282 | G6: 20419 | H6: 0.322 | I6: 0.765 | L6: EC | M6: 0.284 | N6: 0.3960207739
A7: FS | B7: 25572 | C7: 4051 | D7: 0.158 | E7: 8555 | F7: 0.335 | G7: 9992 | H7: 0.391 | I7: 0.884 | L7: FS | M7: 0.292 | N7: 0.447418072
A8: GAU | B8: 97829 | C8: 12193 | D8: 0.125 | E8: 29616 | F8: 0.303 | G8: 43494 | H8: 0.445 | I8: 0.872 | L8: GAU | M8: 0.399 | N8: 0.4428608346
A9: KZN | B9: 116937 | C9: 18086 | D9: 0.155 | E9: 32696 | F9: 0.28 | G9: 44189 | H9: 0.378 | I9: 0.813 | L9: KZN | M9: 0.317 | N9: 0.4565799723
A10: LIM | B10: 70847 | C10: 14270 | D10: 0.201 | E10: 18558 | F10: 0.262 | G10: 19022 | H10: 0.268 | I10: 0.732 | L10: LIM | M10: 0.232 | N10: 0.3637005121
A11: MPU | B11: 43559 | C11: 7627 | D11: 0.175 | E11: 13124 | F11: 0.301 | G11: 14228 | H11: 0.327 | I11: 0.803 | L11: MPU | M11: 0.253 | N11: 0.3329416791
A12: NW | B12: 26819 | C12: 4628 | D12: 0.173 | E12: 8677 | F12: 0.324 | G12: 9964 | H12: 0.372 | I12: 0.868 | L12: NW | M12: 0.285 | N12: 0.3636341687
A13: NC | B13: 9138 | C13: 1597 | D13: 0.175 | E13: 2624 | F13: 0.287 | G13: 2769 | H13: 30.3% | I13: 0.765 | L13: NC | M13: 0.276 | N13: 0.2998754088
A14: WC | B14: 50404 | C14: 6477 | D14: 0.129 | E14: 13006 | F14: 0.258 | G14: 21981 | H14: 0.436 | I14: 0.823 | L14: WC | M14: 0.421 | N14: 0.4217665158
A15: SA | B15: 504303 | C15: 78984 | D15: 0.157 | E15: 144672 | F15: 0.287 | G15: 186058 | H15: 0.369 | I15: 0.813 | L15: SA | M15: 0.321 | N15: 0.4093032004
L16: Source: DBE, National Examinations and Assessment: Report on the National Senior Certificate Examination Results 2009, 7 January 2010, Annexure A, p78; National Senior Certificate (NSC) Examination Report, January 2022, Table 6.2.2, p43

Sheet Resultsbyraceselsubs.23
B2: Results for selected subjects by race, 2023
B4: Subject | C4: Number of candidates | D4: Number achieved 40% and above | E4: Proportion achieved 40% and above | F4: Number achieved 50% and above | G4: Proportion achieved 50% and above
B5: Accounting | C5: =SUM(C6:C10) -> 100996 | D5: =SUM(D6:D10) -> 52537 | E5: =(D5/C5) -> 0.5201889184 | F5: =SUM(F6:F10) -> 32302 | G5: =(F5/C5) -> 0.3198344489
B6: Black | C6: 88404 | D6: 43697 | E6: 0.4942875888 | F6: 25394 | G6: 0.2872494457
B7: Coloured | C7: 4593 | D7: 2265 | E7: 0.4931417374 | F7: 1424 | G7: 0.3100370128
B8: Indian/Asian | C8: 3172 | D8: 2431 | E8: 0.7663934426 | F8: 1955 | G8: 0.6163303909
B9: White | C9: 4767 | D9: 4105 | E9: 0.8611285924 | F9: 3497 | G9: 0.733585064
B10: Other | C10: 60 | D10: 39 | E10: 0.65 | F10: 32 | G10: 0.5333333333
B11: Agricultural sciences | C11: =SUM(C12:C16) -> 115879 | D11: =SUM(D12:D16) -> 66166 | E11: =(D11/C11) -> 0.5709921556 | F11: =SUM(F12:F16) -> 40884 | G11: =(F11/C11) -> 0.3528162998
B12: Black | C12: 115023 | D12: 65607 | E12: 0.5703815759 | F12: 40559 | G12: 0.3526164332
B13: Coloured | C13: 179 | D13: 71 | E13: 0.3966480447 | F13: 35 | G13: 0.1955307263
B14: Indian/Asian | C14: 26 | D14: 13 | E14: 0.5 | F14: 6 | G14: 0.2307692308
B15: White | C15: 648 | D15: 473 | E15: 0.7299382716 | F15: 283 | G15: 0.4367283951
B16: Other | C16: 3 | D16: 2 | E16: 0.6666666667 | F16: 1 | G16: 0.3333333333
B17: Business studies | C17: =SUM(C18:C22) -> 227678 | D17: =SUM(D18:D22) -> 141639 | E17: 0.6221022672 | F17: =SUM(F18:F22) -> 97752 | G17: 0.4293431952
B18: Black | C18: 193468 | D18: 121324 | E18: 0.6271011227 | F18: 83495 | G18: 0.4315700788
B19: Coloured | C19: 20908 | D19: 10650 | E19: 0.5093744021 | F19: 6937 | G19: 0.3317868758
B20: Indian/Asian | C20: 5070 | D20: 3734 | E20: 0.7364891519 | F20: 2875 | G20: 0.567061144
B21: White | C21: 8071 | D21: 5794 | E21: 0.7178788254 | F21: 4334 | G21: 0.5369842647
B22: Other | C22: 161 | D22: 137 | E22: 0.850931677 | F22: 111 | G22: 0.6894409938
B23: Economics | C23: =SUM(C24:C28) -> 123661 | D23: =SUM(D24:D28) -> 60958 | E23: 0.4929444206 | F23: =SUM(F24:F28) -> 35255 | G23: 0.2850939261
B24: Black | C24: 116023 | D24: 56632 | E24: 0.4881101161 | F24: 32208 | G24: 0.277600131
B25: Coloured | C25: 5111 | D25: 2316 | E25: 0.4531402857 | F25: 1452 | G25: 0.2840931325
B26: Indian/Asian | C26: 922 | D26: 647 | E26: 0.7017353579 | F26: 452 | G26: 0.4902386117
B27: White | C27: 1569 | D27: 1336 | E27: 0.8514977693 | F27: 1123 | G27: 0.7157425112
B28: Other | C28: 36 | D28: 27 | E28: 0.75 | F28: 20 | G28: 0.5555555556
B29: Geography | C29: =SUM(C30:C34) -> 344285 | D29: =SUM(D30:D34) -> 211365 | E29: 0.6139245102 | F29: =SUM(F30:F34) -> 128547 | G29: 0.3733738037
B30: Black | C30: 316817 | D30: 194538 | E30: 0.6140390194 | F30: 117607 | G30: 0.3712142972
B31: Coloured | C31: 18154 | D31: 8806 | E31: 0.4850721604 | F31: 4682 | G31: 0.257904594
B32: Indian/Asian | C32: 3606 | D32: 2997 | E32: 0.8311148087 | F32: 2302 | G32: 0.638380477
B33: White | C33: 5586 | D33: 4921 | E33: 0.880952381 | F33: 3866 | G33: 0.6920873613
B34: Other | C34: 122 | D34: 103 | E34: 0.8442622951 | F34: 90 | G34: 0.737704918
B35: History | C35: =SUM(C36:C40) -> 225709 | D35: =SUM(D36:D40) -> 154490 | E35: 0.6844653957 | F35: =SUM(F36:F40) -> 102468 | G35: 0.4539827831
B36: Black | C36: 197990 | D36: 138212 | E36: 0.6980756604 | F36: 92097 | G36: 0.4651598566
B37: Coloured | C37: 22189 | D37: 11493 | E37: =(D37/C37) -> 0.5179593492 | F37: 6396 | G37: =(F37/C37) -> 0.2882509351
B38: Indian/Asian | C38: 2291 | D38: 1936 | E38: 0.8450458315 | F38: 1528 | G38: 0.6669576604
B39: White | C39: 3133 | D39: 2766 | E39: 0.8828598787 | F39: 2380 | G39: 0.7596552825
B40: Other | C40: 106 | D40: 83 | E40: 0.7830188679 | F40: 67 | G40: 0.6320754717
B41: Life sciences | C41: =SUM(C42:C46) -> 379110 | D41: =SUM(D42:D46) -> 198374 | E41: 0.5232623777 | F41: =SUM(F42:F46) -> 123280 | G41: 0.3251826647
B42: Black | C42: 343436 | D42: 177602 | E42: 0.5171327409 | F42: 108249 | G42: 0.3151940973
B43: Coloured | C43: 18461 | D43: 7594 | E43: 0.4113536645 | F43: 4633 | G43: 0.2509614864
B44: Indian/Asian | C44: 6463 | D44: 4775 | E44: 0.738820981 | F44: 3752 | G44: 0.5805353551
B45: White | C45: 10533 | D45: 8248 | E45: 0.7830627552 | F45: 6532 | G45: 0.6201462072
B46: Other | C46: 217 | D46: 155 | E46: 0.7142857143 | F46: 114 | G46: 0.5253456221
B47: Mathematics | C47: =SUM(C48:C52) -> 261922 | D47: =SUM(D48:D52) -> 114284 | E47: 0.4363283726 | F47: =SUM(F48:F52) -> 72100 | G47: 0.2752727911
B48: Black | C48: 234886 | D48: 95325 | E48: 0.4058351711 | F48: 57467 | G48: 0.2446591112
B49: Coloured | C49: 8428 | D49: 4075 | E49: 0.4835073564 | F49: 2606 | G49: 0.3092074039
B50: Indian/Asian | C50: 5839 | D50: 4175 | E50: 0.7150196952 | F50: 3292 | G50: 0.5637951704
B51: White | C51: 12576 | D51: 10574 | E51: 0.840807888 | F51: 8628 | G51: 0.6860687023
B52: Other | C52: 193 | D52: 135 | E52: 0.6994818653 | F52: 107 | G52: 0.5544041451
B53: Mathematical literacy | C53: =SUM(C54:C58) -> 421833 | D53: =SUM(D54:D58) -> 239062 | E53: 0.5667219018 | F53: =SUM(F54:F58) -> 141807 | G53: 0.3361685786
B54: Black | C54: 364488 | D54: 200397 | E54: 0.5498041088 | F54: 113995 | G54: 0.3127537806
B55: Coloured | C55: 37573 | D55: 20604 | E55: 0.5483725015 | F55: 12583 | G55: 0.3348947382
B56: Indian/Asian | C56: 5103 | D56: 4249 | E56: 0.8326474623 | F56: 3307 | G56: 0.6480501666
B57: White | C57: 14465 | D57: 13646 | E57: 0.9433805738 | F57: 11797 | G57: 0.8155547874
B58: Other | C58: 204 | D58: 166 | E58: 0.8137254902 | F58: 125 | G58: 0.612745098
B59: Physical science | C59: =SUM(C60:C64) -> 206318 | D59: =SUM(D60:D64) -> 105365 | E59: 0.5106922324 | F59: =SUM(F60:F64) -> 64288 | G59: 0.3115966615
B60: Black | C60: 188679 | D60: 92417 | E60: 0.4898107368 | F60: 54177 | G60: 0.2871384733
B61: Coloured | C61: 5057 | D61: 2699 | E61: 0.5337156417 | F61: 1785 | G61: 0.3529760728
B62: Indian/Asian | C62: 4178 | D62: 3212 | E62: 0.7687888942 | F62: 2551 | G62: 0.6105792245
B63: White | C63: 8276 | D63: 6946 | E63: 0.8392943451 | F63: 5703 | G63: 0.689101015
B64: Other | C64: 128 | D64: 91 | E64: 0.7109375 | F64: 72 | G64: 0.5625
B65: Source: DBE, email communication, 16 July 2024

Sheet Resultsselsubs.#08-23
A2: Results for selected subjects (actual numbers), 2008-23
D4: Fail | E4: Pass | F4: Pass | G4: Pass
A5: Subject | B5: Year | C5: Wrote | D5: 0%-29% | E5: 30%-49% | F5: 50%-69% | G5: 70%-100%
A6: Accounting | B6: 2008 | C6: 176366 | D6: 68176 | E6: 77366 | F6: 22818 | G6: 7922
B7: 2010 | C7: 160991 | D7: 57629 | E7: 73742 | F7: 20714 | G7: 8906
B8: 2012 | C8: 134978 | D8: 46461 | E8: 53139 | F8: 23096 | G8: 12256
B9: 2014 | C9: 125987 | D9: 40300 | E9: 51335 | F9: 22271 | G9: 12068
B10: 2016 | C10: 128853 | D10: 39355 | E10: 54190 | F10: 22834 | G10: 12474
B11: 2018 | C11: 90278 | D11: 24797 | E11: 37978 | F11: 17580 | G11: 9923
B12: 2020 | C12: 92767 | D12: 22752 | E12: 38074 | F12: 20510 | G12: 11428
B13: 2022 | C13: 104798 | D13: 25805 | E13: 44553 | F13: 22332 | G13: 12104
B14: 2023 | C14: 100974 | D14: 23402 | E14: 45280 | F14: 21238 | G14: 11053
A15: Life sciences | B15: 2008 | C15: 298210 | D15: 87900 | E15: 144025 | F15: 49489 | G15: 16769
B16: 2010 | C16: 285496 | D16: 70614 | E16: 125467 | F16: 66827 | G16: 22588
B17: 2012 | C17: 278412 | D17: 84786 | E17: 124402 | F17: 51781 | G17: 17381
B18: 2014 | C18: 284298 | D18: 74512 | E18: 125130 | F18: 60342 | G18: 24304
B19: 2016 | C19: 347662 | D19: 102585 | E19: 152164 | F19: 67884 | G19: 25005
B20: 2018 | C20: 310041 | D20: 73456 | E20: 140133 | F20: 73184 | G20: 23259
B21: 2020 | C21: 319228 | D21: 92517 | E21: 134403 | F21: 69473 | G21: 22806
B22: 2022 | C22: 399007 | D22: 113783 | E22: 163884 | F22: 90702 | G22: 30619
B23: 2023 | C23: 379024 | D23: 92316 | E23: 163446 | F23: 92826 | G23: 30436
A24: Mathematics | B24: 2008 | C24: 300008 | D24: 163793 | E24: 73796 | F24: 37361 | G24: 25027
B25: 2010 | C25: 263034 | D25: 135249 | E25: 77590 | F25: 32361 | G25: 17834
B26: 2012 | C26: 225874 | D26: 103873 | E26: 70726 | F26: 35330 | G26: 15901
B27: 2014 | C27: 225458 | D27: 104924 | E27: 70152 | F27: 33874 | G27: 16491
B28: 2016 | C28: 265810 | D28: 129820 | E28: 79382 | F28: 38288 | G28: 18267
B29: 2018 | C29: 233858 | D29: 98220 | E29: 84932 | F29: 36275 | G29: 14426
B30: 2020 | C30: 233315 | D30: 107784 | E30: 73445 | F30: 35436 | G30: 16637
B31: 2022 | C31: 269734 | D31: 121380 | E31: 88887 | F31: 41992 | G31: 17458
B32: 2023 | C32: 262016 | D32: 95678 | E32: 94210 | F32: 50772 | G32: 21354
A33: Mathematical literacy | B33: 2008 | C33: 267236 | D33: 57084 | E33: 109948 | F33: 62794 | G33: 37392
B34: 2010 | C34: 280836 | D34: 37870 | E34: 128922 | F34: 85075 | G34: 28969
B35: 2012 | C35: 291341 | D35: 36722 | E35: 150401 | F35: 81696 | G35: 22480
B36: 2014 | C36: 312054 | D36: 49556 | E36: 155486 | F36: 82770 | G36: 24230
B37: 2016 | C37: 361865 | D37: 103956 | E37: 165193 | F37: 74978 | G37: 17676
B38: 2018 | C38: 294204 | D38: 80976 | E38: 138696 | F38: 59886 | G38: 14634
B39: 2020 | C39: 341363 | D39: 65673 | E39: 154957 | F39: 96361 | G39: 24339
B40: 2022 | C40: 450005 | D40: 64485 | E40: 224803 | F40: 129255 | G40: 31446
B41: 2023 | C41: 421835 | D41: 74605 | E41: 205413 | F41: 110303 | G41: 31508
A42: Physical science | B42: 2008 | C42: 217300 | D42: 98042 | E42: 86682 | F42: 25115 | G42: 7409
B43: 2010 | C43: 205364 | D43: 103753 | E43: 63758 | F43: 25214 | G43: 12639
B44: 2012 | C44: 179201 | D44: 69247 | E44: 66273 | F44: 30013 | G44: 13626
B45: 2014 | C45: 167997 | D45: 64644 | E45: 65596 | F45: 25784 | G45: 11965
B46: 2016 | C46: 192618 | D46: 73175 | E46: 71821 | F46: 31953 | G46: 15633
B47: 2018 | C47: 172319 | D47: 44400 | E47: 76448 | F47: 34657 | G47: 16809
B48: 2020 | C48: 174310 | D48: 59548 | E48: 68889 | F48: 31732 | G48: 14128
B49: 2021 | C49: 196968 | D49: 61050 | E49: 82070 | F49: 38196 | G49: 15648
B50: 2022 | C50: 209004 | D50: 53123 | E50: 92406 | F50: 46351 | G50: 17106
B51: 2023 | C51: 206399 | D51: 49031 | E51: 93050 | F51: 47327 | G51: 16989
A52: Source: DBE, email communication, 11 July 2024

Sheet Resultsby.sel.subs.08-23
A2: Results for selected subjects (proportions)a, 2008-23
D4: Fail | E4: Pass | F4: Pass | G4: Pass
A5: Subject | B5: Year | C5: Wrote | D5: 0%-29% | E5: 30%-49% | F5: 50%-69% | G5: 70%-100%
A6: Accounting | B6: 2008 | C6: 176366 | D6: 0.387 | E6: 0.439 | F6: 0.129 | G6: 0.045
B7: 2010 | C7: 160991 | D7: 0.358 | E7: 0.458 | F7: 0.129 | G7: 0.055
B8: 2012 | C8: 134978 | D8: 0.344 | E8: 0.394 | F8: 0.171 | G8: 0.091
B9: 2014 | C9: 125987 | D9: 0.32 | E9: 0.407 | F9: 0.177 | G9: 0.096
B10: 2016 | C10: 128853 | D10: 0.305 | E10: 0.421 | F10: 0.177 | G10: 0.097
B11: 2018 | C11: 90278 | D11: 0.275 | E11: 0.421 | F11: 0.195 | G11: 0.11
B12: 2020 | C12: 92767 | D12: 0.245259629 | E12: 0.4104261214 | F12: 0.221091552 | G12: 0.1231903586
B13: 2022 | C13: 104798 | D13: 0.2462356152 | E13: 0.425132159 | F13: 0.2130956698 | G13: 0.1154983874
B14: 2023 | C14: 100974 | D14: 0.231762632 | E14: 0.4484322697 | F14: 0.2103313724 | G14: 0.1094638224
A15: Life sciences | B15: 2008 | C15: 298210 | D15: 0.295 | E15: 0.483 | F15: 0.166 | G15: 0.056
B16: 2010 | C16: 285496 | D16: 0.247 | E16: 0.439 | F16: 0.234 | G16: 0.079
B17: 2012 | C17: 278412 | D17: 0.305 | E17: 0.447 | F17: 0.186 | G17: 0.062
B18: 2014 | C18: 284298 | D18: 0.262 | E18: 0.44 | F18: 0.212 | G18: 0.085
B19: 2016 | C19: 347662 | D19: 0.295 | E19: 0.438 | F19: 0.195 | G19: 0.072
B20: 2018 | C20: 310041 | D20: 0.237 | E20: 0.452 | F20: 0.236 | G20: 0.075
B21: 2020 | C21: 319228 | D21: 0.2898148032 | E21: 0.421025098 | F21: 0.2176281529 | G21: 0.07144110166
B22: 2022 | C22: 399007 | D22: 0.2851654232 | E22: 0.4107296363 | F22: 0.2273193202 | G22: 0.07673800209
B23: 2023 | C23: 379024 | D23: 0.2435624129 | E23: 0.4312286293 | F23: 0.2449079742 | G23: 0.08030098358
A24: Mathematics | B24: 2008 | C24: 300008 | D24: 0.546 | E24: 0.246 | F24: 0.125 | G24: 0.083
B25: 2010 | C25: 263034 | D25: 0.514 | E25: 0.295 | F25: 0.123 | G25: 0.068
B26: 2012 | C26: 225874 | D26: 0.46 | E26: 0.313 | F26: 0.156 | G26: 0.07
B27: 2014 | C27: 225458 | D27: 0.4653815788 | E27: 0.3111532968 | F27: 0.1502452785 | G27: 0.07314444375
B28: 2016 | C28: 265810 | D28: 0.4883939656 | E28: 0.2986418871 | F28: 0.1440427373 | G28: 0.06872201949
B29: 2018 | C29: 233858 | D29: 0.4199984606 | E29: 0.3631776548 | F29: 0.1551154974 | G29: 0.06168700665
B30: 2020 | C30: 233315 | D30: 0.461967726 | E30: 0.3147890191 | F30: 0.1518805049 | G30: 0.07130703127
B31: 2022 | C31: 269734 | D31: 0.4499988878 | E31: 0.3295357649 | F31: 0.1556792989 | G31: 0.06472302342
B32: 2023 | C32: 262016 | D32: 0.3651609062 | E32: 0.3595581949 | F32: 0.193774426 | G32: 0.08149883977
A33: Mathematical literacy | B33: 2008 | C33: 267236 | D33: 0.2136089449 | E33: 0.4114266042 | F33: 0.2349758266 | G33: 0.1399212681
B34: 2010 | C34: 280836 | D34: 0.1348473842 | E34: 0.4590650771 | F34: 0.3029348089 | G34: 0.1031527297
B35: 2012 | C35: 291341 | D35: 0.126044738 | E35: 0.5162369869 | F35: 0.2804136733 | G35: 0.07716044086
B36: 2014 | C36: 312054 | D36: 0.1588058477 | E36: 0.4982663257 | F36: 0.2652425542 | G36: 0.07764681754
B37: 2016 | C37: 361865 | D37: 0.2872784049 | E37: 0.4565044975 | F37: 0.2071988172 | G37: 0.04884694568
B38: 2018 | C38: 294204 | D38: 0.2752375902 | E38: 0.4714279887 | F38: 0.2035526369 | G38: 0.04974099604
B39: 2020 | C39: 341363 | D39: 0.1923846463 | E39: 0.4539361325 | F39: 0.2822830828 | G39: 0.07129946714
B40: 2022 | C40: 450005 | D40: 0.1432984078 | E40: 0.4995566716 | F40: 0.2872301419 | G40: 0.06987922356
B41: 2023 | C41: 421835 | D41: 0.1768582503 | E41: 0.4869510591 | F41: 0.2614837555 | G41: 0.07469271161
A42: Physical science | B42: 2008 | C42: 217300 | D42: 0.4511826967 | E42: 0.39890474 | F42: 0.1155775426 | G42: 0.0340957202
B43: 2010 | C43: 205364 | D43: 0.5052151302 | E43: 0.3104633724 | F43: 0.1227771177 | G43: 0.06154437974
B44: 2012 | C44: 179201 | D44: 0.3864208347 | E44: 0.3698249452 | F44: 0.1674823243 | G44: 0.07603752211
B45: 2014 | C45: 167997 | D45: 0.3847925856 | E45: 0.3904593534 | F45: 0.1534789312 | G45: 0.07122150991
B46: 2016 | C46: 192618 | D46: 0.3798969982 | E46: 0.3728675409 | F46: 0.1658879232 | G46: 0.08116063919
B47: 2018 | C47: 172319 | D47: 0.2576616624 | E47: 0.4436423145 | F47: 0.2011211764 | G47: 0.0975458307
B48: 2020 | C48: 174310 | D48: 0.3416212495 | E48: 0.3952096839 | F48: 0.1820434857 | G48: 0.08105100109
B49: 2022 | C49: 209004 | D49: 0.254172169 | E49: 0.4421255096 | F49: 0.2217708752 | G49: 0.08184532353
B50: 2023 | C50: 206399 | D50: 0.2375544455 | E50: 0.4508258276 | F50: 0.2292985916 | G50: 0.08231144531
A51: Source: DBE, email communication, 11 July 2024
A52: a CRA calculations.

Sheet Results by quintile.23
B2: Results by school quintilea, 2023
B4: Rank | C4: Higher certificate admission | D4: Diploma admission | E4: Bachelor’s admission | F4: NSCb/Endorsed Certificatec | G4: Total
B5: Quintile 1 | C5: 25420 | D5: 41638 | E5: 54412 | F5: 49 | G5: =SUM(C5:F5) -> 121519
B6: Quintile 2 | C6: 24313 | D6: 41285 | E6: 56219 | F6: 22 | G6: 121839
B7: Quintile 3 | C7: 26395 | D7: 46077 | E7: 64045 | F7: 18 | G7: 136535
B8: Quintile 4 | C8: 12465 | D8: 24693 | E8: 33919 | F8: 3 | G8: 71080
B9: Quintile 5 | C9: 10584 | D9: 27088 | E9: 58918 | F9: 3 | G9: 96593
B10: Quintile 99d | C10: 2532 | D10: 6586 | E10: 14662 | F10: 1 | G10: 23781
B11: Total | C11: =SUM(C5:C10) -> 101709 | D11: =SUM(D5:D10) -> 187367 | E11: =SUM(E5:E10) -> 282175 | F11: =SUM(F5:F10) -> 96 | G11: 572983
B12: Source: DBE, 2023 NSC Exam Results Technical Report, January 2024, Table 6.1.10, p43
B13: a The quintile ranking system is a poverty index used by the DBE for funding purposes (primarily school subsidies). The poorest schools fall under quintile 1 and the most well-off are in quintile 5.
B14: b Obtained an NSC but did not satisfy the minimum requirements to study for a higher certificate, diploma, or bachelor's degree.
B15: c This is for candidates who cannot, despite concessions granted, meet the stipulated NSC requirements (endorsed NSC candidates only need to offer five subjects, with a minimum pass of 30% in those five subjects).
B16: d Schools not captured or whose ranking is unknown. Includes independent and special schools, which are not ranked.

Sheet Mathslitertomaths.rat.8-23
C2: Ratio of mathematical literacy to mathematics candidates and passes, 2008-23
C4: Year | D4: Candidates | E4: Achieved 40% or above | F4: Achieved 50% or above
C5: 2008 | D5: 0.9 to 1 | E5: 1.6 to 1 | F5: 1.6 to 1
C6: 2010 | D6: 1.1 to 1 | E6: 2.2 to 1 | F6: 2.3 to 1
C7: 2012 | D7: 1.3 to 1 | E7: 2.2 to 1 | F7: 2.0 to 1
C8: 2014 | D8: 1.4 to 1 | E8: 2.3 to 1 | F8: 2.1 to 1
C9: 2016 | D9: 1.5 to 1 | E9: 2.0 to 1 | F9: 1.6 to 1
C10: 2018 | D10: 1.3 to 1 | E10: 1.5 to 1 | F10: 1.5 to 1
C11: 2019 | D11: 1.3 to 1 | E11: 2.1 to 1 | F11: 2.1 to 1
C12: 2020 | D12: 1.5 to 1 | E12: 2.4 to 1 | F12: 2.3 to 1
C13: 2021 | D13: 1.7 to 1 | E13: 2.2 to 1 | F13: 2.2 to 1
C14: 2022 | D14: 1.7 to 1 | E14: 2.8 to 1 | F14: 2.7 to 1
C15: 2023 | D15: 1.6 to 1 | E15: 2.1 to 1 | F15: 2.0 to 1
B16: Source: CRA calculations based on data from the DBE

Sheet Maths results by quintile #
A2: Mathematics results by school quintilea (actual numbers), 2023
A4: Rank | B4: 0%-19.9% | C4: 20%-39.9% | D4: 40%-59.9% | E4: 60%-79.9% | F4: 80%-100% | G4: Totalc
A5: Quintile 1 | B5: 15337 | C5: 24174 | D5: 16074 | E5: 5556 | F5: 1121 | G5: =SUM(B5:F5) -> 62262
A6: Quintile 2 | B6: 12575 | C6: 21937 | D6: 15095 | E6: 5430 | F6: 1192 | G6: 56229
A7: Quintile 3 | B7: 12725 | C7: 22579 | D7: 14982 | E7: 5738 | F7: 1480 | G7: 57504
A8: Quintile 4 | B8: 5921 | C8: 10505 | D8: 7885 | E8: 3565 | F8: 993 | G8: 28869
A9: Quintile 5 | B9: 3870 | C9: 12355 | D9: 14404 | E9: 9561 | F9: 3535 | G9: 43725
A10: Quintile 99b | B10: 1552 | C10: 4107 | D10: 4595 | E10: 2439 | F10: 639 | G10: 13332
A11: Totalc | B11: 51980 | C11: 95657 | D11: 73035 | E11: 32289 | F11: 8960 | G11: 262016
A12: Source: DBE, email communication, 23 January 2024
A13: a The quintile ranking system is a poverty index used by the DBE for funding purposes (primarily school subsidies).
A14: b Schools not captured or whose ranking is unknown.
A15: c Figures may not add up, owing to the exclusion of 'Other'/ 'Unspecified'.

Sheet Maths results by quintile %
A2: Mathematics results by school quintilea (proportions), 2022
A4: Rank | B4: 0%-19.9% | C4: 20%-39.9% | D4: 40%-59.9% | E4: 60%-79.9% | F4: 80%-100% | G4: Total
A5: Quintile 1 | B5: 0.2463300247 | C5: 0.3882625036 | D5: 0.2581671003 | E5: 0.08923580996 | F5: 0.01800456137 | G5: 1
A6: Quintile 2 | B6: 0.2236390475 | C6: 0.3901367622 | D6: 0.268455779 | E6: 0.0965693859 | F6: 0.02119902541 | G6: 1
A7: Quintile 3 | B7: 0.2212889538 | C7: 0.392650946 | D7: 0.2605383973 | E7: 0.09978436283 | F7: 0.02573734001 | G7: 1
A8: Quintile 4 | B8: 0.205098895 | C8: 0.3638851363 | D8: 0.2731303474 | E8: 0.1234888635 | F8: 0.03439675777 | G8: 1
A9: Quintile 5 | B9: 0.0885077187 | C9: 0.2825614637 | D9: 0.3294225272 | E9: 0.2186620926 | F9: 0.08084619783 | G9: 1
A10: Quintile 99b | B10: 0.1164116412 | C10: 0.3080558056 | D10: 0.3446594659 | E10: 0.1829432943 | F10: 0.04792979298 | G10: 1
A11: Total | B11: 0.1983848315 | C11: 0.3650807584 | D11: 0.2787425195 | E11: 0.1232329323 | F11: 0.03419638495 | G11: 1
A12: Source: DBE, email communication, 23 January 2024; CRA calculations

Sheet Throughput

Sheet Throughput.95-23
A2: Throughput
A4: Throughputa (Grades 10-12), 1995-97 and 2021-23
A6: The grade 10b class of 1995 (number) | C6: The grade 10b class of 2021 (number)
A7: Grade 10 enrolment 1995 | B7: 719190 | C7: Grade 10 enrolment 2021 | D7: 1081618 | H7: 1995-97 | I7: 2021-23
A8: Matric candidates 1997 | B8: 559233 | C8: Matric candidates 2023 | D8: 691160 | G8: Grade 10 enrolment 2021 | H8: 1 | I8: 1
A9: Matric passes 1997 | B9: 264795 | C9: Matric passes 2023 | D9: 572983 | G9: Matric candidates 2023 | H9: 0.778 | I9: 0.6390056378
A10: Bachelor’s passes 1997 | B10: 70127 | C10: Bachelor’s passes 2023 | D10: 282894 | G10: Matric passes 2023 | H10: 0.368 | I10: 0.5297461766
A11: Maths passes 1997 | B11: 116836 | C11: Maths passes (50%+) 2023 | D11: 72126 | G11: Bachelor’s passes 2023 | H11: 0.098 | I11: 0.2615470527
A12: The grade 10bclass of 1995 (proportion)c | C12: The grade 10bclass of 2021 (proportion)c | G12: Maths passes (50%+) 2023 | H12: 0.162 | I12: 0.06668343167
A13: Grade 10 enrolment 1995 | B13: 1 | C13: Grade 10 enrolment 2021 | D13: 1
A14: Matric candidates 1997 | B14: 0.778 | C14: Matric candidates 2023 | D14: =(D8/D7) -> 0.6390056378
A15: Matric passes 1997 | B15: 0.368 | C15: Matric passes 2023 | D15: =(D9/D7) -> 0.5297461766
A16: Bachelor’s passes 1997 | B16: 0.098 | C16: Bachelor’s passes 2023 | D16: =(D10/D7) -> 0.2615470527
A17: Maths passes 1997 | B17: 0.162 | C17: Maths passes (50%+) 2023 | D17: =(D11/D7) -> 0.06668343167
A18: Source: 2001/2002 Survey,p260; 2002/2003 Survey,pp247, 255; DBE, School Realities 2021, January 2022, Table 4, p3; 2023 NSC Exam Results Technical Report, January 2024, Table 6.1.4, p38
A19: a The table compares the throughput of the grade 10 cohorts of 1995 and 2020, showing pupils registered in each cohort who went on to become matric candidates and how many obtained matric, bachelor’s, and maths passes. For example, 719 190 grade 10s were enrolled in 1995. Of those, 559 233 became matric candidates in 1997. Some 264 795 passed matric, with 70 127 obtaining bachelor’s passes, and 116 836 passing maths. In 2021, there were 1 081 618 grade 10s and 691 160 went on to become matric or NSC candidates in 2023.
A20: b The minimum duration of a NSC or matric is three years, from grade 10 to 12.
A21: c CRA calculations.

Sheet IEB

Sheet IEB results.94-22
A2: Independent Examinations Board
A4: Examination results
B6: Independent Examinations Boarda Senior Certificate examination results, 1994-2023
D8: —Pass— | F8: —Bachelor’s passb—
A9: Year | B9: Number of schools | C9: Number of candidates | D9: Number | E9: Proportionc | F9: Number | G9: Proportiond
A10: 1994 | B10: 26 | C10: 1305 | D10: 1225 | E10: 0.94 | F10: 920 | G10: 0.7
A11: 1995 | B11: 29 | C11: 1371 | D11: 1306 | E11: 0.95 | F11: 956 | G11: 0.7
A12: 1996 | B12: 61 | C12: 2994 | D12: 2913 | E12: 0.97 | F12: 2158 | G12: 0.72
A13: 1997 | B13: 91 | C13: 4269 | D13: 4137 | E13: 0.97 | F13: 3052 | G13: 0.71
A14: 1998 | B14: 100 | C14: 4602 | D14: 4542 | E14: 0.99 | F14: 3479 | G14: 0.76
A15: 1999 | B15: 114 | C15: 5550 | D15: 5478 | E15: 0.99 | F15: 4124 | G15: 0.74
A16: 2000 | B16: 120 | C16: 5493 | D16: 5423 | E16: 0.99 | F16: 4157 | G16: 0.76
A17: 2001 | B17: 125 | C17: 5414 | D17: 5360 | E17: 0.99 | F17: 4222 | G17: 0.78
A18: 2002 | B18: 135 | C18: 6052 | D18: 5961 | E18: 0.99 | F18: 4599 | G18: 0.76
A19: 2003 | B19: 141 | C19: 6290 | D19: 6189 | E19: 0.98 | F19: 4906 | G19: 0.78
A20: 2004 | B20: 141 | C20: 6415 | D20: 6357 | E20: 0.99 | F20: 5099 | G20: 0.8
A21: 2005 | B21: 149 | C21: 6763 | D21: 6634 | E21: 0.98 | F21: 5295 | G21: 0.78
A22: 2006 | B22: 153 | C22: 7035 | D22: 6915 | E22: 0.98 | F22: 4729 | G22: 0.76
A23: 2007 | B23: 149 | C23: 7362 | D23: 7283 | E23: 0.99 | F23: 5780 | G23: 0.79
A24: 2008 | B24: 159 | C24: 8001 | D24: 7763 | E24: 0.97 | F24: 6169 | G24: 0.79
A25: 2009 | B25: 168 | C25: 8056 | D25: 7848 | E25: 0.97 | F25: 6410 | G25: 0.8
A26: 2010 | B26: 172 | C26: 8209 | D26: 8076 | E26: 0.98 | F26: 6693 | G26: 0.82
A27: 2011 | B27: 173 | C27: 8434 | D27: 8281 | E27: 0.98 | F27: 6763 | G27: 0.82
A28: 2012 | B28: 177 | C28: 8957 | D28: 8796 | E28: 0.98 | F28: 7488 | G28: 0.84
A29: 2013 | B29: 181 | C29: 9580 | D29: 9443 | E29: 0.99 | F29: 8150 | G29: 0.85
A30: 2014 | B30: 191 | C30: 9976 | D30: 9814 | E30: 0.98 | F30: 8524 | G30: 0.85
A31: 2015 | B31: 194 | C31: 10212 | D31: 10038 | E31: 0.98 | F31: 8707 | G31: 0.85
A32: 2016 | B32: 237 | C32: 11021 | D32: 10871 | E32: 0.9867 | F32: 9654 | G32: 0.8761
A33: 2017 | B33: 212 | C33: 11464 | D33: 11322 | E33: 0.9876 | F33: 10146 | G33: 0.885
A34: 2018 | B34: 249 | C34: 11514 | D34: 11390 | E34: 0.99 | F34: 10347 | G34: 0.91
A35: 2019 | B35: 227 | C35: 11818 | D35: 11678 | E35: 0.9882 | F35: — | G35: —
A36: 2020 | B36: 233 | C36: 12032 | D36: 11792 | E36: 0.9807 | F36: 10631 | G36: 0.8842
A37: 2021 | B37: 237 | C37: 12857 | D37: 12650 | E37: 0.9839 | F37: 11468 | G37: 0.892
A38: 2022 | B38: 232 | C38: 12580 | D38: 12381 | E38: 0.9842 | F38: 11236 | G38: 0.8932
A39: 2023 | B39: 248 | C39: 13967 | D39: 13752 | E39: 0.9846 | F39: 12373 | G39: 0.8859
A40: Source: Independent Examinations Board (lEB), email communication
A41: a The IEB is the examining body of independent (or private) schools, although only a small minority of independent schools write IEB exams.
A42: b Bachelor's passes are officially known as passes with matriculation endorsement, or endorsements, and were formerly known as passes with matriculation exemption, or exemptions. Students who obtained university entrance passes achieved marks high enough to gain entry to university.
A43: c Proportion of total candidates passing grade 12.
A44: d The proportion of pupils who gained passes enabling them to study at university for bachelor's degrees.

Sheet Pub.ind.results.compared.94-22
B2: National Senior Certificate results compared
B4: Public and independent school results, 1994-2022
C6: —Public schools— | E6: —Independent schools—
B7: Year | C7: Pass | D7: Bachelor’s pass | E7: Pass | F7: Bachelor’s pass | X7: Public school pass | Y7: Public school bachelor’s pass | Z7: Independent school pass | AA7: Independent school bachelor’s pass
B8: 1994 | C8: 0.58 | D8: 0.18 | E8: 0.94 | F8: 0.7 | W8: 1994 | X8: 0.58 | Y8: 0.18 | Z8: 0.94 | AA8: 0.7
B9: 1995 | C9: 0.53 | D9: 0.15 | E9: 0.95 | F9: 0.7 | W9: 1995 | X9: 0.53 | Y9: 0.15 | Z9: 0.95 | AA9: 0.7
B10: 1996 | C10: 0.54 | D10: 0.15 | E10: 0.97 | F10: 0.72 | W10: 1996 | X10: 0.54 | Y10: 0.15 | Z10: 0.97 | AA10: 0.72
B11: 1997 | C11: 0.47 | D11: 0.13 | E11: 0.97 | F11: 0.71 | W11: 1997 | X11: 0.47 | Y11: 0.13 | Z11: 0.97 | AA11: 0.71
B12: 1998 | C12: 0.49 | D12: 0.13 | E12: 0.99 | F12: 0.76 | W12: 1998 | X12: 0.49 | Y12: 0.13 | Z12: 0.99 | AA12: 0.76
B13: 1999 | C13: 0.49 | D13: 0.12 | E13: 0.99 | F13: 0.74 | W13: 1999 | X13: 0.49 | Y13: 0.12 | Z13: 0.99 | AA13: 0.74
B14: 2000 | C14: 0.58 | D14: 0.14 | E14: 0.99 | F14: 0.76 | W14: 2000 | X14: 0.58 | Y14: 0.14 | Z14: 0.99 | AA14: 0.76
B15: 2001 | C15: 0.62 | D15: 0.15 | E15: 0.99 | F15: 0.78 | W15: 2001 | X15: 0.62 | Y15: 0.15 | Z15: 0.99 | AA15: 0.78
B16: 2002 | C16: 0.69 | D16: 0.17 | E16: 0.99 | F16: 0.76 | W16: 2002 | X16: 0.69 | Y16: 0.17 | Z16: 0.99 | AA16: 0.76
B17: 2003 | C17: 0.73 | D17: 0.19 | E17: 0.98 | F17: 0.78 | W17: 2003 | X17: 0.73 | Y17: 0.19 | Z17: 0.98 | AA17: 0.78
B18: 2004 | C18: 0.71 | D18: 0.18 | E18: 0.99 | F18: 0.8 | W18: 2004 | X18: 0.71 | Y18: 0.18 | Z18: 0.99 | AA18: 0.8
B19: 2005 | C19: 0.68 | D19: 0.17 | E19: 0.98 | F19: 0.78 | W19: 2005 | X19: 0.68 | Y19: 0.17 | Z19: 0.98 | AA19: 0.78
B20: 2006 | C20: 0.66 | D20: 0.16 | E20: 0.98 | F20: 0.76 | W20: 2006 | X20: 0.66 | Y20: 0.16 | Z20: 0.98 | AA20: 0.76
B21: 2007 | C21: 0.65 | D21: 0.15 | E21: 0.99 | F21: 0.79 | W21: 2007 | X21: 0.65 | Y21: 0.15 | Z21: 0.99 | AA21: 0.79
B22: 2008 | C22: 0.63 | D22: 0.2 | E22: 0.97 | F22: 0.79 | W22: 2008 | X22: 0.63 | Y22: 0.2 | Z22: 0.97 | AA22: 0.79
B23: 2009 | C23: 0.61 | D23: 0.2 | E23: 0.97 | F23: 0.8 | W23: 2009 | X23: 0.61 | Y23: 0.2 | Z23: 0.97 | AA23: 0.8
B24: 2010 | C24: 0.68 | D24: 0.24 | E24: 0.98 | F24: 0.82 | W24: 2010 | X24: 0.68 | Y24: 0.24 | Z24: 0.98 | AA24: 0.82
B25: 2011 | C25: 0.7 | D25: 0.24 | E25: 0.98 | F25: 0.82 | W25: 2011 | X25: 0.7 | Y25: 0.24 | Z25: 0.98 | AA25: 0.82
B26: 2012 | C26: 0.74 | D26: 0.27 | E26: 0.98 | F26: 0.84 | W26: 2012 | X26: 0.74 | Y26: 0.27 | Z26: 0.98 | AA26: 0.84
B27: 2013 | C27: 0.78 | D27: 0.31 | E27: 0.99 | F27: 0.85 | W27: 2013 | X27: 0.78 | Y27: 0.31 | Z27: 0.99 | AA27: 0.85
B28: 2014 | C28: 0.76 | D28: 0.28 | E28: 0.98 | F28: 0.85 | W28: 2014 | X28: 0.76 | Y28: 0.28 | Z28: 0.98 | AA28: 0.85
B29: 2015 | C29: 0.71 | D29: 0.26 | E29: 0.98 | F29: 0.85 | W29: 2015 | X29: 0.71 | Y29: 0.26 | Z29: 0.98 | AA29: 0.85
B30: 2016 | C30: 0.725 | D30: 0.27 | E30: 0.99 | F30: 0.88 | W30: 2016 | X30: 0.725 | Y30: 0.27 | Z30: 0.99 | AA30: 0.88
B31: 2017 | C31: 0.751 | D31: 0.287 | E31: 0.99 | F31: 0.89 | W31: 2017 | X31: 0.751 | Y31: 0.287 | Z31: 0.99 | AA31: 0.89
B32: 2018 | C32: 0.781 | D32: 0.336 | E32: 0.99 | F32: 0.91 | W32: 2018 | X32: 0.781 | Y32: 0.336 | Z32: 0.99 | AA32: 0.91
B33: 2019 | C33: 0.813 | D33: 0.369 | E33: 0.99 | F33: — | W33: 2019 | X33: 0.813 | Y33: 0.369 | Z33: 0.99
B34: 2020 | C34: 0.762 | D34: 0.364 | E34: 0.98 | F34: 0.88 | W34: 2020 | X34: 0.762 | Y34: 0.364 | Z34: 0.98 | AA34: 0.88
B35: 2021 | C35: 0.764 | D35: 0.364 | E35: 0.98 | F35: 0.89 | W35: 2021 | X35: 0.764 | Y35: 0.364 | Z35: 0.91 | AA35: 0.89
B36: 2022 | C36: 0.801 | D36: 0.384 | E36: 0.98 | F36: 0.89 | W36: 2022 | X36: 0.764 | Y36: 0.384 | Z36: 0.98 | AA36: 0.89
B37: 2023 | C37: 0.829 | D37: 0.4093 | E37: 0.98 | F37: 0.89 | W37: 2023 | X37: 0.829 | Y37: 0.4093 | Z37: 0.98 | AA37: 0.89
B38: Source: DBE, email communication; IEB, email communication; National Senior Certificate Examination: Technical Reports

Sheet POST-SCHOOL EDUCATION

Sheet Institutions+enrolment
B2: POST-SCHOOL EDUCATION AND TRAINING
B4: Overview
B6: Post-School Education and Training Institutions, 2022
C8: —Higher Education Institutions— | F8: —Colleges—
C9: Public | D9: Private | E9: Total | F9: TVETa | G9: CETb | H9: Private | I9: Total
B10: Number | C10: 26 | D10: 125 | E10: =SUM(C10:D10) -> 151 | F10: 50 | G10: 9 | H10: 161 | I10: 220
B11: Students enrolled | C11: 1077768 | D11: 258215 | E11: =SUM(C11:D11) -> 1335983 | F11: 518584 | G11: 130752 | H11: 85787 | I11: 735123 | M11: 2071106 | N11: 1077768 | O11: 258215 | P11: 518584 | Q11: 130752 | R11: 85787
B12: Source: DHET, Statistics on Post-School Education and Training in South Africa: 2022, July 2024, Table 3.1, p6 | N12: Public Higher Education Institutions | O12: Private Higher Education Institutions | P12: TVET Colleges | Q12: CET Colleges | R12: Private Colleges
B13: a Technical Vocational Education and Training Colleges. | N13: =(N11/M11) -> 0.5203828293 | O13: =(O11/M11) -> 0.1246749321 | P13: =(P11/M11) -> 0.2503898883 | Q13: =(Q11/M11) -> 0.06313148627 | R13: =(R11/M11) -> 0.04142086402
B14: b Community Education and Training Colleges.

Sheet TVETs

Sheet TVET colleges
A3: Technical Vocational Education and Training (TVET)
A5: TVET colleges
A7: Technical Vocational Education and Training (TVET) colleges offer post-school education and training to individuals who wish to acquire knowledge and skills for employment or to qualify to study at university.
A9: Admission requirements and qualifications
A11: National Certificate (Vocational) (NC(V))
A13: The NC(V) was introduced in 2007 and is offered at levels 2, 3 and 4 of the National Qualifications Framework (NQF). Every level of the NC(V) is a full qualification and takes one academic year to complete when studying full-time. Each level is made up of three compulsory fundamental subjects (a language, life orientation and maths or maths literacy), three compulsory vocational subjects in the particular field of study and one optional subject which focuses on a specialisation in a particular occupation.
A15: General admission requirements
A17: NC(V) Level 2
A18: • A grade 9 certificate; or
A19: • An Adult Education and Training (AET) NQF Level 1 certificate; or
A20: • A recognised equivalent qualification obtained at NQF Level 1.
A21: NC(V) Level 3
A22: • A NQF level 2 NC(V); or
A23: • A recognised equivalent qualification obtained at NQF Level 2.
A24: NC(V) Level 4
A25: • A NQF Level 3 NC(V); or
A26: • A recognised equivalent qualification obtained at NQF Level 3.
A27: Source: DHET, www.dhet.gov.za, Formal and Further Education and Training Programmes at Levels 2 to 4 on the National Qualifications Framework (NQF) 2011, accessed 28 August 2014

Sheet Public TVETs

Sheet TVET enrolment.prov.qual.22
C2: Public colleges
B4: Students enrolled in public TVET colleges by province and qualification, 2022
C6: Province | D6: NC(V) | E6: Report 191 (N1-N6) | F6: Occupational qualifications | G6: Other | H6: Total
C7: Eastern Cape | D7: 15867 | E7: 38852 | F7: 362 | G7: 856 | H7: =SUM(D7:G7) -> 55937
C8: Free State | D8: 7146 | E8: 34221 | F8: 681 | G8: 1086 | H8: =SUM(D8:G8) -> 43134
C9: Gauteng | D9: 30045 | E9: 86903 | F9: 1797 | G9: 1295 | H9: 120040
C10: KwaZulu-Natal | D10: 28301 | E10: 67909 | F10: 1894 | G10: 1886 | H10: 99990
C11: Limpopo | D11: 22024 | E11: 31860 | F11: 5570 | G11: 1827 | H11: 61281
C12: Mpumalanga | D12: 13372 | E12: 20324 | F12: 510 | G12: 253 | H12: 34459
C13: North West | D13: 6462 | E13: 16195 | F13: 111 | G13: 479 | H13: 23247
C14: Northern Cape | D14: 1526 | E14: 8427 | F14: 390 | G14: 293 | H14: 10636
C15: Western Cape | D15: 10984 | E15: 51884 | F15: 4522 | G15: 2470 | H15: 69860
C16: South Africa | D16: 135727 | E16: 356575 | F16: 15837 | G16: 10445 | H16: =SUM(H7:H15) -> 518584
C17: Source: DHET, Statistics on Post-School Education and Training in South Africa: 2022, July 2024, Table 5.6, p45

Sheet Students enrol.qual.TVET.10-22
B2: Students enrolled in public TVET colleges by qualification, 2010-22
B4: Year | C4: NC(V) | D4: Report 191 (N1-N6) | E4: Occupational qualifications | F4: Other | G4: Totala
B5: 2010 | C5: 130039 | D5: 169774 | E5: 23160 | F5: 35420 | G5: =SUM(C5:F5) -> 358393
B6: 2011 | C6: 124658 | D6: 222754 | E6: 20799 | F6: 32062 | G6: 400273
B7: 2012 | C7: 140575 | D7: 359624 | E7: 62359 | F7: 95132 | G7: 657690
B8: 2013 | C8: 154960 | D8: 442287 | E8: 19000 | F8: 23371 | G8: 639618
B9: 2014 | C9: 166433 | D9: 486933 | E9: 19825 | F9: 29192 | G9: 702383
B10: 2015 | C10: 165459 | D10: 519464 | E10: 20533 | F10: 32424 | G10: 737880
B11: 2016 | C11: 177261 | D11: 492026 | E11: 13642 | F11: 22468 | G11: 705397
B12: 2017 | C12: 142373 | D12: 510153 | E12: 10969 | F12: 24533 | G12: =SUM(C12:F12) -> 688028
B13: 2018 | C13: 131212 | D13: 482175 | E13: 20106 | F13: 23640 | G13: 657133
B14: 2019 | C14: 138912 | D14: 494070 | E14: 22886 | F14: 17622 | G14: 673490
B15: 2020 | C15: 146637 | D15: 274907 | E15: 20130 | F15: 10603 | G15: 452277
B16: 2021 | C16: 141768 | D16: 416949 | E16: 18277 | F16: 12089 | G16: 589083
B17: 2022 | C17: 135727 | D17: 356575 | E17: 15837 | F17: 10445 | G17: 518584
B18: Source: DHET, Statistics on Post-School Education and Training in South Africa: 2022, July 2024, Table 5.6, p45
B19: a CRA calculations.

Sheet Students.enrol.race.10-22
B2: Students enrolled in public TVET colleges by race and qualification, 2022
B4: Race | C4: NC(V) | D4: Report 191 (N1-N6) | E4: Occupational qualifications | F4: Other | G4: Totala
B5: Black | C5: 130131 | D5: 329180 | E5: 12916 | F5: 8522 | G5: =SUM(C5:F5) -> 480749
B6: Coloured | C6: 5287 | D6: 25158 | E6: 2710 | F6: 1821 | G6: 34976
B7: Indian/Asian | C7: 83 | D7: 565 | E7: 33 | F7: 13 | G7: 694
B8: White | C8: 226 | D8: 1672 | E8: 178 | F8: 89 | G8: 2165
B9: Totala | C9: =SUM(C5:C8) -> 135727 | D9: =SUM(D5:D8) -> 356575 | E9: =SUM(E5:E8) -> 15837 | F9: =SUM(F5:F8) -> 10445 | G9: 518584
B10: Source: DHET, Statistics on Post-School Education and Training in South Africa: 2022, July 2024, Table 5.3, p43
B11: a Totals include Other/Unspecified.

Sheet Students.enrol.qual.sex.22
A2: Students enrolled in public TVET colleges by sex and qualification, 2022
A4: Sex | B4: NC(V) | C4: Report 191 (N1-N6) | D4: Occupational qualifications | E4: Other | F4: Totala
A5: Male | B5: 39919 | C5: 129039 | D5: 6802 | E5: 4651 | F5: =SUM(B5:E5) -> 180411
A6: Female | B6: 95808 | C6: 227536 | D6: 9035 | E6: 5794 | F6: =SUM(B6:E6) -> 338173
A7: Totala | B7: =SUM(B5:B6) -> 135727 | C7: =SUM(C5:C6) -> 356575 | D7: =SUM(D5:D6) -> 15837 | E7: =SUM(E5:E6) -> 10445 | F7: =SUM(B7:E7) -> 518584
A8: Source: DHET, Statistics on Post-School Education and Training in South Africa: 2022, July 2024, Table 5.4, p43
A9: a Totals include Other/Unspecified.

Sheet Private colleges

Sheet Priv.col.enrol.prov.qual.22
A2: Private colleges
A4: Students enrolled in private collegesa by province and qualification, 2022
A6: Province | B6: NC(V) | C6: Report 191 (N1-N6) | D6: Occupational qualifications | E6: Report 550/NSC/Other | F6: Total
A7: Eastern Cape | B7: 59 | C7: 1446 | D7: 46 | E7: 26 | F7: =SUM(B7:E7) -> 1577
A8: Free State | B8: 178 | C8: 2079 | D8: 109 | E8: 647 | F8: 3013
A9: Gauteng | B9: 575 | C9: 22205 | D9: 3459 | E9: 5787 | F9: 32026
A10: KwaZulu-Natal | B10: 9 | C10: 6188 | D10: 763 | E10: 814 | F10: 7774
A11: Limpopo | B11: 107 | C11: 7213 | D11: 469 | E11: 844 | F11: 8633
A12: Mpumalanga | B12: 0 | C12: 5359 | D12: 482 | E12: 311 | F12: 6152
A13: North West | B13: 0 | C13: 3826 | D13: 140 | E13: 428 | F13: 4394
A14: Northern Cape | B14: 0 | C14: 858 | D14: 0 | E14: 0 | F14: 858
A15: Western Cape | B15: 0 | C15: 2017 | D15: 1764 | E15: 3648 | F15: 7429
A16: South Africa | B16: 928 | C16: 51191 | D16: 7232 | E16: 12505 | F16: 71856
A17: Source: DHET, Statistics on Post-School Education and Training in South Africa: 2022, July 2024, Table 7.8, p80
A18: a Private TVET colleges are now known as private colleges in terms of the Continuing Education and Training Act of 2006.

Sheet Priv.enrol.qual.10-22
A2: Students enrolled in private colleges by qualification, 2010-22
A4: Province | B4: NC(V) | C4: Report 191 (N1-N6) | D4: Occupational qualifications | E4: Report 550/NSC/Other | F4: Totala
A5: 2010 | B5: 2615 | C5: 6685 | D5: 37582 | E5: N/A | F5: =SUM(B5:E5) -> 46882
A6: 2011 | B6: 1816 | C6: 19524 | D6: 63394 | E6: 49712 | F6: 134446
A7: 2012 | B7: 4181 | C7: 16127 | D7: 47156 | E7: 48122 | F7: 115586
A8: 2013 | B8: 5012 | C8: 19467 | D8: 58400 | E8: 71753 | F8: 154632
A9: 2014 | B9: 3928 | C9: 29700 | D9: 23128 | E9: 22329 | F9: 79085
A10: 2015 | B10: 2880 | C10: 35147 | D10: 17136 | E10: 33040 | F10: 88203
A11: 2016 | B11: 2857 | C11: 72657 | D11: 32279 | E11: 61118 | F11: 168911
A12: 2017 | B12: 3307 | C12: 78056 | D12: 40577 | E12: 65414 | F12: 187354
A13: 2018 | B13: 3950 | C13: 98466 | D13: 49319 | E13: 68102 | F13: 219837
A14: 2019 | B14: 2024 | C14: 69228 | D14: 32855 | E14: 47029 | F14: 151136
A15: 2020 | B15: 1659 | C15: 68071 | D15: 11239 | E15: 15785 | F15: 96754
A16: 2021 | B16: 770 | C16: 55217 | D16: 14208 | E16: 15592 | F16: 85787
A17: 2022 | B17: 928 | C17: 51191 | D17: 7232 | E17: 12505 | F17: 71856
A19: Source: DHET, Statistics on Post-School Education and Training in South Africa: 2022, July 2024, Table 7.8, p80
A20: a CRA calculations.
A21: N/A — Not available.

Sheet SETAS
B2: Sector Education and Training Authorities (Setas)
B4: Sector Education and Training Authorities (Setas) were established by the Government in 2000, under the Skills Development Act 97 of 1998. There are currently 21 Setas in the country, covering all industries and occupations in the economy. Setas are funded through the levy grant system, whereby employers with salary bills exceeding R500 000 a year pay a Skills Development Levy (SDL), which is pegged at 1% of a company's a year pay a Skills Development Levy (SDL), which is pegged at 1% of a company's payroll. The funds are passed on to Setas through the South African Revenue Service (SARS) and the DHET.
B5: The functions and responsibilities of Setas are set out in the Skills Development Act of 1998 as follows:
B7: a To develop sector skills within the framework of the National Skills Development Strategy (NSDS);
B8: b To implement sector skills plans by:
B9: (i) establishing learning programmes;
B10: (ii) approving workplace skills plans and annual training reports;
B11: (iii) allocating grants in the prescribed manner;
B12: (iv) monitoring education and skills development provision in their respective sectors;
B13: c To promote learning programmes by:
B14: (i) identifying workplaces for practical work experience;
B15: (ii) supporting the development of learning materials;
B16: (iii) improving the facilitation of learning;
B17: (iv) assisting in the conclusions of agreements for learning programmes;
B18: d To register agreements for learning programmes;
B19: e To perform any functions delegated to them by the Quality Council For Trades and Occupations (QTCO);
B20: f To collect skills development levies and disburse such levies in their respective sectors.

Sheet Setas by sector
A2: Setas by sector
A4: AGRISETA (Agricultural Seta)
A5: BANKSETA (Bank Seta)
A6: CATHSSETA (Culture, Arts, Tourism, Hospitality and Sports Seta)
A7: CETA (Construction Seta)
A8: CHIETA (Chemical Industries Seta)
A9: ETDPSETA (Education, Training and Development Practices Seta)
A10: EWSETA (Energy and Water Seta)
A11: FASSET (Financial and Accounting Services Seta)
A12: FOODBEV (Food and Beverage Manufacturing Industry Seta)
A13: FP&MSETA (Fibre Processing and Manufacturing Seta)
A14: HWSETA (Health and Welfare Seta)
A15: INSETA (Insurance Seta)
A16: LGSETA (Local Government Seta)
A17: MERSETA (Manufacturing, Engineering and Related Services Seta)
A18: MICTSETA (Media, Advertising, Information and Communication Technologies Seta)
A19: MQA (Mining Qualifications Authority Seta)
A20: PSETA (Public Service Seta)
A21: SASSETA (Safety and Security Seta)
A22: SERVICES (Services Seta)
A23: TETA (Transport Seta)
A24: W&RSETA (Wholesale and Retail Seta)

Sheet Employed.reg.4Seta progs.22.23
B2: Seta learning programmes
B4: Workers registered for learnerships, 2022/23
B6: Seta | C6: Target | D6: Actual | E6: Achieved (%)
B7: Agriculture | C7: 1300 | D7: 175 | E7: =(D7/C7) -> 0.1346153846
B8: Banking | C8: 970 | D8: 128 | E8: =(D8/C8) -> 0.1319587629
B9: Culture and tourism | C9: 225 | D9: 247 | E9: 1.097777778
B10: Construction | C10: 221 | D10: 105 | E10: 0.4751131222
B11: Chemical | C11: 500 | D11: 282 | E11: 0.564
B12: Education and development | C12: 0 | D12: 0 | E12: —
B13: Energy and water | C13: 100 | D13: 124 | E13: 1.24
B14: Financial | C14: 310 | D14: 331 | E14: 1.067741935
B15: Food and beverage | C15: 1500 | D15: 1519 | E15: 1.012666667
B16: Fibre processing | C16: 1040 | D16: 518 | E16: 0.4980769231
B17: Health and welfare | C17: 2125 | D17: 704 | E17: 0.3312941176
B18: Insurance | C18: 800 | D18: 801 | E18: 1.00125
B19: Local government | C19: 1500 | D19: 1641 | E19: 1.094
B20: Manufacturing and engineering | C20: 1440 | D20: 927 | E20: 0.64375
B21: Media | C21: 0 | D21: 0 | E21: —
B22: Mining | C22: 410 | D22: 563 | E22: 1.373170732
B23: Public service | C23: 0 | D23: 60 | E23: —
B24: Safety and security | C24: 650 | D24: 243 | E24: 0.3738461538
B25: Services | C25: 1000 | D25: 971 | E25: 0.971
B26: Transport | C26: 700 | D26: 1086 | E26: 1.551428571
B27: Wholesale and retail | C27: 2800 | D27: 5708 | E27: 2.038571429
B28: Total | C28: =SUM(C7:C27) -> 17591 | D28: 16133 | E28: 0.9171167074
B29: Source: DHET, Statistics on Post-School Education and Training in South Africa: 2022, March 2024, Table 8.3, p95
B30: a Learning programmes that lead to an occupational qualification or part qualification, and include apprenticeships and cadetships.

Sheet Employedcert.Seta.progs.22.23
B2: Workers certificated in learnerships, 2022/23
B4: Seta | C4: Target | D4: Actual | E4: Achieved (%)
B5: Agriculture | C5: 1000 | D5: 209 | E5: =(D5/C5) -> 0.209
B6: Banking | C6: 870 | D6: 629 | E6: 0.7229885057
B7: Culture and tourism | C7: 132 | D7: 153 | E7: 1.159090909
B8: Construction | C8: 105 | D8: 77 | E8: 0.7333333333
B9: Chemical | C9: 250 | D9: 258 | E9: 1.032
B10: Education and development | C10: 6305 | D10: 0 | E10: 0
B11: Energy and water | C11: 100 | D11: 309 | E11: 3.09
B12: Financial | C12: 190 | D12: 96 | E12: 0.5052631579
B13: Food and beverage | C13: 800 | D13: 636 | E13: 0.795
B14: Fibre processing | C14: 852 | D14: 21 | E14: 0.02464788732
B15: Health and welfare | C15: 1000 | D15: 56 | E15: 0.056
B16: Insurance | C16: 500 | D16: 519 | E16: 1.038
B17: Local government | C17: 1000 | D17: 230 | E17: 0.23
B18: Manufacturing and engineering | C18: 1183 | D18: 760 | E18: 0.6424344886
B19: Media | C19: 0 | D19: 0 | E19: —
B20: Mining | C20: 703 | D20: 378 | E20: 0.5376955903
B21: Public service | C21: 80 | D21: 82 | E21: 1.025
B22: Safety and security | C22: 325 | D22: 246 | E22: 0.7569230769
B23: Services | C23: 350 | D23: 122 | E23: 0.3485714286
B24: Transport | C24: 350 | D24: 594 | E24: 1.697142857
B25: Wholesale and retail | C25: 1400 | D25: 0 | E25: 0
B26: Total | C26: =SUM(C5:C25) -> 17495 | D26: 5375 | E26: 0.3072306373
B27: Source: DHET, Statistics on Post-School Education and Training in South Africa: 2022, March 2024, Table 8.4, p90
B28: a Learning programmes that lead to an occupational qualification or part qualification, and include apprenticeships and cadetships.

Sheet Unemployed reg.4Seta.22.23
B2: Unemployed persons registered for Seta-supported learning programmes, 2022/23
C4: —Learnershipsa— | F4: —Internships—
B5: Seta | C5: Target | D5: Actual | E5: Achieved (%) | F5: Target | G5: Actual | H5: Achieved (%)
B6: Agriculture | C6: 3000 | D6: 742 | E6: =(D6/C6) -> 0.2473333333 | F6: 600 | G6: 135 | H6: =(G6/F6) -> 0.225
B7: Banking | C7: 1000 | D7: 464 | E7: =(D7/C7) -> 0.464 | F7: 1000 | G7: 4764 | H7: =(G7/F7) -> 4.764
B8: Culture and tourism | C8: 240 | D8: 902 | E8: 3.758333333 | F8: 313 | G8: 309 | H8: 0.9872204473
B9: Construction | C9: 3000 | D9: 1267 | E9: 0.4223333333 | F9: 352 | G9: 203 | H9: 0.5767045455
B10: Chemical | C10: 1500 | D10: 1475 | E10: 0.9833333333 | F10: 525 | G10: 519 | H10: 0.9885714286
B11: Education and development | C11: 200 | D11: 0 | E11: — | F11: 1500 | G11: 541 | H11: 0.3606666667
B12: Energy and water | C12: 750 | D12: 266 | E12: 0.3546666667 | F12: 500 | G12: 114 | H12: 0.228
B13: Financial | C13: 0 | D13: 5486 | E13: — | F13: 1650 | G13: 1712 | H13: 1.037575758
B14: Food and beverage | C14: 1800 | D14: 1658 | E14: 0.9211111111 | F14: 450 | G14: 446 | H14: 0.9911111111
B15: Fibre processing | C15: 2535 | D15: 1784 | E15: 0.7037475345 | F15: 650 | G15: 3 | H15: 0.004615384615
B16: Health and welfare | C16: 2200 | D16: 1822 | E16: 0.8281818182 | F16: 1089 | G16: 205 | H16: 0.1882460973
B17: Insurance | C17: 1500 | D17: 0 | E17: 0 | F17: 1240 | G17: 0 | H17: 0
B18: Local government | C18: 1500 | D18: 1686 | E18: 1.124 | F18: 350 | G18: 507 | H18: 1.448571429
B19: Manufacturing and engineering | C19: 3000 | D19: 3899 | E19: 1.299666667 | F19: 250 | G19: 126 | H19: 0.504
B20: Media | C20: 3200 | D20: 687 | E20: 0.2146875 | F20: 850 | G20: 0 | H20: 0
B21: Mining | C21: 1000 | D21: 1299 | E21: 1.299 | F21: 650 | G21: 432 | H21: 0.6646153846
B22: Public service | C22: 0 | D22: 0 | E22: — | F22: 50 | G22: 81 | H22: 1.62
B23: Safety and security | C23: 1500 | D23: 879 | E23: 0.586 | F23: 500 | G23: 532 | H23: 1.064
B24: Services | C24: 7000 | D24: 5646 | E24: 0.8065714286 | F24: 500 | G24: 1025 | H24: 2.05
B25: Transport | C25: 850 | D25: 2202 | E25: 2.590588235 | F25: 300 | G25: 467 | H25: 1.556666667
B26: Wholesale and retail | C26: 8000 | D26: 12512 | E26: 1.564 | F26: 750 | G26: 964 | H26: 1.285333333
B27: Total | C27: =SUM(C6:C26) -> 43775 | D27: 44676 | E27: 1.020582524 | F27: 14069 | G27: 13085 | H27: 0.930058995
B28: Source: DHET, Statistics on Post-School Education and Training in South Africa: 2022, March 2024, Table 8.5, p97
B29: a Learning programmes that lead to an occupational qualification or part qualification and include apprenticeships and cadetships.

Sheet Unemployedcert.Seta.progs.22.23
B2: Unemployed persons certificated in Seta-supported learning programmes, 2022/23
C4: —Learnershipsa— | F4: —Internships—
B5: Seta | C5: Target | D5: Actual | E5: Achieved (%) | F5: Target | G5: Actual | H5: Achieved (%)
B6: Agriculture | C6: 950 | D6: 563 | E6: =(D6/C6) -> 0.5926315789 | F6: 250 | G6: 59 | H6: =(G6/F6) -> 0.236
B7: Banking | C7: 488 | D7: 523 | E7: 1.071721311 | F7: 85 | G7: 165 | H7: =(G7/F7) -> 1.941176471
B8: Culture and tourism | C8: 100 | D8: 171 | E8: 1.71 | F8: 109 | G8: 121 | H8: =(G8/F8) -> 1.110091743
B9: Construction | C9: 2000 | D9: 1204 | E9: 0.602 | F9: 124 | G9: 71 | H9: 0.5725806452
B10: Chemical | C10: 750 | D10: 1267 | E10: 1.689333333 | F10: 263 | G10: 263 | H10: 1
B11: Education and development | C11: 0 | D11: 0 | E11: — | F11: 1227 | G11: 677 | H11: 0.5517522412
B12: Energy and water | C12: 500 | D12: 661 | E12: 1.322 | F12: 80 | G12: 36 | H12: 0.45
B13: Financial | C13: 0 | D13: 2965 | E13: — | F13: 0 | G13: 0 | H13: —
B14: Food and beverage | C14: 1400 | D14: 1258 | E14: 0.8985714286 | F14: 100 | G14: 0 | H14: 0
B15: Fibre processing | C15: 2200 | D15: 32 | E15: 0.01454545455 | F15: 520 | G15: 0 | H15: 0
B16: Health and welfare | C16: 800 | D16: 121 | E16: 0.15125 | F16: 870 | G16: 0 | H16: 0
B17: Insurance | C17: 1050 | D17: 0 | E17: 0 | F17: 870 | G17: 168 | H17: 0.1931034483
B18: Local government | C18: 835 | D18: 200 | E18: 0.2395209581 | F18: 150 | G18: 40 | H18: 0.2666666667
B19: Manufacturing and engineering | C19: 2583 | D19: 2271 | E19: — | F19: 170 | G19: 50 | H19: 0.2941176471
B20: Media | C20: 1600 | D20: 484 | E20: 0.3025 | F20: 425 | G20: 3 | H20: 0.007058823529
B21: Mining | C21: 675 | D21: 1669 | E21: 2.472592593 | F21: 0 | G21: 0 | H21: —
B22: Public service | C22: 0 | D22: 75 | E22: — | F22: 0 | G22: 0 | H22: —
B23: Safety and security | C23: 500 | D23: 484 | E23: 0.968 | F23: 250 | G23: 195 | H23: 0.78
B24: Services | C24: 1701 | D24: 1234 | E24: 0.7254556143 | F24: 189 | G24: 0 | H24: 0
B25: Transport | C25: 425 | D25: 1511 | E25: 3.555294118 | F25: 150 | G25: 203 | H25: 1.353333333
B26: Wholesale and retail | C26: 4000 | D26: 0 | E26: 0 | F26: 250 | G26: 0 | H26: 0
B27: Total | C27: =SUM(C6:C26) -> 22557 | D27: 16693 | E27: =(D27/C27) -> 0.7400363524 | F27: 6082 | G27: 2051 | H27: 0.3372245972
B28: Source: DHET, Statistics on Post-School Education and Training in South Africa: 2022, March 2024, Table 8.6, p99
B29: a Learning programmes that lead to an occupational qualification or part qualification and include apprenticeships and cadetships.

Sheet Artisans

Sheet Artisanal learning.11-23
B2: Vocational training and apprentices
B4: Artisans
B7: Students entering artisanal learning programmes by sector, 2011/12-2022/23
B9: Sector | C9: 2011/12 | D9: 2013/14 | E9: 2017/18 | F9: 2019/20 | G9: 2021/22 | H9: 2022/23
B10: Agriculture | C10: 96 | D10: 116 | E10: 193 | F10: 396 | G10: 785 | H10: 671
B11: Culture and tourism | C11: 563 | D11: 312 | E11: 639 | F11: 1112 | G11: 262 | H11: 251
B12: Construction | C12: 1849 | D12: 1342 | E12: 8731 | F12: 1812 | G12: 2191 | H12: 2947
B13: Chemical | C13: 2541 | D13: 1694 | E13: 3172 | F13: 2543 | G13: 1770 | H13: 1783
B14: Energy and water | C14: 1046 | D14: 390 | E14: 1789 | F14: 672 | G14: 724 | H14: 1020
B15: Food and beverage | C15: 15 | D15: 267 | E15: 167 | F15: 141 | G15: 76 | H15: 433
B16: Fibre processing | C16: 351 | D16: 426 | E16: 290 | F16: 270 | G16: 160 | H16: 673
B17: Health and welfare | C17: N/A | D17: N/A | E17: 74 | F17: 237 | G17: 91 | H17: 115
B18: Indlelaa | C18: 5227 | D18: 7865 | E18: 5508 | F18: 3056 | G18: 2895 | H18: 2401
B19: Local government | C19: 413 | D19: 294 | E19: 646 | F19: 44 | G19: — | H19: —
B20: Manufacturing and engineering | C20: 6254 | D20: 10394 | E20: 6755 | F20: 1524 | G20: 1619 | H20: 4522
B21: Mining | C21: 2525 | D21: 2468 | E21: 1872 | F21: 1847 | G21: 2160 | H21: 2622
B22: National and Provincial Government | C22: 78 | D22: 2 | E22: 20 | F22: 60 | G22: 0 | H22: 0
B23: Safety and security | C23: N/A | D23: 385 | E23: 77 | F23: 165 | G23: 128 | H23: 119
B24: Services | C24: 2104 | D24: 968 | E24: 1416 | F24: 1031 | G24: 645 | H24: 968
B25: Transport | C25: 1019 | D25: 538 | E25: 981 | F25: 682 | G25: 157 | H25: 329
B26: Wholesale and retail | C26: 334 | D26: 209 | E26: 0 | F26: 626 | G26: 716 | H26: 1074
B27: Unspecified | C27: — | D27: — | E27: — | F27: — | G27: — | H27: 535
B28: Total | C28: =SUM(C10:C26) -> 24415 | D28: =SUM(D10:D26) -> 27670 | E28: =SUM(E10:E26) -> 32330 | F28: =SUM(F10:F26) -> 16218 | G28: =SUM(G10:G26) -> 14379 | H28: =SUM(H10:H27) -> 20463
B29: Source: DHET, Statistics on Post-School Education and Training in South Africa: 2022, March 2024, Table 8.7, p102
B30: a Institute for the National Development of Learnerships Employment Skills and Labour Assessments.

Sheet Artisanal learning topten.22.23
C3: Top ten trades for students entering artisanal learning programmes by SIPa scarce skill, 2022/23
C5: Trade | D5: Number
C6: Electrician | D6: 4822
C7: Mechanical Fitter | D7: 1864
C8: Welder | D8: 1544
C9: Plumber | D9: 1325
C10: Diesel Mechanic | D10: 1299
C11: Automotive Motor Mechanic | D11: 1291
C12: Boilermaker | D12: 1160
C13: Bricklayer | D13: 1095
C14: Millwright | D14: 1007
C15: Fitter and turner | D15: 670
C16: Total | D16: =SUM(D6:D15) -> 16077
C17: Source: DHET, Statistics on Post-School Education and Training in South Africa: 2022, March 2024, Table 8.9, p104
C18: a Special Infrastructure Projects.

Sheet Artisanal completion.11-23
B2: Students completing artisanal learning programmes by sector, 2011/12-2022/23
B4: Sector | C4: 2011/12 | D4: 2013/14 | E4: 2017/18 | F4: 2019/20 | G4: 2021/22 | H4: 2022/23
B5: Agriculture | C5: 77 | D5: 100 | E5: 195 | F5: 280 | G5: 264 | H5: 313
B6: Culture and tourism | C6: 282 | D6: 1161 | E6: 1590 | F6: 56 | G6: 44 | H6: 59
B7: Construction | C7: 699 | D7: 9 | E7: 957 | F7: 1824 | G7: 2741 | H7: 4381
B8: Chemical | C8: 989 | D8: 387 | E8: 344 | F8: 1980 | G8: 1633 | H8: 1433
B9: Energy and water | C9: 571 | D9: 1841 | E9: 629 | F9: 3085 | G9: 2582 | H9: 1715
B10: Food and beverage | C10: 160 | D10: 168 | E10: 63 | F10: 119 | G10: 104 | H10: 206
B11: Fibre processing | C11: 0 | D11: 4 | E11: 114 | F11: 493 | G11: 369 | H11: 834
B12: Health and welfare | C12: 0 | D12: 0 | E12: 91 | F12: 214 | G12: 151 | H12: 120
B13: Indlelaa | C13: 3392 | D13: 2077 | E13: 4133 | F13: 3087 | G13: 1888 | H13: 2036
B14: Local government | C14: 226 | D14: 81 | E14: 453 | F14: 549 | G14: 309 | H14: 89
B15: Manufacturing and engineering | C15: 3155 | D15: 7522 | E15: 7938 | F15: 6411 | G15: 4895 | H15: 3103
B16: Mining | C16: 2566 | D16: 3597 | E16: 1931 | F16: 2465 | G16: 1734 | H16: 1587
B17: National and Provincial Government | C17: 1 | D17: 0 | E17: 35 | F17: 11 | G17: 10 | H17: 65
B18: Safety and security | C18: 0 | D18: 101 | E18: 171 | F18: 294 | G18: 88 | H18: 97
B19: Services | C19: 1521 | D19: 185 | E19: 1427 | F19: 1719 | G19: 1740 | H19: 1452
B20: Transport | C20: 208 | D20: 478 | E20: 1075 | F20: 1463 | G20: 984 | H20: 449
B21: Wholesale and retail | C21: 176 | D21: 399 | E21: 5 | F21: 0 | G21: — | H21: 378
B22: Unspecified | C22: — | D22: — | E22: — | F22: — | G22: — | H22: 1745
B23: Total | C23: 14023 | D23: 18110 | E23: =SUM(E5:E21) -> 21151 | F23: =SUM(F5:F21) -> 24050 | G23: =SUM(G5:G21) -> 19536 | H23: =SUM(H5:H22) -> 20062
B24: Source: DHET, Statistics on Post-School Education and Training in South Africa: 2022, March 2024, Table 8.10, p105
B25: a Institute for the National Development of Learnerships Employment Skills and Labour Assessments.

Sheet Artisanal completetopten.22.23
B2: Top ten trades for students completing artisanal learning programmes by SIPa scarce skill, 2022/23
B4: Trade | C4: Number
B5: Electrician | C5: 5755
B6: Plumber | C6: 2480
B7: Mechanical Fitter | C7: 1831
B8: Diesel Mechanic | C8: 1625
B9: Millwright | C9: 1026
B10: Welder | C10: 1002
B11: Boiler Maker | C11: 915
B12: Automotive Motor Mechanic | C12: 744
B13: Bricklayer | C13: 719
B14: Fitter and turner | C14: 630
B15: Total | C15: =SUM(C5:C14) -> 16727
B16: Source: DHET, Statistics on Post-School Education and Training in South Africa: 2022, March 2024, Table 8.13, p107
B17: a Special Infrastructure Projects.

Sheet Artisans certificated.14-23
B2: Artisans certificated by Setas and Indlelaa, 2014/15-2022/23
C4: —2014/15— | E4: —2016/17— | G4: —2022/23—
B5: Sector | C5: Number | D5: Proportion of totalb | E5: Number | F5: Proportion of totalb | G5: Number | H5: Proportion of totalb
B6: Agriculture | C6: 190 | D6: =(C6/Total42) -> 0.009854260671 | E6: 219 | F6: =(E6/$E$23) -> 0.01128516954 | G6: 314 | H6: =(G6/$E$23) -> 0.01618056271
B7: Culture and tourism | C7: 0 | D7: 0 | E7: 1 | F7: 5.15304545e-05 | G7: 148 | H7: 0.007626507266
B8: Construction | C8: 479 | D8: 0.0248431098 | E8: 1058 | F8: 0.05451922086 | G8: 4216 | H8: 0.2172523962
B9: Chemical | C9: 572 | D9: 0.02966651107 | E9: 1020 | F9: 0.05256106359 | G9: 1308 | H9: 0.06740183448
B10: Energy and water | C10: 964 | D10: 0.04999740677 | E10: 993 | F10: 0.05116974132 | G10: 3355 | H10: 0.1728846748
B11: Food and beverage | C11: 2 | D11: 0.0001037290597 | E11: 14 | F11: 0.000721426363 | G11: 219 | H11: 0.01128516954
B12: Fibre processing | C12: 98 | D12: 0.005082723925 | E12: 106 | F12: 0.005462228177 | G12: 434 | H12: 0.02236421725
B13: Health and welfare | C13: 16 | D13: 0.0008298324776 | E13: 73 | F13: 0.003761723178 | G13: 141 | H13: 0.007265794084
B14: Indlela | C14: 4983 | D14: 0.2584409522 | E14: 3692 | F14: 0.190250438 | G14: 1865 | H14: 0.09610429764
B15: Local government | C15: 486 | D15: 0.02520616151 | E15: 233 | F15: 0.0120065959 | G15: 215 | H15: 0.01107904772
B16: Manufacturing and engineering | C16: 6890 | D16: 0.3573466107 | E16: 7061 | F16: 0.3638565392 | G16: 3633 | H16: 0.1872101412
B17: Mining | C17: 1876 | D17: 0.09729785799 | E17: 1974 | F17: =(E17/$E$23) -> 0.1017211172 | G17: 1855 | H17: 0.09558899309
B18: National and Provincial Government | C18: 0 | D18: 0 | E18: 14 | F18: 0.000721426363 | G18: 48 | H18: =(G18/$E$23) -> 0.002473461816
B19: Safety and security | C19: 12 | D19: =(C19/Total42) -> 0.0006223743582 | E19: 133 | F19: 0.006853550448 | G19: 100 | H19: 0.00515304545
B20: Services | C20: 1685 | D20: =(C20/Total42) -> 0.08739173279 | E20: 1271 | F20: 0.06549520767 | G20: 2131 | H20: 0.1098113985
B21: Transport | C21: 1028 | D21: =(C21/Total42) -> 0.05331673668 | E21: 1541 | F21: 0.07940843038 | G21: 1048 | H21: 0.05400391631
B22: Wholesale and retail | C22: N/A | D22: — | E22: 3 | F22: 0.0001545913635 | G22: 46 | H22: 0.002370400907
B23: Total | C23: 19281 | D23: 1 | E23: =SUM(E6:E22) -> 19406 | F23: 1 | G23: =SUM(G6:G22) -> 21076 | H23: 1
B24: Source: DHET, Statistics on Post-School Education and Training in South Africa: 2022, March 2024, Table 8.13, p109
B25: a Institute for the National Development of Learnerships Employment Skills and Labour Assessments.
B26: b CRA calculations.

Sheet Public Higher Education
A2: Public Higher Education
A4: Universitiesa
A6: Comprehensive universitiesb | B6: Universities of technologyc | C6: Universities
A7: Nelson Mandela University (6) | B7: Cape Peninsula University of Technology (5) | C7: North West University (3)
A8: University of Johannesburg (4) | B8: Central University of Technology (2) | C8: Rhodes University (1)
A9: University of South Africa (27) | B9: Durban University of Technology (7) | C9: Sefako Makgatho Health Sciences University (1)
A10: University of Venda (1) | B10: Mangosuthu University of Technology (1) | C10: Sol Plaatje University (1)
A11: University of Zululand (2) | B11: Tshwane University of Technology (6) | C11: Stellenbosch University (4)
A12: Walter Sisulu University (3) | B12: Vaal University of Technology (1) | C12: University of Cape Town (6)
C13: University of Fort Hare (3)
C14: University of KwaZulu-Natal (5)
C15: University of Limpopo (1)
C16: University of Mpumalanga (2)
C17: University of Pretoria (7)
C18: University of the Free State (2)
C19: University of the Western Cape (1)
C20: University of the Witwatersrand (5)
A21: a Numbers in brackets indicate the number of campuses of the parent institution.
A22: b These are universities which were formed from the mergers of traditional universities and technikons, and offer traditional university courses, as well as vocational courses.
A23: c Effectively technikons renamed.

Sheet Students by uni type.
A1: Distribution of students by type of university, 2004 and 2022
B9: 2004 | C9: 2020 | V9: 2004
A10: Universities | V10: Universities of Technology | W10: Universities | X10: Comprehensive Universities | Y10: Total
A11: Universities of Technology | V11: 194536 | W11: 399733 | X11: 480643 | Y11: =SUM(V11:X11) -> 1074912
A12: Comprehensive Universities | V12: 0.262 | W12: 0.461 | X12: 0.277
V17: 2022
V18: =SUM(V26/Y20) -> 0.1692006072 | W18: =(W34/Y20) -> 0.358948308 | X18: =(X26/Y20) -> 0.4718510848
V20: 33762 | W20: 29425 | X20: 32320 | Y20: 1077768
V21: 23251 | W21: 16747 | X21: 51483
V22: 32089 | W22: 40671 | X22: 362317
V23: 14437 | W23: 44865 | X23: 14962
V24: 59164 | W24: 22318 | X24: 16855
V25: 19656 | W25: 7134 | X25: 30609
V26: =SUM(V20:V25) -> 182359 | W26: 54176 | X26: =SUM(X20:X25) -> 508546
W27: 54466
W28: 8348
W29: 6642
W30: 3585
W31: 31986
W32: 23937
W33: 42563
W34: =SUM(W20:W33) -> 386863

Sheet Enrolment.University

Sheet Higher edu.part rate.02&22
B2: Enrolment
B4: Higher education participation rate
B6: Higher education participation ratesa by race, 2002 and 2022
B8: Race | C8: —20-24 year olds in the country— | E8: —Students enrolled in higher education— | G8: —Participation rate—
C9: 2002 | D9: 2022 | E9: 2002 | F9: 2022 | G9: 2002 | H9: 2022
B10: Black | C10: 3594000 | D10: 4028000 | E10: 399915 | F10: 869614 | G10: =(E10/C10) -> 0.1112729549 | H10: =F10/D10 -> 0.2158922542
B11: Coloured | C11: 358000 | D11: 408000 | E11: 38329 | F11: 57912 | G11: =(E11/C11) -> 0.1070642458 | H11: =F11/D11 -> 0.1419411765
B12: Indian/Asian | C12: 96000 | D12: 94000 | E12: 47706 | F12: 36800 | G12: =(E12/C12) -> 0.4969375 | H12: =F12/D12 -> 0.3914893617
B13: White | C13: 283000 | D13: 231000 | E13: 179380 | F13: 99637 | G13: =(E13/C13) -> 0.6338515901 | H13: =F13/D13 -> 0.4313290043
B14: Totalb | C14: 4333000 | D14: 4761000 | E14: 667182 | F14: 1077768 | G14: =(E14/C14) -> 0.1539769213 | H14: =F14/D14 -> 0.2263742911
B15: Source: Stats SA, General Household Survey 2002, 15 December 2003, p2; Census 2011: Census in Brief, 30 October 2012; General Household Survey 2022, Statistical release P0318, 17 August 2023, Table 1.2, p86; DHET, www.dhet.gov.za, Table 2.12 for all institutions to 2nd order CESM (Enrolment, 2002), accessed 6 June 2023; Statistics on Post-School Education and Training in South Africa: 2022, July 2024, Table 10.1, p124
B16: a The proportion of people aged between 20 and 24 who are enrolled in public universities.
B17: b Includes unspecified population groups.

Sheet Enrolment.FirstYear.86-22
A2: Enrolment
A4: First-year enrolment
A6: Undergraduate students enrolling for their first year of study by race, 1986-2022
A8: Year | B8: Black | C8: Coloured | D8: Indian/Asian | E8: White | F8: Otherb | G8: Total
A9: 1986a | B9: 15287 | C9: 3303 | D9: 5142 | E9: 38400 | F9: N/A | G9: 62133
A10: 1990a | B10: 27413 | C10: 7981 | D10: 5866 | E10: 45307 | F10: N/A | G10: 86567
A11: 1994a | B11: 52988 | C11: 6257 | D11: 6929 | E11: 38355 | F11: N/A | G11: 104529
A12: 2000 | B12: 58759 | C12: 6468 | D12: 6942 | E12: 25782 | F12: 33 | G12: 97984
A13: 2005 | B13: 84979 | C13: 9542 | D13: 10259 | E13: 30316 | F13: 197 | G13: 135293
A14: 2010 | B14: 118533 | C14: 11020 | D14: 8794 | E14: 29524 | F14: 517 | G14: 168388
A15: 2011 | B15: 130474 | C15: 11043 | D15: 8516 | E15: 25587 | F15: 485 | G15: 179105
A16: 2012 | B16: 127066 | C16: 9882 | D16: 6398 | E16: 25754 | F16: 665 | G16: 169765
A17: 2013 | B17: 114794 | C17: 10329 | D17: 7461 | E17: 25128 | F17: 677 | G17: 158389
A18: 2014 | B18: 121937 | C18: 10971 | D18: 9375 | E18: 25231 | F18: 842 | G18: 168356
A19: 2015 | B19: 126734 | C19: 11287 | D19: 7956 | E19: 24772 | F19: 1181 | G19: 171930
A20: 2016 | B20: 118909 | C20: 11120 | D20: 6227 | E20: 21737 | F20: 898 | G20: 158891
A21: 2017 | B21: 150153 | C21: 12048 | D21: 7067 | E21: 22656 | F21: 1358 | G21: 193282
A22: 2018 | B22: 168904 | C22: 11760 | D22: 6238 | E22: 20064 | F22: 1695 | G22: 208661
A23: 2019 | B23: 152958 | C23: 9692 | D23: 5311 | E23: 17487 | F23: 2274 | G23: 187722
A24: 2020 | B24: 175971 | C24: 10053 | D24: 5284 | E24: 16500 | F24: 1714 | G24: 209522
A25: 2021 | B25: 140377 | C25: 8236 | D25: 4601 | E25: 14274 | F25: 2187 | G25: 169675
A26: 2022 | B26: 163610 | C26: 9519 | D26: 4858 | E26: 14248 | F26: 2479 | G26: 194714
A27: 1986-2022 | B27: =(B26-B9)/B9 -> 9.702557729 | C27: =(C26-C9)/C9 -> 1.881925522 | D27: -0.05523142746 | E27: -0.6289583333 | F27: — | G27: 2.133825825
A28: Source: DHET, www.dhet.gov.za, Table 2.7 for all institutions including languages (1986-2022), accessed 1 July 2024
A29: a Excludes figures for the University of Transkei, Border and Eastern Cape Technikons (all merged in 2005 to become the Walter Sisulu University), University of Venda, North West University, Peninsula Technikon (now the Cape Peninsula University of Technology), Technikon North West (merged in 2004 with Technikon Northern Gauteng and Technikon Pretoria to become the Tshwane University of Technology).
A30: b Students whose race is unspecified.
A31: N/A — Not available.

Sheet Enrolment.AllUniversities.85-22
A2: All enrolment
A4: Headcount enrolmenta at universities by type of university, 1985-2022
A6: Year | B6: Universities | C6: Universities of technology | D6: Total enrolment | E6: Contact studentsb | F6: Distance studentsc | J6: Universities | K6: Universities of technology | L6: Contact students | M6: Distance students | N6: Total enrolment
A7: 1985 | B7: 211756 | C7: 59118 | D7: 270874 | E7: N/A | F7: N/A | I7: 1986 | J7: 233625 | K7: 43490 | L7: 221113 | M7: 56002 | N7: 277115
A8: 1986 | B8: 233625 | C8: 43490 | D8: 277115 | E8: 221113 | F8: 56002 | I8: 2022 | J8: 887246 | K8: 180800 | L8: 694955 | M8: 382813 | N8: 1077768
A9: 1990 | B9: 285986 | C9: 92721 | D9: 378707 | E9: N/A | F9: N/A
A10: 1995 | B10: 385221 | C10: 190191 | D10: 575412 | E10: 453065 | F10: 122347
A11: 2000 | B11: 380168 | C11: 199089 | D11: 579257 | E11: 455107 | F11: 124150
A12: 2005 | B12: 563199 | C12: 171874 | D12: 735073 | E12: 593986 | F12: 141087
A13: 2010 | B13: 739368 | C13: 153568 | D13: 892936 | E13: 545766 | F13: 346828
A14: 2011 | B14: 785988 | C14: 152212 | D14: 938200 | E14: 556694 | F14: 381130
A15: 2012 | B15: 798551 | C15: 159822 | D15: 953373 | E15: 566239 | F15: 387133
A16: 2013 | B16: 824692 | C16: 159006 | D16: 983698 | E16: 581048 | F16: 402556
A17: 2014 | B17: 807663 | C17: 161491 | D17: 969154 | E17: 596824 | F17: 372142
A18: 2015 | B18: 824880 | C18: 160332 | D18: =SUM(B18:C18) -> 985212 | E18: 605480 | F18: 379732
A19: 2016 | B19: 817567 | C19: 168270 | D19: 975837 | E19: 638001 | F19: 337836
A20: 2017 | B20: 859395 | C20: 177589 | D20: 1036984 | E20: 659970 | F20: 377014
A21: 2018 | B21: 900330 | C21: 185238 | D21: 1085568 | E21: 685069 | F21: 400499
A22: 2019 | B22: 880376 | C22: 194536 | D22: 1074912 | E22: 704021 | F22: 370891
A23: 2020 | B23: 909962 | C23: 184846 | D23: 1094808 | E23: 682440 | F23: 412368
A24: 2021 | B24: 887246 | C24: 180800 | D24: 1068046 | E24: 683885 | F24: 384161
A25: 2022 | B25: 895409 | C25: 182359 | D25: 1077768 | E25: 694955 | F25: 382813
A26: 1985-2022 | B26: =(B25-B7)/B7 -> 3.228494116 | C26: =(C25-C7)/C7 -> 2.084661186 | D26: 2.978853637 | E26: 214.3%d | F26: 583.6%d
A27: Source: DHET, www.dhet.gov.za, Table 2.19 Distance only for all institutions (1986-2014), accessed 17 July 2015; Table 2.12 for all Institutions to 2nd order CESM (Enrolment, 1985-2022), accessed 1 July 2024; Statistics on Post-School Education and Training in South Africa: 2022, July 2024, Table 10.1, p124
A28: a Refers to the number of students enrolled at an institution as opposed to enrolment figures which refer to the number of students enrolled in different courses.
A29: b Refers to those whose courses involve personal interaction with lecturers or supervisors, through lectures, tutorials, seminars, practicals, supervision, or other forms of required work, which occur at the institution's premises or at a site of delivery.
A30: c Refers to those whose courses do not involve personal interaction with teachers or supervisors, and whose studies are undertaken remotely through the use of correspondence, telematics, or the Internet.
A31: d Change is calculated from 1986 to 2022.
A32: N/A — Not available.

Sheet Enrol.Head.86-22
A3: Headcount enrolmenta at universities by race (actual numbers), 1986-2022
A5: Year | B5: Black | C5: Coloured | D5: Indian/Asian | E5: White | F5: Total
A6: 1986 | B6: 54997 | C6: 13652 | D6: 21848 | E6: 177744 | F6: 277115
A7: 1987 | B7: 69577 | C7: 20167 | D7: 21842 | E7: 184895 | F7: 306689
A8: 1988 | B8: 76175 | C8: 22492 | D8: 20477 | E8: 188019 | F8: 329260
A9: 1989 | B9: 98335 | C9: 25037 | D9: 25795 | E9: 204782 | F9: 362156
A10: 1995 | B10: 268144 | C10: 29771 | D10: 35990 | E10: 209640 | F10: 575412
A11: 2000 | B11: 340652 | C11: 30472 | D11: 39492 | E11: 162864 | F11: 579257
A12: 2001 | B12: 375059 | C12: 33247 | D12: 42425 | E12: 172950 | F12: 657269
A13: 2002 | B13: 399915 | C13: 34329 | D13: 47706 | E13: 179380 | F13: 675164
A14: 2003 | B14: 430745 | C14: 43551 | D14: 52883 | E14: 188353 | F14: 717793
A15: 2004b | B15: 453626 | C15: 46090 | D15: 54314 | E15: 188687 | F15: 744470
A16: 2005 | B16: 446945 | C16: 46302 | D16: 54611 | E16: 185847 | F16: 735073
A17: 2006 | B17: 451106 | C17: 48538 | D17: 54859 | E17: 184667 | F17: 741380
A18: 2007 | B18: 476770 | C18: 49066 | D18: 52596 | E18: 180461 | F18: 760889
A19: 2008 | B19: 514955 | C19: 51647 | D19: 52401 | E19: 178140 | F19: 799387
A20: 2009 | B20: 547686 | C20: 55101 | D20: 53629 | E20: 179232 | F20: 837779
A21: 2010 | B21: 595783 | C21: 58175 | D21: 54492 | E21: 178190 | F21: 892936
A22: 2011 | B22: 640443 | C22: 59312 | D22: 54698 | E22: 177365 | F22: 938200
A23: 2012 | B23: 662123 | C23: 58692 | D23: 52296 | E23: 172654 | F23: 953373
A24: 2013 | B24: 689503 | C24: 61034 | D24: 53787 | E24: 171927 | F24: 983698
A25: 2014 | B25: 679800 | C25: 60716 | D25: 53611 | E25: 166172 | F25: 969154
A26: 2015 | B26: 696320 | C26: 62186 | D26: 53378 | E26: 161739 | F26: 985212
A27: 2016c | B27: 701482 | C27: 61963 | D27: 50450 | E27: 152489 | F27: =SUM(B27:E27) -> 966384
A28: 2017c | B28: 763767 | C28: 64772 | D28: 50131 | E28: 148802 | F28: =SUM(B28:E28) -> 1027472
A29: 2018c | B29: 820619 | C29: 65911 | D29: 47865 | E29: 140305 | F29: 1085568
A30: 2019c | B30: 830797 | C30: 62362 | D30: 43330 | E30: 126755 | F30: 1074912
A31: 2020c | B31: 862313 | C31: 61923 | D31: 41262 | E31: 118505 | F31: 1094808
A32: 2021c | B32: 849246 | C32: 59313 | D32: 38911 | E32: 108982 | F32: 1068046
A33: 2022 | B33: 869614 | C33: 57912 | D33: 36800 | E33: 99637 | F33: 1077768
A34: 1986-2022 | B34: =(B33-B6)/B6 -> 14.81202611 | C34: =(C33-C6)/C6 -> 3.242015822 | D34: 0.6843647016 | E34: -0.4394353677 | F34: 2.889244537
A35: Source: DHET, www.dhet.gov.za, Table 2.12 for all Institutions to 2nd order CESM (Enrolment, 1986-2021) accessed 6 June 2023; Statistics on Post-School Education and Training in South Africa: 2022, July 2024, Table 10.2, p125
A36: a Refers to the number of students enrolled at an institution as opposed to enrolment figures which refer to the number of students enrolled in different courses.
A37: b For 2004, the former Department of Education changed the manner in which tertiary enrolment and output data were collected and presented. Unisa was defined as ‘comprehensive' for fulfilling the roles of both a university and a university of technology. For 2004, therefore, enrolment and output figures for universities and universities of technology are not comparable with figures for previous years. Total tertiary enrolment and output figures remain comparable.
A38: c Excludes students whose race is unspecified.
F39: =(F32-F23)/F23 -> 0.1202813589

Sheet Enrol.Head.%.86&22
B2: Headcount enrolmenta at universities by race (proportions)b, 1986-2021 | J2: Head-count enrolment at universities by race (proportions), 1986-2022
B4: Year | C4: Black | D4: Coloured | E4: Indian/Asian | F4: White | G4: Totalc
B5: 1986 | C5: 0.198 | D5: 0.049 | E5: 0.079 | F5: 0.641 | G5: 1
B6: 1987 | C6: 0.227 | D6: 0.066 | E6: 0.071 | F6: 0.603 | G6: 1
B7: 1988 | C7: 0.231 | D7: 0.068 | E7: 0.062 | F7: 0.571 | G7: 1
B8: 1989 | C8: 0.272 | D8: 0.069 | E8: 0.071 | F8: 0.565 | G8: 1
B9: 1995 | C9: 0.466 | D9: 0.052 | E9: 0.063 | F9: 0.364 | G9: 1
B10: 2000 | C10: 0.588 | D10: 0.053 | E10: 0.068 | F10: 0.281 | G10: 1
B11: 2001 | C11: 0.571 | D11: 0.051 | E11: 0.065 | F11: 0.263 | G11: 1
B12: 2002 | C12: 0.592 | D12: 0.051 | E12: 0.071 | F12: 0.266 | G12: 1
B13: 2003 | C13: 0.6 | D13: 0.061 | E13: 0.074 | F13: 0.262 | G13: 1
B14: 2004 | C14: 0.609 | D14: 0.062 | E14: 0.073 | F14: 0.253 | G14: 1
B15: 2005 | C15: 0.608 | D15: 0.063 | E15: 0.074 | F15: 0.253 | G15: 1
B16: 2006 | C16: 0.608 | D16: 0.065 | E16: 0.074 | F16: 0.249 | G16: 1 | L16: Black | M16: Coloured | N16: Indian/Asian | O16: White
B17: 2007 | C17: 0.627 | D17: 0.064 | E17: 0.069 | F17: 0.237 | G17: 1 | L17: 0.198 | M17: 0.049 | N17: 0.079 | O17: 0.641
B18: 2008 | C18: 0.644 | D18: 0.065 | E18: 0.066 | F18: 0.223 | G18: 1
B19: 2009 | C19: 0.654 | D19: 0.066 | E19: 0.064 | F19: 0.214 | G19: 1
B20: 2010 | C20: 0.667 | D20: 0.065 | E20: 0.061 | F20: 0.2 | G20: 1
B21: 2011 | C21: 0.683 | D21: 0.063 | E21: 0.058 | F21: 0.189 | G21: 1 | L21: Black | M21: Coloured | N21: Indian/Asian | O21: White
B22: 2012 | C22: 0.695 | D22: 0.062 | E22: 0.055 | F22: 0.181 | G22: 1 | L22: 0.8068656705 | M22: 0.05373327098 | N22: 0.03414463966 | O22: 0.09244753973
B23: 2013 | C23: 0.701 | D23: 0.062 | E23: 0.055 | F23: 0.175 | G23: 1
B24: 2014 | C24: 0.701 | D24: 0.063 | E24: 0.055 | F24: 0.171 | G24: 1
B25: 2015 | C25: 0.707 | D25: 0.063 | E25: 0.054 | F25: 0.164 | G25: 1
B26: 2016 | C26: 0.726 | D26: 0.064 | E26: 0.052 | F26: 0.158 | G26: 1
B27: 2017 | C27: 0.7433458041 | D27: 0.06304016071 | E27: 0.04879062398 | F27: 0.1448234112 | G27: 1
B28: 2018 | C28: 0.7559351418 | D28: 0.06071568064 | E28: 0.04409212504 | F28: 0.1292457036 | G28: 1
B29: 2019 | C29: 0.7728976884 | D29: 0.058015912 | E29: 0.04031027656 | F29: 0.117921281 | G29: 1
B30: 2020 | C30: 0.7876385631 | D30: 0.05656060241 | E30: 0.03768880023 | F30: 0.1082427238 | G30: 1
B31: 2021 | C31: 0.7951399097 | D31: 0.05553412493 | E31: 0.03643195143 | F31: 0.1020386762 | G31: 1
B32: 2022 | C32: 0.8068656705 | D32: 0.05373327098 | E32: 0.03414463966 | F32: 0.09244753973 | G32: 1
B33: Source: DHET, www.dhet.gov.za, Table 2.12 for all Institutions to 2nd order CESM (Enrolment, 1986-2021) accessed 6 June 2023; Statistics on Post-School Education and Training in South Africa: 2022, July 2024, Table 10.2, p125
B34: a Refers to the number of students enrolled at an institution as opposed to enrolment figures which refer to the number of students enrolled in different courses. Between 1997 and 2003, however, head-count enrolment was greater than enrolment due to institutions submitting head-count figures that included non-formal qualifications. The former Department of Education requested that these institutions correct their databases.
B35: b CRA calculations.
B36: c Figures should add up horizontally to 100% but may not, owing to rounding and the inclusion of students whose race is unspecified. For 2004 the former Department of Education changed the manner in which tertiary enrolment and output data was collected and presented. Unisa was defined as ‘comprehensive' for being both a university and a university of technology. Thus, for 2004, enrolment and output figures for universities and universities of technology are not comparable with figures for previous years. Total tertiary enrolment and output figures remain comparable.

Sheet Staff.University

Sheet Students and staff.05&22
A2: Staff
A4: University teaching staff and students
A6: Students and teaching staff, 2005 and 2022
A8: University | B8: —Students— | D8: —Teaching staff— | F8: —Student-to-staff ratioa—
B9: 2005 | C9: 2022 | D9: 2005 | E9: 2022 | F9: 2005 | G9: 2022
A10: Cape Peninsula University of Technology | B10: 28961 | C10: 33762 | D10: 621 | E10: 820 | F10: 47 to 1 | G10: 41 to 1
A11: Central University of Technology | B11: 10320 | C11: 23251 | D11: 203 | E11: 321 | F11: 51 to 1 | G11: 72 to 1
A12: Durban University of Technology | B12: 22779 | C12: 32089 | D12: 537 | E12: 676 | F12: 42 to 1 | G12: 47 to 1
A13: Mangosuthu University of Technology | B13: 9901 | C13: 14437 | D13: 146 | E13: 230 | F13: 68 to 1 | G13: 63 to 1
A14: Nelson Mandela University | B14: 24157 | C14: 32320 | D14: 557 | E14: 719 | F14: 43 to 1 | G14: 45 to 1
A15: North West University | B15: 38596 | C15: 54176 | D15: 769 | E15: 1678 | F15: 50 to 1 | G15: 32 to 1
A16: Rhodes University | B16: 6322 | C16: 8348 | D16: 306 | E16: 368 | F16: 21 to 1 | G16: 23 to 1
A17: Sefako Makgatho Health Sciences University | B17: N/A | C17: 6642 | D17: N/A | E17: 705 | F17: — | G17: 9 to 1
A18: Sol Plaatje University | B18: N/A | C18: 3585 | D18: N/A | E18: 141 | F18: — | G18: 25 to 1
A19: Stellenbosch University | B19: 21702 | C19: 31986 | D19: 818 | E19: 1295 | F19: 27 to 1 | G19: 25 to 1
A20: Tshwane University of Technology | B20: 57971 | C20: 59164 | D20: 880 | E20: 875 | F20: 66 to 1 | G20: 68 to 1
A21: University of Cape Town | B21: 21764 | C21: 29425 | D21: 821 | E21: 1192 | F21: 27 to 1 | G21: 25 to 1
A22: University of Fort Hare | B22: 8790 | C22: 16747 | D22: 230 | E22: 336 | F22: 48 to 1 | G22: 50 to 1
A23: University of the Free State | B23: 24659 | C23: 40671 | D23: 620 | E23: 862 | F23: 40 to 1 | G23: 47 to 1
A24: University of Johannesburg | B24: 45544 | C24: 51483 | D24: 917 | E24: 1328 | F24: 40 to 1 | G24: 39 to 1
A25: University of KwaZulu-Natal | B25: 40704 | C25: 44865 | D25: 1448 | E25: 1176 | F25: 28 to 1 | G25: 38 to 1
A26: University of Limpopo | B26: 17579 | C26: 22318 | D26: 804 | E26: 668 | F26: 22 to 1 | G26: 33 to 1
A27: University of Mpumalanga | B27: N/A | C27: 7134 | D27: N/A | E27: 179 | F27: — | G27: 40 to 1
A28: University of Pretoria | B28: 46351 | C28: 54466 | D28: 1575 | E28: 1269 | F28: 29 to 1 | G28: 43 to 1
A29: University of South Africa | B29: 207931 | C29: 362317 | D29: 1308 | E29: 1823 | F29: 159 to 1 | G29: 199 to 1
A30: University of Venda | B30: 10497 | C30: 14962 | D30: 268 | E30: 469 | F30: 39 to 1 | G30: 32 to 1
A31: University of the Western Cape | B31: 14580 | C31: 23937 | D31: 465 | E31: 683 | F31: 31 to 1 | G31: 35 to 1
A32: University of the Witwatersrand | B32: 23626 | C32: 42563 | D32: 939 | E32: 1211 | F32: 25 to 1 | G32: 35 to 1
A33: University of Zululand | B33: 10398 | C33: 16855 | D33: 219 | E33: 334 | F33: 48 to 1 | G33: 50 to 1
A34: Vaal University of Technology | B34: 17408 | C34: 19656 | D34: 312 | E34: 344 | F34: 56 to 1 | G34: 57 to 1
A35: Walter Sisulu University | B35: 24533 | C35: 30609 | D35: 531 | E35: 910 | F35: 46 to 1 | G35: 34 to 1
A36: Total | B36: 735073 | C36: =SUM(C10:C35) -> 1077768 | D36: 15302 | E36: 20612 | F36: 48 to 1 | G36: 52 to 1
A37: Source: DHET, www.dhet gov.za, Tables 2.7; 2.12 for all institutions to 2nd order CESM (Enrolments, 2005 and 2022); Table 3.4 for all institutions (Staff, 2005 and 2022), accessed 15 July 2024
A38: a CRA calculations.
A39: N/A — Not available.

Sheet Teaching staff.pos.05&22
A3: Teaching staff by position, 2005 and 2022
A5: Position | B5: —2005— | D5: —2022—
B6: Number | C6: Proportion of totala | D6: Number | E6: Proportion of totala
A7: Professor | B7: 2010 | C7: =(B7/B15) -> 0.1313553784 | D7: 2367 | E7: =(D7/D15) -> 0.1148360179
A8: Associate professor | B8: 1423 | C8: =(B8/B15) -> 0.09299437982 | D8: 2916 | E8: =(D8/D15) -> 0.1414709878
A9: Director/associate director | B9: 323 | C9: =(B9/B15) -> 0.02110835185 | D9: 69 | E9: =(D9/D15) -> 0.003347564526
A10: Senior lecturer | B10: 4041 | C10: =(B10/B15) -> 0.2640831264 | D10: 5338 | E10: =(D10/D15) -> 0.2589753542
A11: Lecturer | B11: 6138 | C11: =(B11/B15) -> 0.4011240361 | D11: 8755 | E11: =(D11/D15) -> 0.4247525713
A12: Junior lecturer | B12: 660 | C12: =(B12/B15) -> 0.04313161678 | D12: 717 | E12: =(D12/D15) -> 0.03478556181
A13: Below junior lecturer | B13: 66 | C13: =(B13/B15) -> 0.004313161678 | D13: 124 | E13: =(D13/D15) -> 0.00601591306
A14: Other/unspecified | B14: 641 | C14: =(B14/B15) -> 0.04188994903 | D14: 326 | E14: =(D14/D15) -> 0.0158160295
A15: Total | B15: 15302 | C15: 1 | D15: =SUM(D7:D14) -> 20612 | E15: 1
A16: Source: DHET, www.dhet gov.za, Table 3.4 for all institutions (Staff, 2005 and 2022), accessed 11 July 2024
A17: a CRA calculations.

Sheet Teaching staff by race.86&22
A2: Teaching staff by race, 1986 and 2022
A4: Race | B4: —1986— | D4: —2022—
B5: Number | C5: Proportion of totala | D5: Number | E5: Proportion of totala
A6: Black | B6: 424 | C6: =(B6/B11) -> 0.03733051594 | D6: 9599 | E6: =(D6/D11) -> 0.4656995925
A7: Coloured | B7: 243 | C7: =(B7/B11) -> 0.02139461173 | D7: 1537 | E7: =(D7/D11) -> 0.07456821269
A8: Indian/Asian | B8: 348 | C8: =(B8/B11) -> 0.03063919704 | D8: 1637 | E8: =(D8/D11) -> 0.07941975548
A9: White | B9: 10263 | C9: =(B9/B11) -> 0.9035921817 | D9: 7441 | E9: =(D9/D11) -> 0.361003299
A10: Other/unspecified | B10: 80 | C10: =(B10/B11) -> 0.007043493573 | D10: 398 | E10: =(D10/D11) -> 0.01930914031
A11: Total | B11: 11358 | C11: 1 | D11: =SUM(D6:D10) -> 20612 | E11: 1
A12: Source: DHET, www.dhet gov.za, Table 3.3 for all institutions (Staff, 1986 and 2022), accessed 11 July 2024
A13: a CRA calculations.

Sheet Teaching staff by sex.86&22
B2: Teaching staff by sex, 1986 and 2022
B4: Sex | C4: —1986— | E4: —2022—
C5: Number | D5: Proportion of totala | E5: Number | F5: Proportion of totala
B6: Male | C6: 8484 | D6: =(C6/C8) -> 0.7469624934 | E6: 10508 | F6: =(E6/E8) -> 0.5098001164
B7: Female | C7: 2874 | D7: =(C7/C8) -> 0.2530375066 | E7: 10104 | F7: =(E7/E8) -> 0.4901998836
B8: Total | C8: 11358 | D8: 1 | E8: =SUM(E6:E7) -> 20612 | F8: 1
B9: Source: DHET, www.dhet gov.za, Table 3.3 for all institutions (Staff, 1986 and 2022), accessed 11 July 2024
B10: a CRA calculations.

Sheet Teaching staff.age.22
A2: Teaching staff by age, 2022
A4: Age group | B4: Associate Professor | C4: Professor | D4: Senior lecturer | E4: Lecturer | F4: Junior lecturer | G4: Below junior Lecturer | H4: Other/ Unspecifieda
I5: Number | J5: Proportion of totalb
A6: Under 25 years | B6: 0 | C6: 0 | D6: 0 | E6: 19 | F6: 25 | G6: 1 | H6: 8 | I6: 53 | J6: =(I6/I15) -> 0.002571317679
A7: 25-34 | B7: 80 | C7: 4 | D7: 572 | E7: 2514 | F7: 350 | G7: 54 | H7: 73 | I7: 3647 | J7: =(I7/I15) -> 0.1769357656
A8: 35-44 | B8: 810 | C8: 269 | D8: 1876 | E8: 2911 | F8: 192 | G8: 33 | H8: 96 | I8: 6187 | J8: =(I8/I15) -> 0.3001649525
A9: 45-54 | B9: 1096 | C9: 877 | D9: 1733 | E9: 2098 | F9: 107 | G9: 25 | H9: 84 | I9: 6020 | J9: =(I9/I15) -> 0.292062876
A10: 55-59 | B10: 536 | C10: 584 | D10: 646 | E10: 747 | F10: 28 | G10: 6 | H10: 37 | I10: 2584 | J10: =(I10/I15) -> 0.1253638657
A11: 60-62 | B11: 226 | C11: 344 | D11: 316 | E11: 301 | F11: 12 | G11: 3 | H11: 27 | I11: 1229 | J11: =(I11/I15) -> 0.0596254609
A12: 63-65 | B12: 128 | C12: 235 | D12: 172 | E12: 147 | F12: 2 | G12: 2 | H12: 20 | I12: 706 | J12: =(I12/I15) -> 0.0342518921
A13: 66-69 | B13: 24 | C13: 33 | D13: 17 | E13: 13 | F13: 1 | G13: 0 | H13: 25 | I13: 113 | J13: =(I13/I15) -> 0.005482243353
A14: 70+ | B14: 16 | C14: 21 | D14: 6 | E14: 5 | F14: 0 | G14: 0 | H14: 25 | I14: 73 | J14: =(I14/I15) -> 0.003541626237
A15: Total | B15: 2916 | C15: 2367 | D15: 5338 | E15: 8755 | F15: 717 | G15: 124 | H15: 395 | I15: 20612 | J15: 1
A16: Source: DHET, www.dhet gov.za, Table 3.5 for all institutions (Staff, 2022), accessed 11 July 2024
A17: a Includes directors and associate directors.
A18: b CRA calculations.

Sheet Professional staff by race.22
A3: Professional university staff by race and position, 2022
A5: Race | B5: Specialist/ support | C5: Executive/ administrative/managerial | D5: Teaching staff | E5: Total
A6: Black | B6: 2777 | C6: 1050 | D6: 9599 | E6: =SUM(B6:D6) -> 13426 | H6: 398
A7: Coloured | B7: 808 | C7: 269 | D7: 1537 | E7: 2614 | H7: 15
A8: Indian/Asian | B8: 396 | C8: 184 | D8: 1637 | E8: 2217 | H8: 14
A9: White | B9: 1491 | C9: 670 | D9: 7441 | E9: 9602
A10: Other/unspecified | B10: 14 | C10: 15 | D10: 398 | E10: 427
A11: Total | B11: =SUM(B6:B10) -> 5486 | C11: =SUM(C6:C10) -> 2188 | D11: =SUM(D6:D10) -> 20612 | E11: 28286
A12: Source: DHET, www.dhet gov.za, Table 3.3 for all institutions (Staff, 2022), accessed 11 July 2024

Sheet Completion.

Sheet GradRatesPubHigherInst.22
A2: Graduation ratesa in Public Higher Education Institutions by type of award, 2022
A4: University | B4: Undergraduate Certificates and Diplomas | C4: Undergraduate Degrees | D4: Postgraduate Below Master's | E4: Master’s Degrees | F4: Doctoral Degrees
A6: Cape Peninsula University of Technology | B6: 0.195 | C6: 0.181 | D6: 32.5 | E6: 20.5 | F6: 14.8
A7: University of Cape Town | B7: 0.582 | C7: 0.19 | D7: 62 | E7: 22 | F7: 12.5
A8: Central University of Technology | B8: 0.151 | C8: 0.111 | D8: 36.4 | E8: 15.2 | F8: 8.3
A9: Durban University of Technology | B9: 0.28 | C9: 0.195 | D9: 64.8 | E9: 19.3 | F9: 15.2
A10: University of Fort Hare | B10: 0.267 | C10: 16.9 | D10: 63.2 | E10: 12.8 | F10: 12.7
A11: University of the Free State | B11: 0.443 | C11: 19.1 | D11: 61.5 | E11: 25.3 | F11: 16
A12: University of Johannesburg | B12: 0.193 | C12: 17.5 | D12: 58.1 | E12: 24 | F12: 14.4
A13: University of KwaZulu-Natal | B13: 0 | C13: 20 | D13: 62.2 | E13: 22 | F13: 16.8
A14: University of Limpopo | B14: N/A | C14: 16.4 | D14: 62.3 | E14: 28 | F14: 23.3
A15: Mangosuthu University of Technology | B15: 0.195 | C15: 20.8 | D15: 77.2 | E15: 0 | F15: N/A
A16: University of Mpumalanga | B16: 0.178 | C16: 13.1 | D16: 75.9 | E16: 23 | F16: 0
A17: Nelson Mandela University | B17: 0.214 | C17: 17 | D17: 65 | E17: 20.6 | F17: 14.6
A18: North West University | B18: 0.371 | C18: 20 | D18: 71.2 | E18: 24.8 | F18: 13.8
A19: University of Pretoria | B19: 0.36 | C19: 20.1 | D19: 45.3 | E19: 29.4 | F19: 12.8
A20: Rhodes University | B20: 0.309 | C20: 18.3 | D20: 73.5 | E20: 25.4 | F20: 15.2
A21: Sefako Makgatho Health Science University | B21: 0.423 | C21: 18.3 | D21: 73.5 | E21: 25.4 | F21: 15.2
A22: Sol Plaatje University | B22: 0.195 | C22: 15.9 | D22: 47 | E22: 12.5 | F22: N/A
A23: University of South Africa | B23: 0.161 | C23: 11.6 | D23: 32.3 | E23: 21.8 | F23: 19.6
A24: University of Stellenbosch | B24: 0.269 | C24: 19.3 | D24: 68.5 | E24: 29.3 | F24: 16.8
A25: Tshwane University of Technology | B25: 0.223 | C25: 24.1 | D25: 47.6 | E25: 20.9 | F25: 15.1
A26: University of Venda | B26: 0.2 | C26: 19.6 | D26: 47.7 | E26: 19 | F26: 13
A27: Vaal University of Technology | B27: 0.221 | C27: 39.3 | D27: 82 | E27: 20.8 | F27: 12
A28: Walter Sisulu University | B28: 0.255 | C28: 21.4 | D28: 17.5 | E28: 14.2 | F28: 8.3
A29: University of Western Cape | B29: 0.753 | C29: 20.2 | D29: 55.1 | E29: 14 | F29: 9.7
A30: University of Witwatersrand | B30: N/A | C30: 19.2 | D30: 55.2 | E30: 18 | F30: 13.1
A31: University of Zululand | B31: 0.2 | C31: 17.8 | D31: 55.7 | E31: 10.1 | F31: 13.9
A32: Total | B32: 0.203 | C32: 16.3 | D32: 47.9 | E32: 23.1 | F32: 14.9
A33: Source: DHET, Statistics on Post-School Education and Training in South Africa 2022, July 2024, Table 10.6, p129
A34: a Graduation rates are calculated by dividing the number of students obtaining a qualification in a given academic year by the total enrolment for that type of award in that year.
A35: N/A — Not available.

Sheet Completionratesbysub.20-22
A2: Completion ratesa by subject (actual numbers), 2019/20-2022
B4: —Enrolment 2019/20— | E4: —Graduates 2022—
A5: Field of study | B5: Undergraduate diploma/certificate (3 years) | C5: Bachelor's degree (3 years) | D5: Bachelor's degree (4 years or more) | E5: (Undergraduate diploma/certificate 3 years) | F5: Bachelor's degree (3 years) | G5: Bachelor's degree (4 years or more)
A6: Agriculture and related sciences | B6: 8568.333 | C6: 2432.75 | D6: 4002.917 | E6: 1921 | F6: 546.667 | G6: 967.583
A7: Architecture and environmental design | B7: 3761.5 | C7: 4369.917 | D7: 893.167 | E7: 688.833 | F7: 907.5 | G7: 201.5
A8: Business, commerce and management | B8: 80024.833 | C8: 94529.417 | D8: 5272 | E8: 14921.667 | F8: 15496.833 | G8: 917.584
A9: Communication, journalism and related studies | B9: 8433.417 | C9: 10160.917 | D9: 579 | E9: 1312.833 | F9: 1693.833 | G9: 53.333
A10: Computer and information sciences | B10: 18600.333 | C10: 17527.083 | D10: 1718 | E10: 3540.5 | F10: 2628.5 | G10: 147.166
A11: Education | B11: 7300.833 | C11: 2092.083 | D11: 131581 | E11: 1523.25 | F11: 55.083 | G11: 23366
A12: Engineering | B12: 26549.083 | C12: 9153.083 | D12: 20605 | E12: 4544.25 | F12: 1710.5 | G12: 2899.833
A13: Family ecology and consumer sciences | B13: 1131.583 | C13: 1212.25 | D13: 599.333 | E13: 243 | F13: 181.5 | G13: 151
A14: Health professions | B14: 2109 | C14: 5495.25 | D14: 33300 | E14: 403.75 | F14: 1405.167 | G14: 7008.333
A15: Language, linguistics and literature | B15: 2071.083 | C15: 12112.667 | D15: 2481 | E15: 401.917 | F15: 1906.333 | G15: 181.417
A16: Law | B16: 13884.917 | C16: 7779 | D16: 48725.417 | E16: 1752 | F16: 941.583 | G16: 6966.5
A17: Life sciences | B17: 2711.917 | C17: 19497.667 | D17: 2417 | E17: 622.667 | F17: 3459.25 | G17: 373.417
A18: Mathematics and statistics | B18: 906.333 | C18: 11494.333 | D18: 1255 | E18: 64.083 | F18: 1251.167 | G18: 53.667
A19: Philosophy, religion and theology | B19: 134.5 | C19: 4129.833 | D19: 930 | E19: 22 | F19: 635.583 | G19: 67.25
A20: Physical sciences | B20: 4356.75 | C20: 16779.167 | D20: 2519 | E20: 972.75 | F20: 2353.25 | G20: 224.583
A21: Psychology | B21: 10.25 | C21: 23817.083 | D21: 1432 | E21: 1.5 | F21: 4882.25 | G21: 76.667
A22: Public management and services | B22: 20294.417 | C22: 13570.25 | D22: 216.083 | E22: 3671.167 | F22: 3041.25 | G22: 3.5
A23: Social sciences | B23: 615.25 | C23: 29366.75 | D23: 11158 | E23: 153.25 | F23: 5399.417 | G23: 1557
A24: Visual and performing arts | B24: 5536.667 | C24: 4738 | D24: 3913.083 | E24: 943.583 | F24: 738.333 | G24: 703.667
A25: Totalb | B25: 207001 | C25: 290261 | D25: 274049 | E25: 37704 | F25: 49234 | G25: 45921
A26: Source: DHET, www.dhet.gov.za, Table 2.12 for all institutions to 2nd order CESM (Enrolments, 2019 and 2020); Table 2.13 for all institutions to 2nd order CESM (Graduates, 2022), accessed 15 July 2024
A27: a The table above shows, for example, that a total of 8 568 students were enrolled for a three-year undergraduate diploma or certificate in agriculture in 2020. In 2022, some 1 921 (22.4% of the 8 568 students enrolled in 2020) graduated with that qualification.
A28: b Total includes Military Sciences.

Sheet Completion rate by sub%20-22
B3: Completion ratesa by subject (proportionsb), 2019/20-2022
B5: Field of study | C5: Undergraduate diploma/certificate (3 years) | D5: Bachelor’s degree (3 years) | E5: Bachelor's degree (4 years or more)
B6: Agriculture and related sciences | C6: 0.2241976356 | D6: 0.2247115404 | E6: 0.2417194761
B7: Architecture and environmental design | C7: 0.1831272099 | D7: 0.2076698482 | E7: 0.2256017072
B8: Business, commerce and management | C8: 0.1864629571 | D8: 0.1639366188 | E8: 0.1740485584
B9: Communication, journalism and related studies | C9: 0.1556703528 | D9: 0.1667008007 | E9: 0.09211226252
B10: Computer and information sciences | C10: 0.1903460546 | D10: 0.1499679097 | E10: 0.08566123399
B11: Education | C11: 0.2086405757 | D11: 0.02632926132 | E11: 0.1775788298
B12: Engineering | C12: 0.1711641039 | D12: 0.1868769244 | E12: 0.1407344334
B13: Family ecology and consumer sciences | C13: 0.214743417 | D13: 0.1497215921 | E13: 0.2519467475
B14: Health professions | C14: 0.1914414414 | D14: 0.2557057459 | E14: 0.2104604505
B15: Language, linguistics and literature | C15: 0.1940612713 | D15: 0.1573834235 | E15: 0.07312253124
B16: Law | C16: 0.1261800845 | D16: 0.1210416506 | E16: 0.1429746615
B17: Life sciences | C17: 0.2296040034 | D17: 0.1774186624 | E17: 0.1544960695
B18: Mathematics and statistics | C18: 0.07070580019 | D18: 0.1088507702 | E18: 0.0427625498
B19: Philosophy, religion and theology | C19: 0.1635687732 | D19: 0.153900412 | E19: 0.07231182796
B20: Physical sciences | C20: 0.2232742296 | D20: 0.140248321 | E20: 0.08915561731
B21: Psychology | C21: 0.1463414634 | D21: 0.2049894187 | E21: 0.05353840782
B22: Public management and services | C22: 0.1808954157 | D22: 0.2241115676 | E22: 0.01619747967
B23: Social sciences | C23: 0.2490857375 | D23: 0.1838615781 | E23: 0.1395411364
B24: Visual and performing arts | C24: 0.1704243726 | D24: 0.1558322077 | E24: 0.1798241949
B25: Total | C25: 0.1821440476 | D25: 0.169619756 | E25: 0.1675649245
B26: Source: DHET, www.dhet.gov.za, Table 2.12 for all institutions to 2nd order CESM (Enrolments, 2020); Table 2.13 for all institutions to 2nd order CESM (Graduates, 2022), accessed 15 July 2024
B27: a The table above shows the proportion of students who graduated in each degree category as a share of all those who were enrolled in that field three or four years earlier. For example, students who graduated with a three-year undergraduate diploma/certificate in agriculture and related sciences in 2022 accounted for 22.4% of all those enrolled in the same category in 2020.
B28: b CRA calculations.

Sheet Tertiary awards

Sheet Awards.varioustypes.96&22
A2: Tertiary awards
A4: Awards of various types
A6: Undergraduate degrees, diplomas and certificates awarded by all universitiesa by field of study, 1996 and 2022bc
A8: Field of study | B8: 1996 | C8: 2022 | D8: Change
A9: Agriculture and related sciences | B9: 1215 | C9: 4374.25 | D9: =(C9-B9)/B9 -> 2.600205761
A10: Architecture and environmental design | B10: 1322 | C10: 2175.166 | D10: 0.6453600605
A11: Business, commerce and management | B11: 13913 | C11: 44177.834 | D11: 2.175291742
A12: Communication, journalism and related studies | B12: 768 | C12: 3637.666 | D12: 3.736544271
A13: Computer and information sciences | B13: 1697 | C13: 8042.416 | D13: 3.739196229
A14: Education | B14: 19005 | C14: 29390.249 | D14: 0.5464482505
A15: Engineering | B15: 5110 | C15: 11935.666 | D15: 1.335746771
A16: Family ecology and consumer sciences | B16: 728 | C16: 620.25 | D16: -0.1480082418
A17: Health professions and clinical sciences | B17: 6772 | C17: 9688.583 | D17: 0.4306826639
A18: Language, linguistics and literature | B18: 5722 | C18: 2708 | D18: -0.5267389025
A19: Law | B19: 5097 | C19: 12441.749 | D19: 1.440994507
A20: Life and physical sciences | B20: 3577 | C20: 9702 | D20: 1.712328767
A21: Mathematics and statistics | B21: 1010 | C21: 1770.334 | D21: 0.7528059406
A22: Philosophy, religion and theology | B22: 1681 | C22: 847.833 | D22: -0.4956377156
A23: Psychology | B23: 4020 | C23: 5092 | D23: 0.2666666667
A24: Public management and services | B24: 5896 | C24: 9206.75 | D24: 0.5615247626
A25: Social sciences | B25: 6467 | C25: 8619.666 | D25: 0.3328693366
A26: Visual and performing arts | B26: 1290 | C26: 2709.833 | D26: 1.100645736
A27: Total | B27: 85989 | C27: 167141 | D27: 0.943748619
A28: Source: DHET, www.dhet.gov.za, Table 2.13 for all institutions to 2nd order CESM (Graduates, 1996 and 2022), accessed 15 July 2024
A29: a Includes universities of technology.
A30: b Undergraduate awards.
A31: c In 2008 the Higher Education Management Information System (HEMIS) revised the South African Classification of Education Subject Matter (CESM), reducing the number of subject matter categories from 22 to 20. These revisions were implemented in the 2010 HEMIS database. As a result, the 1996 and 2006 figures have been adjusted to reflect the new subject categories.

Sheet Degrees.Diplomas.Certs.22
A2: All degrees, diplomas and certificates awarded by field of study, 2022
A4: Field of study | B4: Diplomas and certificates | C4: Undergraduate degreesa | D4: Postgraduate degreesb | E4: Total
A5: Agriculture and related sciences | B5: 2205 | C5: 2169.25 | D5: 1030.416 | E5: =SUM(B5:D5) -> 5404.666 | I5: =(E5/Total40022) -> 0.02394602618
A6: Architecture and environmental design | B6: 741.833 | C6: 1433.333 | D6: 1456.667 | E6: =SUM(B6:D6) -> 3631.833 | I6: 0.01609127522
A7: Business, commerce and management | B7: 21172.667 | C7: 23005.167 | D7: 15988 | E7: 60165.834 | I7: 0.266572002
A8: Communication, journalism and related studies | B8: 1437.75 | C8: 2199.916 | D8: 798.25 | E8: 4435.916 | I8: 0.01965386217
A9: Computer and information sciences | B9: 4358.417 | C9: 3683.999 | D9: 2002.168 | E9: 10044.584 | I9: 0.04450374387
A10: Education | B10: 4612.583 | C10: 24777.666 | D10: 12139.25 | E10: 41529.499 | I10: 0.1840014665
A11: Engineering | B11: 5481 | C11: 6454.666 | D11: 2427.167 | E11: 14362.833 | I11: 0.06363626818
A12: Family ecology and consumer sciences | B12: 243 | C12: 377.25 | D12: 83 | E12: 703 | I12: 0.003114726498
A13: Health professions and clinical sciences | B13: 920.75 | C13: 8767.833 | D13: 4498.082 | E13: 14186.665 | I13: 0.06285573455
A14: Language, linguistics and literature | B14: 490.25 | C14: 2217.75 | D14: 1016.918 | E14: 3724.918 | I14: 0.01650369957
A15: Law | B15: 4296.083 | C15: 8145.666 | D15: 1373.583 | E15: 13815.332 | I15: 0.0612104988
A16: Life sciences | B16: 767 | C16: 3981.667 | D16: 2815.5 | E16: 7564.167 | I16: 0.03351395646
A17: Mathematics and statistics | B17: 389.25 | C17: 1381.084 | D17: 781.333 | E17: 2551.667 | I17: 0.01130546916
A18: Philosophy, religion and theology | B18: 132 | C18: 715.833 | D18: 614 | E18: 1461.833 | I18: 0.006476827853
A19: Physical sciences | B19: 2120.417 | C19: 2832.666 | D19: 2596.916 | E19: 7549.999 | I19: 0.03345118342
A20: Psychology | B20: 124.583 | C20: 4967.417 | D20: 3358 | E20: 8450 | I20: 0.03743874667
A21: Public management and services | B21: 4948.5 | C21: 4258.25 | D21: 2175.417 | E21: 11382.167 | I21: 0.05043006708
A22: Social sciences | B22: 1662.083 | C22: 6957.583 | D22: 2837.333 | E22: 11456.999 | I22: 0.0507616193
A23: Visual and performing arts | B23: 984.833 | C23: 1725 | D23: 569 | E23: 3278.833 | I23: 0.01452726604
A24: Totalc | B24: 57088 | C24: 110053 | D24: 58561 | E24: 225702
A25: Proportion | B25: =(B24/Total40022) -> 0.2529352864 | C25: =(C24/Total40022) -> 0.4876031227 | D25: =(D24/Total40022) -> 0.2594615909 | E25: =SUM(B25:D25) -> 1
A26: Source: DHET, www.dhet.gov.za, Table 2.13 for all institutions to 2nd order CESM (Graduates, 1996 and 2022), accessed 15 July 2024
A27: a Includes B-Tech Degree and Advanced Diploma.
A28: b Includes Postgraduate Certificate in Education, Postgraduate Diploma/Certificate, National Higher Diploma..
A29: c Includes courses not listed above e.g. Military Sciences are included in the total.

Sheet Agriculture.10-22
A5: All degrees, diplomas and certificates awarded by sub-discipline
A7: Agriculture and related sciences, 2010-22
A9: Field of study | B9: 2010 | C9: 2014 | D9: 2016 | E9: 2018 | F9: 2019 | G9: 2020 | H9: 2022
A10: Agricultural business and management | B10: 828 | C10: 1400 | D10: 1503 | E10: 1776.75 | F10: 1578 | G10: 1765.667 | H10: 1760.417
A11: Agricultural mechanisation | B11: 27 | C11: 17 | D11: 21 | E11: 29.083 | F11: 33 | G11: 27.5 | H11: 19.25
A12: Agricultural production operations | B12: 367 | C12: 408 | D12: 653 | E12: 789.667 | F12: 802 | G12: 692.583 | H12: 1115.25
A13: Animal sciences | B13: 425 | C13: 478 | D13: 607 | E13: 692 | F13: 644 | G13: 967.833 | H13: 944.75
A14: Applied horticultural business services | B14: 148 | C14: 229 | D14: 300 | E14: 235.417 | F14: 270 | G14: 309.833 | H14: 320.333
A15: Food science technology | B15: 282 | C15: 422 | D15: 535 | E15: 534.083 | F15: 503 | G15: 387.917 | H15: 486.5
A16: Forestry and wood sciences | B16: 63 | C16: 101 | D16: 109 | E16: 181.667 | F16: 130 | G16: 149.5 | H16: 172
A17: Plant sciences | B17: 301 | C17: 359 | D17: 438 | E17: 475.417 | F17: 427 | G17: 430.333 | H17: 327.583
A18: Soil sciences | B18: 81 | C18: 123 | D18: 177 | E18: 181.917 | F18: 152 | G18: 174.417 | H18: 184.583
A19: Other | B19: 58 | C19: 341 | D19: 161 | E19: 95 | F19: 66 | G19: 53.5 | H19: 74
A20: Total | B20: 2580 | C20: 3878 | D20: =SUM(D10:D19) -> 4504 | E20: 4991 | F20: 4606 | G20: 4959.083 | H20: 5404.667
A21: Source: DHET, www.dhet.gov.za, Table 2.13 for all institutions to 2nd order CESM (Graduates, 2010-22), accessed 15 July 2024

Sheet Architect.Env.Des.10-22
A2: Architecture and environmental design, 2010-22
A4: Field of study | B4: 2010 | C4: 2014 | D4: 2016 | E4: 2018 | F4: 2019 | G4: 2020 | H4: 2022
A5: Architecture, general | B5: 748 | C5: 809 | D5: 847 | E5: 866.583 | F5: 944 | G5: 836.583 | H5: 777.5
A6: Architectural and built environment technology | B6: 74 | C6: 122 | D6: 100 | E6: 91.75 | F6: 106 | G6: 136.417 | H6: 136
A7: Architectural history and criticism | B7: 7 | C7: 21 | D7: 34 | E7: 40.917 | F7: 35 | G7: 38.75 | H7: 29.25
A8: Building/construction site management | B8: 758 | C8: 950 | D8: 1111 | E8: 1358.75 | F8: 1323 | G8: 1210.167 | H8: 1327.583
A9: City/urban, community and regional planning | B9: 413 | C9: 441 | D9: 577 | E9: 638 | F9: 626 | G9: 489.083 | H9: 574.667
A10: Environmental design/architecture | B10: 142 | C10: 39 | D10: 45 | E10: 53.167 | F10: 54 | G10: 43.25 | H10: 22.75
A11: Interior architecture and design | B11: 28 | C11: 18 | D11: 19 | E11: 32.75 | F11: 19 | G11: 23.667 | H11: 37
A12: Landscape architecture | B12: 12 | C12: 17 | D12: 17 | E12: 33 | F12: 37 | G12: 32.5 | H12: 36.5
A13: Quantity surveying | B13: 425 | C13: 433 | D13: 625 | E13: 629.917 | F13: 760 | G13: 803.75 | H13: 590.583
A14: Other | B14: 300 | C14: 376 | D14: 258 | E14: 263 | F14: 276 | G14: 111.333 | H14: 100
A15: Total | B15: 2907 | C15: 3226 | D15: =SUM(D5:D14) -> 3633 | E15: 4008 | F15: 4180 | G15: 3725.5 | H15: 3631.833
A16: Source: DHET, www.dhet.gov.za, Table 2.13 for all institutions to 2nd order CESM (Graduates, 2010-22), accessed 15 July 2024

Sheet Bus.Comm&Mgt.10-22
A2: Business, commerce and management, 2010-22
A4: Field of study | B4: 2010 | C4: 2014 | D4: 2016 | E4: 2018 | F4: 2019 | G4: 2020 | H4: 2022
A5: Accounting and related services | B5: 14196 | C5: 15473 | D5: 16344 | E5: 19063.167 | F5: 18436 | G5: 19281 | H5: 15813
A6: Business administration, management and operations | B6: 9896 | C6: 13081 | D6: 17482 | E6: 18266 | F6: 17373 | G6: 20502.333 | H6: 19580.833
A7: Business/corporate communications | B7: 132 | C7: 199 | D7: 155 | E7: 176.25 | F7: 132 | G7: 141.417 | H7: 118.333
A8: Economics | B8: 2890 | C8: 3594 | D8: 3886 | E8: 4068.333 | F8: 4117 | G8: 4499 | H8: 3894.75
A9: Entrepreneurial and small business operations | B9: 324 | C9: 476 | D9: 610 | E9: 557.583 | F9: 597 | G9: 807.833 | H9: 887.333
A10: Finance and financial management services | B10: 2937 | C10: 3474 | D10: 4041 | E10: 4367.333 | F10: 4172 | G10: 4641.917 | H10: 5126.667
A11: General sales, merchandising and related marketing operations | B11: 228 | C11: 304 | D11: 355 | E11: 420.75 | F11: 394 | G11: 634.167 | H11: 629.417
A12: Hospitality administration/management | B12: 1211 | C12: 1379 | D12: 1450 | E12: 1456 | F12: 1673 | G12: 1945 | H12: 2731.583
A13: Human resource management and services | B13: 3973 | C13: 4475 | D13: 4467 | E13: 4449.75 | F13: 4121 | G13: 4675.917 | H13: 4140.667
A14: Insurance | B14: 161 | C14: 71 | D14: 239 | E14: 109.5 | F14: 101 | G14: 317.167 | H14: 169.667
A15: International business | B15: 96 | C15: 129 | D15: 148 | E15: 204.417 | F15: 231 | G15: 176.083 | H15: 87.917
A16: Management sciences and quantitative methods | B16: 690 | C16: 1098 | D16: 1156 | E16: 1164.75 | F16: 1264 | G16: 924.917 | H16: 859.417
A17: Marketing | B17: 2430 | C17: 2943 | D17: 2855 | E17: 2739 | F17: 2702 | G17: 3450 | H17: 3196.25
A18: Parks, recreation and leisure facility management | B18: 702 | C18: 592 | D18: 712 | E18: 761.667 | F18: 867 | G18: 810.833 | H18: 697
A19: Real estate | B19: 226 | C19: 155 | D19: 182 | E19: 189.583 | F19: 244 | G19: 225.667 | H19: 192.25
A20: Specialised sales, merchandising and marketing operations | B20: 61 | C20: 153 | D20: 175 | E20: 159.667 | F20: 162 | G20: 150 | H20: 100.167
A21: Taxation | B21: 1201 | C21: 1367 | D21: 1706 | E21: 1728.083 | F21: 1566 | G21: 1493.417 | H21: 1365.417
A22: Other | B22: 303 | C22: 1417 | D22: 403 | E22: 576.667 | F22: 518 | G22: 659.5 | H22: 575.167
A23: Total | B23: 41657 | C23: 50380 | D23: =SUM(D5:D22) -> 56366 | E23: 60458.5 | F23: 58668 | G23: 65336.167 | H23: 60165.833
A24: Source: DHET, www.dhet.gov.za, Table 2.13 for all institutions to 2nd order CESM (Graduates, 2010-22), accessed 15 July 2024

Sheet Comms&Journ.10-22
A2: Communication and journalism, 2010-22
A4: Field of study | B4: 2010 | C4: 2014 | D4: 2016 | E4: 2018 | F4: 2019 | G4: 2020 | H4: 2022
A5: Communication and media studies | B5: 1259 | C5: 1092 | D5: 1387 | E5: 1913.25 | F5: 1685 | G5: 1889.25 | H5: 1976.917
A6: Journalism | B6: 480 | C6: 543 | D6: 574 | E6: 591.083 | F6: 551 | G6: 577.333 | H6: 578.583
A7: Public relations, advertising and applied communication | B7: 952 | C7: 1827 | D7: 1580 | E7: 1708.75 | F7: 1638 | G7: 1440.25 | H7: 1706.5
A8: Publishing | B8: 35 | C8: 48 | D8: 46 | E8: 46 | F8: 39 | G8: 37 | H8: 43
A9: Radio, television and digital communication | B9: 217 | C9: 274 | D9: 281 | E9: 136.667 | F9: 137 | G9: 150.25 | H9: 106.083
A10: Other | B10: 40 | C10: 254 | D10: 95 | E10: 38.583 | F10: 48 | G10: 47.5 | H10: 24.833
A11: Total | B11: 2983 | C11: 4038 | D11: =SUM(D5:D10) -> 3963 | E11: 4434.333 | F11: 4099 | G11: 4141.583 | H11: 4435.917
A12: Source: DHET, www.dhet.gov.za, Table 2.13 for all institutions to 2nd order CESM (Graduates, 2010-22), accessed 15 July 2024

Sheet Comp&Infor.Scien10-22
A2: Computer and information sciences, 2010-22
A4: Field of study | B4: 2010 | C4: 2014 | D4: 2016 | E4: 2018 | F4: 2019 | G4: 2020 | H4: 2022
A5: Computer and business systems analysis | B5: 65 | C5: 113 | D5: 191 | E5: 281.833 | F5: 255 | G5: 233.833 | H5: 327.833
A6: Computer and information sciences | B6: 1374 | C6: 2344 | D6: 2414 | E6: 2687.25 | F6: 2621 | G6: 3228.667 | H6: 3918.833
A7: Computer/information technology administration and management | B7: 190 | C7: 352 | D7: 396 | E7: 501.5 | F7: 549 | G7: 585.583 | H7: 485.333
A8: Computer programming | B8: 906 | C8: 924 | D8: 906 | E8: 1047.667 | F8: 1060 | G8: 1235.083 | H8: 1436
A9: Computer science | B9: 344 | C9: 622 | D9: 671 | E9: 741.917 | F9: 847 | G9: 960.25 | H9: 1122.333
A10: Computer software and media applications | B10: 313 | C10: 299 | D10: 238 | E10: 183.583 | F10: 211 | G10: 216.25 | H10: 225.75
A11: Computer systems networking and telecommunications | B11: 277 | C11: 400 | D11: 409 | E11: 268.5 | F11: 363 | G11: 283.417 | H11: 348.833
A12: Data entry/micro-computer applications | B12: 178 | C12: 107 | D12: 81 | E12: 291.333 | F12: 59 | G12: 52.25 | H12: 59.667
A13: Data processing and information sciences | B13: 499 | C13: 585 | D13: 790 | E13: 811.167 | F13: 801 | G13: 1009.167 | H13: 995.667
A14: Management information systems and services | B14: 500 | C14: 877 | D14: 602 | E14: 811.083 | F14: 721 | G14: 953.083 | H14: 1056.083
A15: Other | B15: 110 | C15: 174 | D15: 40 | E15: 55.917 | F15: 52 | G15: 89.917 | H15: 68.25
A16: Total | B16: 4756 | C16: 6797 | D16: =SUM(D5:D15) -> 6738 | E16: 7681.75 | F16: 7538 | G16: 8847.5 | H16: 10044.583
A17: Source: DHET, www.dhet.gov.za, Table 2.13 for all institutions to 2nd order CESM (Graduates, 2010-22), accessed 15 July 2024

Sheet Education.10-22
A2: Education, 2010-22
A4: Field of study | B4: 2010 | C4: 2014 | D4: 2016a | E4: 2018a | F4: 2019a | G4: 2020a | H4: 2022a
A5: Counsellor Education and Guidance Services | B5: 1765 | C5: 275 | D5: N/A | E5: N/A | F5: N/A | G5: N/A | H5: N/A
A6: Curriculum and instruction | B6: 1300 | C6: 541 | D6: N/A | E6: N/A | F6: N/A | G6: N/A | H6: N/A
A7: Education, general | B7: 9948 | C7: 15747 | D7: N/A | E7: N/A | F7: N/A | G7: N/A | H7: N/A
A8: Educational management and leadership | B8: 5854 | C8: 2693 | D8: 2629 | E8: 1903.25 | F8: 1618 | G8: 1317.917 | H8: 1991.833
A9: Educational/instructional media design | B9: 1162 | C9: 284 | D9: N/A | E9: N/A | F9: N/A | G9: N/A | H9: N/A
A10: Educational assessment, evaluation and research | B10: 1089 | C10: 1188 | D10: 347 | E10: 631.083 | F10: 595 | G10: 574.583 | H10: 468.833
A11: Foundations of Education | B11: N/A | C11: N/A | D11: 16167 | E11: 18114 | F11: 15809 | G11: 16662.583 | H11: 13153.917
A12: International and comparative education | B12: 241 | C12: 109 | D12: N/A | E12: N/A | F12: N/A | G12: N/A | H12: N/A
A13: Social and philosophical foundations of education | B13: 2951 | C13: 1542 | D13: N/A | E13: N/A | F13: N/A | G13: N/A | H13: N/A
A14: Special needs education | B14: 988 | C14: 212 | D14: 255 | E14: 522.167 | F14: 808 | G14: 718.583 | H14: 358.667
A15: Teaching education and professional development | B15: 4637 | C15: 8034 | D15: N/A | E15: N/A | F15: N/A | G15: N/A | H15: N/A
A16: Teaching and learning support | B16: N/A | C16: N/A | D16: 9243 | E16: 17807.917 | F16: 15214 | G16: 12845.417 | H16: 7151.667
A17: Teacher education and professional development, early childhood development and general education and training | B17: 4123 | C17: 3066 | D17: N/A | E17: N/A | F17: N/A | G17: N/A | H17: N/A
A18: Teaching, leading and research in education and professional development, further education and training | B18: 3135 | C18: 1824 | D18: N/A | E18: N/A | F18: N/A | G18: N/A | H18: N/A
A19: Teaching, leading and research in early childhood education and development | B19: N/A | C19: N/A | D19: 445 | E19: 953 | F19: 823 | G19: 704.833 | H19: 746.417
A20: Teaching, leading and research in grade R and Foundation Phase | B20: N/A | C20: N/A | D20: 1180 | E20: 1054.917 | F20: 2558 | G20: 2754.167 | H20: 4249.5
A21: Teaching, leading and research in Intermediate School Phase | B21: N/A | C21: N/A | D21: 1402 | E21: 1127.833 | F21: 1437 | G21: 1475.5 | H21: 2804.083
A22: Teaching, leading and research in Senior School Phase | B22: N/A | C22: N/A | D22: 1877 | E22: 1489 | F22: 2336 | G22: 2820.25 | H22: 2786.25
A23: Teaching, leading and research in Senior School/ Further Education and Training (FET) Phase | B23: N/A | C23: N/A | D23: 2773 | E23: 2709.333 | F23: 3267 | G23: 4241 | H23: 4358.833
A24: Teaching, leading and research in Community and Adult Education and Training | B24: N/A | C24: N/A | D24: 176 | E24: 182 | F24: 45 | G24: 189.833 | H24: 257.25
A25: Teaching, leading and research in Technical and Vocational Education and Training (TVET) | B25: N/A | C25: N/A | D25: 20 | E25: 200.833 | F25: 36 | G25: 269.083 | H25: 328.583
A26: Teaching, leading and research in Higher Education | B26: N/A | C26: N/A | D26: 236 | E26: 132.833 | F26: 181 | G26: 193.5 | H26: 349.25
A27: Other | B27: 699 | C27: 1561 | D27: 5357 | E27: 3822 | F27: 2763 | G27: 2503.75 | H27: 2524
A28: Total | B28: 37892 | C28: 37076 | D28: =SUM(D6:D27) -> 42107 | E28: 50650.75 | F28: 47492 | G28: 47271 | H28: 41529.5
A29: Source: DHET, www.dhet.gov.za, Table 2.13 for all institutions to 2nd order CESM (Graduates, 2010-22), accessed 15 July 2024
A30: a The DHET changed its graduate classification for education from 2015. Thus, figures will not be strictly comparable between 2010 and 2022. However, between 2010 and 2014, figures are strictly comparable.
A31: N/A — Not available.

Sheet Engineering.10-22
A2: Engineering, 2010-22
A4: Field of study | B4: 2010 | C4: 2014 | D4: 2016 | E4: 2018 | F4: 2019 | G4: 2020 | H4: 2022
A5: Aerospace, aeronautical and astronautical engineering | B5: 18 | C5: 22 | D5: 7 | E5: 11 | F5: 25 | G5: 26 | H5: 20
A6: Agricultural/biological engineering and bio-engineering | B6: 17 | C6: 30 | D6: 16 | E6: 29.5 | F6: 27 | G6: 25.5 | H6: 15.5
A7: Biomedical/medical engineering | B7: 32 | C7: 19 | D7: 35 | E7: 35 | F7: 29 | G7: 53 | H7: 51
A8: Chemical engineering | B8: 1138 | C8: 1619 | D8: 1583 | E8: 1841.417 | F8: 1671 | G8: 1554.5 | H8: 1405.25
A9: Civil engineering | B9: 2057 | C9: 2733 | D9: 2696 | E9: 2948.667 | F9: 3190 | G9: 3073.583 | H9: 2606.083
A10: Computer engineering | B10: 297 | C10: 251 | D10: 222 | E10: 398.917 | F10: 420 | G10: 354.167 | H10: 497.5
A11: Construction engineering | B11: 24 | C11: 120 | D11: 141 | E11: 148.167 | F11: 180 | G11: 168.167 | H11: 151
A12: Electrical, electronics and communications engineering | B12: 2537 | C12: 3269 | D12: 3360 | E12: 3545.667 | F12: 3647 | G12: 3446.083 | H12: 3636.833
A13: Engineering mechanics | B13: 182 | C13: 231 | D13: 224 | E13: 159.25 | F13: 105 | G13: 75.167 | H13: 14.5
A14: Engineering physics | B14: 4 | C14: 8 | D14: 15 | E14: 14 | F14: 9 | G14: 25.5 | H14: 16.5
A15: Engineering science | B15: 9 | C15: 34 | D15: 17 | E15: 39.583 | F15: 43 | G15: 13 | H15: 1.333
A16: Environmental health engineering | B16: 27 | C16: 18 | D16: 17 | E16: 24.5 | F16: 20 | G16: 14.083 | H16: 18
A17: Geological/geophysical engineering | B17: 39 | C17: 45 | D17: 41 | E17: 46.333 | F17: 51 | G17: 36.667 | H17: 20.75
A18: Industrial engineering | B18: 625 | C18: 1077 | D18: 1307 | E18: 1673.833 | F18: 1366 | G18: 1197 | H18: 1214.25
A19: Manufacturing engineering | B19: 79 | C19: 72 | D19: 50 | E19: 73.333 | F19: 78 | G19: 27.833 | H19: 52.75
A20: Materials engineering | B20: 55 | C20: 78 | D20: 84 | E20: 70.167 | F20: 73 | G20: 57.833 | H20: 112.333
A21: Materials science | B21: 4 | C21: 3 | D21: 8 | E21: 4 | F21: 10 | G21: 12.333 | H21: 8.25
A22: Mechanical and mechatronic engineering | B22: 1542 | C22: 2469 | D22: 2722 | E22: 2955.833 | F22: 3043 | G22: 3063.25 | H22: 2858.333
A23: Metallurgical engineering | B23: 304 | C23: 477 | D23: 410 | E23: 468.667 | F23: 503 | G23: 380.167 | H23: 383.333
A24: Mining and mineral engineering | B24: 345 | C24: 441 | D24: 488 | E24: 457.75 | F24: 430 | G24: 341 | H24: 353.5
A25: Naval architecture and marine engineering | B25: 43 | C25: 63 | D25: 99 | E25: 143 | F25: 121 | G25: 132.5 | H25: 178
A26: Nuclear engineering | B26: 39 | C26: 14 | D26: 10 | E26: 31 | F26: 24 | G26: 23 | H26: 25
A27: Ocean engineering | B27: 0 | C27: 0 | D27: 0 | E27: 0 | F27: 1 | G27: 1.5 | H27: 0
A28: Operations research | B28: 96 | C28: 75 | D28: 96 | E28: 82.583 | F28: 73 | G28: 88.75 | H28: 105.333
A29: Polymer/plastics engineering | B29: 19 | C29: 17 | D29: 18 | E29: 19 | F29: 21 | G29: 19 | H29: 6
A30: Systems engineering | B30: 347 | C30: 431 | D30: 342 | E30: 289.75 | F30: 307 | G30: 245 | H30: 184
A31: Surveying engineering | B31: 220 | C31: 294 | D31: 278 | E31: 337.417 | F31: 313 | G31: 210.333 | H31: 208.5
A32: Textile sciences and engineering | B32: 21 | C32: 18 | D32: 23 | E32: 34 | F32: 22 | G32: 37 | H32: 41.5
A33: Other | B33: 81 | C33: 149 | D33: 113 | E33: 197.75 | F33: 172 | G33: 123 | H33: 177.5
A34: Total | B34: 10201 | C34: 14077 | D34: =SUM(D5:D33) -> 14422 | E34: 16080.083 | F34: 15971 | G34: 14824.917 | H34: 14362.833
A35: Source: DHET, www.dhet.gov.za, Table 2.13 for all institutions to 2nd order CESM (Graduates, 2010-22), accessed 15 July 2024

Sheet FamilyEcology.10-22
A2: Family ecology and consumer sciences, 2010-22
A4: Field of study | B4: 2010 | C4: 2014 | D4: 2016 | E4: 2018 | F4: 2019 | G4: 2020 | H4: 2022
A5: Apparel and textiles | B5: 48 | C5: 92 | D5: 94 | E5: 105.333 | F5: 128 | G5: 114.25 | H5: 115
A6: Family and consumer sciences | B6: 102 | C6: 141 | D6: 250 | E6: 221.5 | F6: 196 | G6: 205 | H6: 198
A7: Foods, nutrition and related services | B7: 226 | C7: 270 | D7: 322 | E7: 303.083 | F7: 304 | G7: 241.75 | H7: 321.583
A8: Housing and human environments | B8: 34 | C8: 41 | D8: 77 | E8: 91.333 | F8: 75 | G8: 73 | H8: 41.5
A9: Human development, family studies and related services | B9: 43 | C9: 138 | D9: 167 | E9: 73.75 | F9: 63 | G9: 66 | H9: 21.417
A10: Other | B10: 26 | C10: 17 | D10: 2 | E10: 10 | F10: 13 | G10: 18.667 | H10: 6
A11: Total | B11: 479 | C11: 699 | D11: =SUM(D5:D10) -> 912 | E11: 805 | F11: 780 | G11: 718.667 | H11: 703.25
A12: Source: DHET, www.dhet.gov.za, Table 2.13 for all institutions to 2nd order CESM (Graduates, 2010-22), accessed 15 July 2024

Sheet Health.10-22
A2: Health professions, 2010-22
A4: Field of study | B4: 2010 | C4: 2014 | D4: 2016 | E4: 2018 | F4: 2019 | G4: 2020 | H4: 2022
A5: Alternative and complementary medicine and medical systems | B5: 71 | C5: 76 | D5: 73 | E5: 71 | F5: 81 | G5: 105 | H5: 95
A6: Bioethics/medical ethics | B6: 5 | C6: 9 | D6: 16 | E6: 36.5 | F6: 34 | G6: 21 | H6: 21
A7: Chiropractic | B7: 136 | C7: 116 | D7: 138 | E7: 129.667 | F7: 149 | G7: 60 | H7: 108
A8: Communication disorders sciences and services | B8: 189 | C8: 239 | D8: 279 | E8: 336.75 | F8: 351 | G8: 365 | H8: 323
A9: Dental support services and allied professions | B9: 241 | C9: 241 | D9: 371 | E9: 335.5 | F9: 334 | G9: 376.833 | H9: 415.5
A10: Dentistry, advanced dentistry and oral sciences | B10: 417 | C10: 448 | D10: 426 | E10: 424.75 | F10: 459 | G10: 417.5 | H10: 367.5
A11: Dietetics and clinical nutrition services | B11: 167 | C11: 183 | D11: 224 | E11: 253.667 | F11: 224 | G11: 249.583 | H11: 274
A12: Energy and biologically based therapies | B12: 11 | C12: 2 | D12: 0 | E12: 0 | F12: 0 | G12: 6.5 | H12: 25
A13: Health and medical administrative services | B13: 679 | C13: 510 | D13: 511 | E13: 767.167 | F13: 779 | G13: 728.667 | H13: 605.167
A14: Movement and mind-body therapies and education | B14: 7 | C14: 4 | D14: 0 | E14: 6.25 | F14: 0 | G14: 0 | H14: 0
A15: Medicine | B15: 792 | C15: 649 | D15: 1308 | E15: 1176.333 | F15: 1175 | G15: 1323.917 | H15: 1395.583
A16: Medical clinical sciences | B16: 2093 | C16: 2240 | D16: 2421 | E16: 2628.5 | F16: 2612 | G16: 2514.417 | H16: 2740.917
A17: Medical radiological technology/radiography | B17: 320 | C17: 431 | D17: 513 | E17: 361.583 | F17: 496 | G17: 469.083 | H17: 305.5
A18: Nursing | B18: 3025 | C18: 3157 | D18: 2801 | E18: 3041.583 | F18: 3176 | G18: 2735.75 | H18: 1913.083
A19: Optometry | B19: 165 | C19: 111 | D19: 158 | E19: 120 | F19: 187 | G19: 164.5 | H19: 182.5
A20: Pharmacy, pharmaceutical sciences and administration | B20: 582 | C20: 972 | D20: 1373 | E20: 1379.5 | F20: 1257 | G20: 1182.5 | H20: 1138.167
A21: Podiatric medicine, podiatry | B21: 6 | C21: 17 | D21: 31 | E21: 25 | F21: 38 | G21: 2 | H21: 43
A22: Public health | B22: 967 | C22: 1139 | D22: 1264 | E22: 1311.25 | F22: 1171 | G22: 1263.333 | H22: 2166.25
A23: Rehabilitation and therapeutic professions | B23: 845 | C23: 1103 | D23: 1313 | E23: 1467.917 | F23: 1316 | G23: 1351.333 | H23: 1381.083
A24: Somatic bodywork and related therapeutic services | B24: 144 | C24: 124 | D24: 147 | E24: 184.333 | F24: 168 | G24: 216.583 | H24: 173.5
A25: Veterinary medicine | B25: 76 | C25: 53 | D25: 16 | E25: 25.5 | F25: 24 | G25: 5 | H25: 8
A26: Veterinary biomedical and clinical sciences | B26: 214 | C26: 194 | D26: 231 | E26: 351.5 | F26: 338 | G26: 258 | H26: 244
A27: Other | B27: 50 | C27: 549 | D27: 333 | E27: 332 | F27: 413 | G27: 323 | H27: 261
A28: Total | B28: 11202 | C28: 12567 | D28: =SUM(D5:D27) -> 13947 | E28: 14765.917 | F28: 14781 | G28: 14139.5 | H28: 14186.667
A29: Source: DHET, www.dhet.gov.za, Table 2.13 for all institutions to 2nd order CESM (Graduates, 2010-22), accessed 15 July 2024

Sheet Language.10-22
A2: Language, linguistics and literature, 2010-22
A4: Field of study | B4: 2010 | C4: 2014 | D4: 2016 | E4: 2018 | F4: 2019 | G4: 2020 | H4: 2022
A5: Afrikaans language and literature | B5: 257 | C5: 508 | D5: 482 | E5: 373.25 | F5: 303 | G5: 415.667 | H5: 377.667
A6: Asian languages and literature | B6: 1 | C6: 1 | D6: 2 | E6: 7.833 | F6: 7 | G6: 4.667 | H6: 5
A7: Classics and classical languages and literature | B7: 72 | C7: 78 | D7: 78 | E7: 57.917 | F7: 78 | G7: 82.917 | H7: 54.083
A8: Comparative African languages and literatures | B8: 35 | C8: 18 | D8: 48 | E8: 33.167 | F8: 26 | G8: 109.333 | H8: 14.5
A9: Dutch language and literature | B9: 5 | C9: 1 | D9: 3 | E9: 6.833 | F9: 9 | G9: 4.917 | H9: 3.5
A10: English language and literature | B10: 957 | C10: 1043 | D10: 895 | E10: 1103.417 | F10: 1159 | G10: 1218.25 | H10: 1138.083
A11: European languages and literature (excluding Dutch) | B11: 132 | C11: 135 | D11: 156 | E11: 143.5 | F11: 143 | G11: 141.75 | H11: 115
A12: Linguistic, comparative and related languages studies and practices | B12: 667 | C12: 866 | D12: 1117 | E12: 1198.083 | F12: 1394 | G12: 1104.667 | H12: 1446
A13: Middle/near Eastern and Semitic languages and literature | B13: 50 | C13: 59 | D13: 34 | E13: 35.917 | F13: 34 | G13: 34.583 | H13: 21.667
A14: Ndebele language and literature | B14: 1 | C14: 2 | D14: 4 | E14: 1.75 | F14: 0 | G14: 0 | H14: 0
A15: Pedi language and literature | B15: 24 | C15: 19 | D15: 34 | E15: 84.083 | F15: 60 | G15: 44.167 | H15: 30.75
A16: Sotho language and literature | B16: 41 | C16: 24 | D16: 38 | E16: 54.75 | F16: 107 | G16: 118.25 | H16: 25.667
A17: South African Sign Language | B17: 1 | C17: 9 | D17: 10 | E17: 13.833 | F17: 24 | G17: 25.5 | H17: 24.333
A18: Swati language and literature | B18: 4 | C18: 4 | D18: 12 | E18: 7.833 | F18: 11 | G18: 16.75 | H18: 22
A19: Tsonga language and literature | B19: 53 | C19: 19 | D19: 37 | E19: 50.833 | F19: 66 | G19: 22.917 | H19: 33
A20: Tswana language and literature | B20: 8 | C20: 49 | D20: 5 | E20: 11.25 | F20: 18 | G20: 16.083 | H20: 16.75
A21: Venda language and literature | B21: 35 | C21: 25 | D21: 25 | E21: 23.75 | F21: 28 | G21: 30 | H21: 30
A22: Xhosa language and literature | B22: 30 | C22: 69 | D22: 78 | E22: 101.917 | F22: 82 | G22: 108.167 | H22: 124.833
A23: Zulu language and literature | B23: 63 | C23: 108 | D23: 169 | E23: 168.833 | F23: 176 | G23: 302.417 | H23: 151.583
A24: Other African languages and literature | B24: 29 | C24: 45 | D24: 50 | E24: 46.25 | F24: 57 | G24: 63.917 | H24: 62.333
A25: Other languages, linguistics and literature | B25: 58 | C25: 513 | D25: 61 | E25: 74.917 | F25: 42 | G25: 57.25 | H25: 28.167
A26: Total | B26: 2523 | C26: 3595 | D26: =SUM(D5:D25) -> 3338 | E26: 3599.917 | F26: 3822 | G26: 3922.167 | H26: 3724.917
A27: Source: DHET, www.dhet.gov.za, Table 2.13 for all institutions to 2nd order CESM (Graduates, 2010-22), accessed 15 July 2024

Sheet Law, 2010-22
A2: Law, 2010-22
A4: Field of study | B4: 2010 | C4: 2014 | D4: 2016 | E4: 2018 | F4: 2019 | G4: 2020 | H4: 2022
A5: Formal law | B5: 311 | C5: 470 | D5: 607 | E5: 661.417 | F5: 629 | G5: 697.333 | H5: 1107.083
A6: International aspects of law | B6: 434 | C6: 273 | D6: 349 | E6: 343.417 | F6: 446 | G6: 416.5 | H6: 534.917
A7: Legal profession | B7: 278 | C7: 792 | D7: 1226 | E7: 1006.583 | F7: 1256 | G7: 1197.417 | H7: 1156
A8: Mercantile law | B8: 1100 | C8: 1460 | D8: 1579 | E8: 1487.583 | F8: 1733 | G8: 1877.333 | H8: 1959.25
A9: Perspectives on law | B9: 476 | C9: 553 | D9: 1025 | E9: 1796.75 | F9: 1750 | G9: 4635.833 | H9: 2848.25
A10: Private law | B10: 1336 | C10: 2101 | D10: 2362 | E10: 2968.25 | F10: 2904 | G10: 3292.917 | H10: 4076.083
A11: Public law | B11: 1065 | C11: 815 | D11: 692 | E11: 874.917 | F11: 913 | G11: 1298.083 | H11: 1466.917
A12: Other | B12: 290 | C12: 807 | D12: 683 | E12: 874.75 | F12: 1054 | G12: 1478.667 | H12: 666.833
A13: Total | B13: 5290 | C13: 7271 | D13: =SUM(D5:D12) -> 8523 | E13: 10013.667 | F13: 10685 | G13: 14894.083 | H13: 13815.333
A14: Source: DHET, www.dhet.gov.za, Table 2.13 for all institutions to 2nd order CESM (Graduates, 2010-22), accessed 15 July 2024

Sheet Life sciences.10-22
A2: Life sciences, 2010-22
A4: Field of study | B4: 2010 | C4: 2014 | D4: 2016 | E4: 2018 | F4: 2019 | G4: 2020 | H4: 2022
A5: Biochemistry, biophysics and molecular biochemistry | B5: 651 | C5: 960 | D5: 1030 | E5: 1233.833 | F5: 1120 | G5: 1112.583 | H5: 1052.583
A6: Biology, general | B6: 293 | C6: 390 | D6: 369 | E6: 370.25 | F6: 432 | G6: 421.5 | H6: 310.833
A7: Biomathematics and bioinformatics | B7: 91 | C7: 59 | D7: 91 | E7: 122.417 | F7: 131 | G7: 119.833 | H7: 162.417
A8: Biotechnology | B8: 427 | C8: 458 | D8: 557 | E8: 651.167 | F8: 638 | G8: 573.083 | H8: 599.333
A9: Botany/plant biology | B9: 294 | C9: 345 | D9: 446 | E9: 481.583 | F9: 393 | G9: 467.333 | H9: 440
A10: Cell/cellular biology and anatomical sciences | B10: 109 | C10: 199 | D10: 261 | E10: 303 | F10: 245 | G10: 330.833 | H10: 270.167
A11: Ecology, evolution, systematics and population biology | B11: 368 | C11: 415 | D11: 429 | E11: 549.75 | F11: 461 | G11: 484.5 | H11: 630.583
A12: Genetics | B12: 289 | C12: 357 | D12: 485 | E12: 467.667 | F12: 525 | G12: 645.5 | H12: 524.833
A13: Microbiological sciences and immunology | B13: 486 | C13: 588 | D13: 696 | E13: 938.5 | F13: 1053 | G13: 1117 | H13: 926
A14: Pharmacology and toxicology | B14: 164 | C14: 148 | D14: 204 | E14: 221.583 | F14: 206 | G14: 135.333 | H14: 139.083
A15: Physiology, pathology and related sciences | B15: 878 | C15: 1273 | D15: 1435 | E15: 1648 | F15: 1746 | G15: 1948.333 | H15: 1809.333
A16: Zoology/animal biology | B16: 343 | C16: 334 | D16: 391 | E16: 490.583 | F16: 397 | G16: 348.75 | H16: 541.583
A17: Other | B17: 12 | C17: 544 | D17: 341 | E17: 297.25 | F17: 287 | G17: 145 | H17: 157.417
A18: Total | B18: 4405 | C18: 6070 | D18: =SUM(D5:D17) -> 6735 | E18: 7775.583 | F18: 7635 | G18: 7849.583 | H18: 7564.167
A19: Source: DHET, www.dhet.gov.za, Table 2.13 for all institutions to 2nd order CESM (Graduates, 2010-22), accessed 15 July 2024

Sheet Maths and stats.2010-22
A2: Mathematics and statistics, 2010-22
A4: Field of study | B4: 2010 | C4: 2014 | D4: 2016 | E4: 2018 | F4: 2019 | G4: 2020 | H4: 2022
A5: Applied mathematics | B5: 225 | C5: 387 | D5: 374 | E5: 400.667 | F5: 453 | G5: 455.083 | H5: 446.833
A6: Mathematics | B6: 940 | C6: 921 | D6: 650 | E6: 758.833 | F6: 940 | G6: 1046.917 | H6: 1067.083
A7: Statistics | B7: 868 | C7: 887 | D7: 863 | E7: 939.667 | F7: 931 | G7: 1066.75 | H7: 1029.417
A8: Other | B8: 3 | C8: 317 | D8: 0 | E8: 0.75 | F8: 17 | G8: 9.5 | H8: 8.333
A9: Total | B9: 2036 | C9: 2512 | D9: =SUM(D5:D8) -> 1887 | E9: 2099.917 | F9: 2340 | G9: 2578.25 | H9: 2551.667
A10: Source: DHET, www.dhet.gov.za, Table 2.13 for all institutions to 2nd order CESM (Graduates, 2010-22), accessed 15 July 2024

Sheet Philosophy,Rel and Theo.2010-22
B2: Philosophy, religion and theology, 2010-22
B4: Field of study | C4: 2010 | D4: 2014 | E4: 2016 | F4: 2018 | G4: 2019 | H4: 2020 | I4: 2022
B5: Philosophy | C5: 328 | D5: 522 | E5: 571 | F5: 641.667 | G5: 570 | H5: 656.583 | I5: 614.25
B6: Religion | C6: 84 | D6: 112 | E6: 149 | F6: 154.583 | G6: 285 | H6: 180 | I6: 106.083
B7: Theology | C7: 785 | D7: 623 | E7: 647 | F7: 622.75 | G7: 664 | H7: 802 | I7: 688.167
B8: Other | C8: 4 | D8: 84 | E8: 9 | F8: 7.25 | G8: 35 | H8: 57.75 | I8: 53.333
B9: Total | C9: 1201 | D9: 1341 | E9: =SUM(E5:E8) -> 1376 | F9: 1426.25 | G9: 1554 | H9: 1696.333 | I9: 1461.833
B10: Source: DHET, www.dhet.gov.za, Table 2.13 for all institutions to 2nd order CESM (Graduates, 2010-22), accessed 15 July 2024

Sheet Physical Sciences.2010-22
A2: Physical sciences, 2010-22
A4: Field of study | B4: 2010 | C4: 2014 | D4: 2016 | E4: 2018 | F4: 2019 | G4: 2020 | H4: 2022
A5: Astronomy and astrophysics | B5: 42 | C5: 37 | D5: 48 | E5: 52.75 | F5: 47 | G5: 52.917 | H5: 60.583
A6: Atmospheric sciences and meteorology | B6: 60 | C6: 46 | D6: 67 | E6: 61.167 | F6: 82 | G6: 122 | H6: 75.917
A7: Chemistry | B7: 1282 | C7: 1615 | D7: 1939 | E7: 2132.5 | F7: 1979 | G7: 1941.75 | H7: 1830.333
A8: Geography and cartography | B8: 1544 | C8: 2203 | D8: 2571 | E8: 2898.917 | F8: 2939 | G8: 3215.25 | H8: 3857.583
A9: Geology and earth sciences/geosciences | B9: 809 | C9: 978 | D9: 1078 | E9: 1144.167 | F9: 1036 | G9: 914.667 | H9: 833.667
A10: Physical science, general | B10: 121 | C10: 115 | D10: 126 | E10: 159.917 | F10: 161 | G10: 166.583 | H10: 110.75
A11: Physics | B11: 322 | C11: 402 | D11: 513 | E11: 549.583 | F11: 589 | G11: 646.917 | H11: 775.833
A12: Other | B12: 8 | C12: 353 | D12: 3 | E12: 3.583 | F12: 18 | G12: 15.5 | H12: 5.333
A13: Total | B13: 4188 | C13: 5749 | D13: =SUM(D5:D12) -> 6345 | E13: 6699.25 | F13: 6850 | G13: 7075.583 | H13: 7550
A14: Source: DHET, www.dhet.gov.za, Table 2.13 for all institutions to 2nd order CESM (Graduates, 2010-22), accessed 15 July 2024

Sheet Psychology.10-22
A2: Psychology, 2010-22
A4: Field of study | B4: 2010 | C4: 2014 | D4: 2016 | E4: 2018 | F4: 2019 | G4: 2020 | H4: 2022
A5: Clinical psychology | B5: 235 | C5: 176 | D5: 245 | E5: 300.167 | F5: 311 | G5: 257.333 | H5: 216.167
A6: Cognitive psychology and psycholinguistics | B6: 59 | C6: 7 | D6: 6 | E6: 12.167 | F6: 3 | G6: 1.5 | H6: 1
A7: Community psychology | B7: 225 | C7: 170 | D7: 366 | E7: 544.25 | F7: 412 | G7: 722 | H7: 615.417
A8: Counselling psychology | B8: 143 | C8: 218 | D8: 136 | E8: 144.583 | F8: 146 | G8: 160.417 | H8: 116.667
A9: Developmental and child psychology | B9: 133 | C9: 83 | D9: 96 | E9: 160.083 | F9: 121 | G9: 151.083 | H9: 135.75
A10: Educational psychology | B10: 104 | C10: 116 | D10: 145 | E10: 174.667 | F10: 174 | G10: 166.667 | H10: 128.917
A11: Forensic psychology | B11: 6 | C11: 6 | D11: 19 | E11: 46.167 | F11: 31 | G11: 25.5 | H11: 10
A12: Health/medical psychology | B12: 47 | C12: 19 | D12: 12 | E12: 10.167 | F12: 13 | G12: 37 | H12: 37.833
A13: Industrial and organisational psychology | B13: 1259 | C13: 1453 | D13: 1550 | E13: 1358.417 | F13: 1482 | G13: 1541.083 | H13: 1549.667
A14: Personality psychology | B14: 75 | C14: 47 | D14: 49 | E14: 47.667 | F14: 58 | G14: 94.25 | H14: 96.5
A15: Physiological psychology/psychobiology | B15: 14 | C15: 22 | D15: 18 | E15: 27.583 | F15: 35 | G15: 26 | H15: 17.5
A16: Psychology, general | B16: 2284 | C16: 3075 | D16: 3298 | E16: 3543.5 | F16: 3738 | G16: 5418.167 | H16: 4846.25
A17: Psychometrics and applied psychological assessment | B17: 70 | C17: 73 | D17: 66 | E17: 105.667 | F17: 99 | G17: 81.833 | H17: 64.917
A18: Research methodology for psychology | B18: 470 | C18: 464 | D18: 467 | E18: 478.583 | F18: 458 | G18: 491.167 | H18: 369.25
A19: Social psychology | B19: 69 | C19: 56 | D19: 100 | E19: 68.167 | F19: 65 | G19: 61.583 | H19: 92.5
A20: Other | B20: 66 | C20: 868 | D20: 81 | E20: 134 | F20: 154 | G20: 185.333 | H20: 146.833
A21: Total | B21: 5259 | C21: 6853 | D21: =SUM(D5:D20) -> 6654 | E21: 7154.667 | F21: 7302 | G21: 9420.917 | H21: 8450
A22: Source: DHET, www.dhet.gov.za, Table 2.13 for all institutions to 2nd order CESM (Graduates, 2010-22), accessed 15 July 2024

Sheet Public Magt&Services.2010-22
B2: Public management and services, 2010-22
B4: Field of study | C4: 2010 | D4: 2014 | E4: 2016 | F4: 2018 | G4: 2019 | H4: 2020 | I4: 2022
B5: Community organisation and advocacy | C5: 0 | D5: 61 | E5: 27 | F5: 38 | G5: 59 | H5: 60.5 | I5: 59.333
B6: Criminal justice and corrections | C6: 1634 | D6: 1737 | E6: 2752 | F6: 2993.917 | G6: 2773 | H6: 4486.083 | I6: 4798.5
B7: Human services | C7: 16 | D7: 11 | E7: 7 | F7: 8 | G7: 1 | H7: 10.25 | I7: 10
B8: Public administration | C8: 2788 | D8: 4179 | E8: 4943 | F8: 5827.25 | G8: 5855 | H8: 5469.667 | I8: 6181
B9: Public policy analysis | C9: 67 | D9: 112 | E9: 159 | F9: 187.75 | G9: 132 | H9: 179 | I9: 203.667
B10: Other | C10: 114 | D10: 267 | E10: 32 | F10: 4.833 | G10: 21 | H10: 30 | I10: 129.667
B11: Total | C11: 4619 | D11: 6367 | E11: =SUM(E5:E10) -> 7920 | F11: 9059.75 | G11: 8841 | H11: 10235.5 | I11: 11382.167
B12: Source: DHET, www.dhet.gov.za, Table 2.13 for all institutions to 2nd order CESM (Graduates, 2010-22), accessed 15 July 2024

Sheet Social sciences.10-22
A2: Social sciences and studies, 2010-22
A4: Field of study | B4: 2010 | C4: 2014 | D4: 2016 | E4: 2018 | F4: 2019 | G4: 2020 | H4: 2022
A5: Anthropology | B5: 575 | C5: 849 | D5: 1038 | E5: 1009.333 | F5: 1061 | G5: 999.417 | H5: 887.25
A6: Archaeology | B6: 60 | C6: 75 | D6: 76 | E6: 72.167 | F6: 75 | G6: 69.25 | H6: 64.5
A7: Development studies | B7: N/A | C7: N/A | D7: 424 | E7: 575.5 | F7: 560 | G7: 744.417 | H7: 790
A8: History | B8: 471 | C8: 494 | D8: 629 | E8: 691.333 | F8: 812 | G8: 996.167 | H8: 829.333
A9: Library science/librarianship | B9: 325 | C9: 1321 | D9: 1176 | E9: 1445.75 | F9: 1404 | G9: 2879.583 | H9: 1668.583
A10: Museology/museum studies | B10: 10 | C10: 22 | D10: 24 | E10: 22 | F10: 28 | G10: 30.5 | H10: 32
A11: Political science and government | B11: 1064 | C11: 1806 | D11: 1870 | E11: 2062 | F11: 2007 | G11: 2083.833 | H11: 2479.25
A12: Social work | B12: 1620 | C12: 2787 | D12: 3200 | E12: 2776 | F12: 2421 | G12: 2131.583 | H12: 1568.583
A13: Sociology | B13: 1771 | C13: 1849 | D13: 1836 | E13: 2779.833 | F13: 2554 | G13: 2732.417 | H13: 2614.5
A14: Other | B14: 378 | C14: 578 | D14: 339 | E14: 512.5 | F14: 555 | G14: 358.417 | H14: 523
A15: Total | B15: 6274 | C15: 9781 | D15: =SUM(D5:D14) -> 10612 | E15: 11946.417 | F15: 11478 | G15: 13025.583 | H15: 11457
A16: Source: DHET, www.dhet.gov.za, Table 2.13 for all institutions to 2nd order CESM (Graduates, 2010-22), accessed 15 July 2024
A17: N/A — Not available.

Sheet Visual&PerfArts.2010-22
B2: Visual and performing arts, 2010-22
B4: Field of study | C4: 2010 | D4: 2014 | E4: 2016 | F4: 2018 | G4: 2019 | H4: 2020 | I4: 2022
B5: Dance | C5: 70 | D5: 98 | E5: 93 | F5: 73 | G5: 67 | H5: 56.667 | I5: 49
B6: Design and applied arts | C6: 862 | D6: 861 | E6: 890 | F6: 908.833 | G6: 908 | H6: 774.75 | I6: 869
B7: Drama/theatre arts | C7: 468 | D7: 506 | E7: 518 | F7: 606.5 | G7: 620 | H7: 722.417 | I7: 731.75
B8: Film/video and photographic arts | C8: 341 | D8: 306 | E8: 319 | F8: 335.417 | G8: 371 | H8: 330.167 | I8: 315.583
B9: Fine and studio art | C9: 667 | D9: 686 | E9: 704 | F9: 710.333 | G9: 701 | H9: 643.833 | I9: 679.417
B10: Music | C10: 432 | D10: 507 | E10: 560 | F10: 584 | G10: 634 | H10: 665.5 | I10: 621.083
B11: Other | C11: 27 | D11: 134 | E11: 14 | F11: 15 | G11: 14 | H11: 17 | I11: 13
B12: Total | C12: 2867 | D12: 3098 | E12: =SUM(E5:E11) -> 3098 | F12: 3233.083 | G12: 3314 | H12: 3210.333 | I12: 3278.833
B13: Source: DHET, www.dhet.gov.za, Table 2.13 for all institutions to 2nd order CESM (Graduates, 2010-22), accessed 15 July 2024

Sheet Degrees

Sheet Firstuniawardsbyrace.91&22
A2: Undergraduate degrees/diplomas
A4: Undergraduate degreesa by race (actual numbers)bc, 1991 and 2022
A6: Field of study | B6: —Black— | D6: —Coloured— | F6: —Indian/Asian— | H6: —White— | J6: —Total— | L6: —Ratio of White to Black—
B7: 1991 | C7: 2022 | D7: 1991 | E7: 2022 | F7: 1991 | G7: 2022 | H7: 1991 | I7: 2022 | J7: 1991 | K7: 2022 | L7: 1991 | M7: 2022
A8: Agriculture and related sciences | B8: 60 | C8: 1664.333 | D8: 1 | E8: 25.083 | F8: 1 | G8: 29.25 | H8: 619 | I8: 443.416 | J8: 681 | K8: 2169.25 | L8: 10.3 to 1 | M8: 0.3 to 1
A9: Architecture and environmental design | B9: 8 | C9: 905.416 | D9: 7 | E9: 103.833 | F9: 15 | G9: 80.083 | H9: 643 | I9: 318 | J9: 673 | K9: 1433.333 | L9: 80.4 to 1 | M9: 0.4 to 1
A10: Business, commerce and management | B10: 303 | C10: 16624.918 | D10: 208 | E10: 1196.166 | F10: 314 | G10: 1292.083 | H10: 5952 | I10: 3468.5 | J10: 6777 | K10: 23005.167 | L10: 19.6 to 1 | M10: 0.2 to 1
A11: Communication, journalism and related studies | B11: 58 | C11: 1899 | D11: 2 | E11: 89.083 | F11: 6 | G11: 35.75 | H11: 346 | I11: 158.083 | J11: 412 | K11: 2199.916 | L11: 6.0 to 1 | M11: 0.1 to 1
A12: Computer and information sciences | B12: 14 | C12: 2304 | D12: 19 | E12: 228.75 | F12: 42 | G12: 389.083 | H12: 545 | I12: 688.583 | J12: 620 | K12: 3683.999 | L12: 38.9 to 1 | M12: 0.3 to 1
A13: Education | B13: 2386 | C13: 19477.249 | D13: 382 | E13: 1868.083 | F13: 259 | G13: 704 | H13: 1499 | I13: 2629.833 | J13: 4526 | K13: 24777.666 | L13: 0.6 to 1 | M13: 0.1 to 1
A14: Engineering | B14: 36 | C14: 4157.584 | D14: 18 | E14: 278.25 | F14: 85 | G14: 492.917 | H14: 1582 | I14: 1451.083 | J14: 1721 | K14: 6454.666 | L14: 43.9 to 1 | M14: 0.3 to 1
A15: Family ecology and consumer sciences | B15: 8 | C15: 233.5 | D15: 12 | E15: 5.5 | F15: 0 | G15: 9.25 | H15: 154 | I15: 128 | J15: 174 | K15: 377.25 | L15: 19.3 to 1 | M15: 0.5 to 1
A16: Health professions and clinical sciences | B16: 820 | C16: 5506.083 | D16: 148 | E16: 724.083 | F16: 294 | G16: 810.583 | H16: 2277 | I16: 1684.083 | J16: 3539 | K16: 8767.833 | L16: 2.8 to 1 | M16: 0.3 to 1
A17: Language, linguistics and literature | B17: 1471 | C17: 1524.834 | D17: 387 | E17: 334.416 | F17: 92 | G17: 60.916 | H17: 1414 | I17: 256 | J17: 3364 | K17: 2217.75 | L17: 1.0 to 1 | M17: 0.2 to 1
A18: Law | B18: 522 | C18: 5774.333 | D18: 126 | E18: 578.333 | F18: 259 | G18: 520.5 | H18: 2453 | I18: 1214.75 | J18: 3360 | K18: 8145.666 | L18: 4.7 to 1 | M18: 0.2 to 1
A19: Life and physical sciences | B19: 267 | C19: 4734 | D19: 130 | E19: 410 | F19: 171 | G19: 335 | H19: 1930 | I19: 1262 | J19: 2498 | K19: 6814 | L19: 7.2 to 1 | M19: 0.3 to 1
A20: Mathematics and statistics | B20: 93 | C20: 925 | D20: 46 | E20: 50.083 | F20: 58 | G20: 107.417 | H20: 586 | I20: 285.583 | J20: 783 | K20: 1381.084 | L20: 6.3 to 1 | M20: 0.3 to 1
A21: Philosophy, religion and theology | B21: 298 | C21: 444 | D21: 111 | E21: 106.5 | F21: 37 | G21: 22.583 | H21: 701 | I21: 108.167 | J21: 1147 | K21: 715.833 | L21: 2.4 to 1 | M21: 0.2 to 1
A22: Psychology | B22: 455 | C22: 3201.584 | D22: 195 | E22: 532.083 | F22: 194 | G22: 210.333 | H22: 2202 | I22: 900.5 | J22: 3046 | K22: 4967.417 | L22: 4.8 to 1 | M22: 0.3 to 1
A23: Public management and services | B23: 436 | C23: 3700.25 | D23: 102 | E23: 218.834 | F23: 69 | G23: 110.417 | H23: 688 | I23: 220.75 | J23: 1295 | K23: 4258.25 | L23: 1.6 to 1 | M23: 0.1 to 1
A24: Social sciences | B24: 1223 | C24: 5694.083 | D24: 402 | E24: 548.916 | F24: 390 | G24: 128.417 | H24: 3244 | I24: 448.917 | J24: 5259 | K24: 6957.583 | L24: 2.7 to 1 | M24: 0.1 to 1
A25: Visual and performing arts | B25: 41 | C25: 1004.667 | D25: 20 | E25: 140.333 | F25: 36 | G25: 51.667 | H25: 553 | I25: 446 | J25: 650 | K25: 1725 | L25: 13.5 to 1 | M25: 0.4 to 1
A26: Totalde | B26: 8 514e | C26: 79776 | D26: =SUM(D8:D25) -> 2316 | E26: 7438 | F26: 2322 | G26: 5390 | H26: 27388 | I26: 16112 | J26: 40525 | K26: 110053 | L26: 3.2 to 1 | M26: 0.2 to 1
A27: Source: DHET, www.dhet.gov.za, Table 2.13 for all Institutions to 2nd order CESM (Graduates — African, Coloured, Indian, White;1991 and 2022), accessed 15 July 2024
A28: a CRA calculations. Includes B-Tech Degree and Advanced Diploma. Figures should add up vertically but may not, owing to rounding.
A29: b In 2008, the HEMIS revised the CESM, reducing the number of subject matter categories from 22 to 20. These revisons were implemented in the 2010 HEMIS database. As a result, the 1991 figures have been adjusted to reflect the new subject categories. The figures for 1991 exclude the Universities of the Transkei, Venda and the North West.
A30: c Courses unspecified above are included in the total.
A31: d Students whose race is unspecified are included in the total.
A32: e The low output for Black people in 1991 is largely because of race restrictions.

Sheet Firstuniawards.race.vert%.91&2
A2: Undergraduate degreesa by race and subject (vertical proportions), 1991 and 2022
B4: —Black— | D4: —Coloured— | F4: —Indian/Asian— | H4: —White—
A5: Field of study | B5: 1991d | C5: 2022 | D5: 1991d | E5: 2022 | F5: 1991d | G5: 2022 | H5: 1991d | I5: 2022
A6: Agriculture and related sciences | B6: 0.00704721635 | C6: 0.02086257772 | D6: 0.0004260758415 | E6: 0.003372277494 | F6: 0.0004286326618 | G6: 0.02752085402 | H6: 0.02241210761 | I6: 0.01971095745
A7: Architecture and environmental design | B7: 0.0009396288466 | C7: 0.01134947854 | D7: 0.00298253089 | E7: 0.01395980102 | F7: 0.006429489927 | G7: 0.01973684211 | H7: 0.02328107462 | I7: 0.01302402479
A8: Business, commerce and management | B8: 0.03558844257 | C8: 0.2083949809 | D8: 0.08862377503 | E8: 0.1608182307 | F8: 0.1345906558 | G8: 0.2152743297 | H8: 0.2155038198 | I8: 0.2090371639
A9: Communication, journalism and related studies | B9: 0.006812309138 | C9: 0.02380415162 | D9: 0.000852151683 | E9: 0.01197674106 | F9: 0.002571795971 | G9: 0.009811506951 | H9: 0.01252760781 | I9: 0.01998960501
A10: Computer and information sciences | B10: 0.001644350482 | C10: 0.02888086643 | D10: 0.008095440988 | E10: 0.03075423501 | F10: 0.0180025718 | G10: 0.04273727656 | H10: 0.01973279264 | I10: 0.03347477125
A11: Education | B11: 0.2802443035 | C11: 0.2441492303 | D11: 0.1627609715 | E11: 0.2511539392 | F11: 0.1110158594 | G11: 0.1632220084 | H11: 0.05427423151 | I11: 0.2251430311
A12: Engineering | B12: 0.00422832981 | C12: 0.05211572403 | D12: 0.007669365147 | E12: 0.0374092498 | F12: 0.03643377625 | G12: 0.09006225174 | H12: 0.0572794091 | I12: 0.05865052293
A13: Family ecology and consumer sciences | B13: 0.0009396288466 | C13: 0.002926945447 | D13: 0.005112910098 | E13: 0.0007394460877 | F13: 0 | G13: 0.007944389275 | H13: 0.005575871683 | I13: 0.003427893833
A14: Health professions and clinical sciences | B14: 0.09631195678 | C14: 0.06901929152 | D14: 0.06305922454 | E14: 0.097349153 | F14: 0.1260180026 | G14: 0.1045235228 | H14: 0.08244324559 | I14: 0.07966918666
A15: Language, linguistics and literature | B15: 0.1727742542 | C15: 0.01911394404 | D15: 0.1648913507 | E15: 0.04496047325 | F15: 0.03943420489 | G15: 0.01588877855 | H15: 0.05119663999 | I15: 0.0201516542
A16: Law | B16: 0.06131078224 | C16: 0.07238183163 | D16: 0.05368555603 | E16: 0.07775383168 | F16: 0.1110158594 | G16: 0.07539411619 | H16: 0.08881567037 | I16: 0.07401584691
A17: Life and physical sciences | B17: 0.03136011276 | C17: 0.05934115523 | D17: 0.05538985939 | E17: 0.05512234472 | F17: 0.07329618517 | G17: 0.07832671301 | H17: 0.06987943083 | I17: 0.06191562247
A18: Mathematics and statistics | B18: 0.01092318534 | C18: 0.0115949659 | D18: 0.01959948871 | E18: 0.006733396074 | F18: 0.02486069438 | G18: 0.01772486346 | H18: 0.02121727796 | I18: 0.01254926263
A19: Philosophy, religion and theology | B19: 0.03500117454 | C19: 0.005565583634 | D19: 0.04729441841 | E19: 0.01431836515 | F19: 0.01585940849 | G19: 0.006713443396 | H19: 0.02538107824 | I19: 0.00650443877
A20: Psychology | B20: 0.05344139065 | C20: 0.04013217008 | D20: 0.08308478909 | E20: 0.0715357623 | F20: 0.08315473639 | G20: 0.05589001986 | H20: 0.07972772367 | I20: 0.04513658873
A21: Public management and services | B21: 0.05120977214 | C21: 0.04638299739 | D21: 0.04345973583 | E21: 0.02942108094 | F21: 0.02957565366 | G21: 0.01370096822 | H21: 0.02491038778 | I21: 0.03869272078
A22: Social sciences | B22: 0.1436457599 | C22: 0.07137588999 | D22: 0.1712824883 | E22: 0.07379887066 | F22: 0.1671667381 | G22: 0.02786227656 | H22: 0.1174553749 | I22: 0.06322029386
A23: Visual and performing arts | B23: 0.004815597839 | C23: 0.01259359958 | D23: 0.00852151683 | E23: 0.01886703415 | F23: 0.01543077583 | G23: 0.02768123138 | H23: 0.02002244831 | I23: 0.01567426604
A24: Totalbc | B24: 1 | C24: 1 | D24: 1 | E24: 1 | F24: 1 | G24: 1 | H24: 1 | I24: 1
A25: Source: DHET, www.dhet.gov.za, Table 2.13 for all Institutions to 2nd order CESM (Graduates — African, Coloured, Indian, White; 1991 and 2022), accessed 15 July 2024
A26: a CRA calculations. Includes B-Tech Degree and Advanced Diploma.. For example, in 2022, black graduates who obtained first degrees/diplomas in agriculture and related sciences accounted for 2.1% of all Black graduates in that year. Figures should add up vertically but may not, owing to rounding.
A27: b Courses unspecified above are included in the total.
A28: c Students whose race is unspecified are included in the total.
A29: d The figures for 1991 exclude the universities of the Transkei, Venda and the North West.

Sheet Firstuniawardshor%91&22
A2: Undergraduate degreesa by race and subject (horizontal proportions), 1991 and 2022
B4: —Black— | D4: —Coloured— | F4: —Indian/Asian— | H4: —White—
A5: Field of study | B5: 1991d | C5: 2022 | D5: 1991d | E5: 2022 | F5: 1991d | G5: 2022 | H5: 1991d | I5: 2022
A6: Agriculture and related sciences | B6: 0.08810572687 | C6: 0.7672389075 | D6: 0.001468428781 | E6: 0.0115629826 | F6: 0.001468428781 | G6: 0.01348392301 | H6: 0.9089574156 | I6: 0.2044098191
A7: Architecture and environmental design | B7: 0.01188707281 | C7: 0.6316857283 | D7: 0.01040118871 | E7: 0.07244164475 | F7: 0.02228826152 | G7: 0.05587187346 | H7: 0.955423477 | I7: 0.2218605167
A8: Business, commerce and management | B8: 0.04471004869 | C8: 0.7226601746 | D8: 0.03069204663 | E8: 0.05199553648 | F8: 0.04633318578 | G8: 0.05616490417 | H8: 0.8782647189 | I8: 0.1507704769
A9: Communication, journalism and related studies | B9: 0.140776699 | C9: 0.8632147773 | D9: 0.004854368932 | E9: 0.04049381885 | F9: 0.0145631068 | G9: 0.01625062048 | H9: 0.8398058252 | I9: 0.07185865278
A10: Computer and information sciences | B10: 0.02258064516 | C10: 0.6254073359 | D10: 0.03064516129 | E10: 0.06209285073 | F10: 0.06774193548 | G10: 0.1056143066 | H10: 0.8790322581 | I10: 0.1869118314
A11: Education | B11: 0.5271763146 | C11: 0.7860808601 | D11: 0.0844012373 | E11: 0.07539382442 | F11: 0.05722492267 | G11: 0.02841268423 | H11: 0.3311975254 | I11: 0.1061372367
A12: Engineering | B12: 0.02091807089 | C12: 0.6441207028 | D12: 0.01045903544 | E12: 0.04310834984 | F12: 0.0493898896 | G12: 0.07636599632 | H12: 0.9192330041 | I12: 0.2248114775
A13: Family ecology and consumer sciences | B13: 0.04597701149 | C13: 0.618952949 | D13: 0.06896551724 | E13: 0.01457919152 | F13: 0 | G13: 0.02451954937 | H13: 0.8850574713 | I13: 0.339297548
A14: Health professions and clinical sciences | B14: 0.2317038712 | C14: 0.6279867557 | D14: 0.04181972309 | E14: 0.08258403188 | F14: 0.08307431478 | G14: 0.09244963949 | H14: 0.643402091 | I14: 0.1920751684
A15: Language, linguistics and literature | B15: 0.4372770511 | C15: 0.6875590125 | D15: 0.1150416171 | E15: 0.1507906662 | F15: 0.02734839477 | G15: 0.0274674783 | H15: 0.420332937 | I15: 0.1154323075
A16: Law | B16: 0.1553571429 | C16: 0.7088840863 | D16: 0.0375 | E16: 0.07099886001 | F16: 0.07708333333 | G16: 0.06389901084 | H16: 0.7300595238 | I16: 0.1491283831
A17: Life and physical sciences | B17: 0.1068855084 | C17: 0.6947461109 | D17: 0.05204163331 | E17: 0.06017023775 | F17: 0.06845476381 | G17: 0.04916348694 | H17: 0.7726180945 | I17: 0.1852069269
A18: Mathematics and statistics | B18: 0.1187739464 | C18: 0.6697637508 | D18: 0.05874840358 | E18: 0.03626354371 | F18: 0.07407407407 | G18: 0.07777731116 | H18: 0.748403576 | I18: 0.2067817743
A19: Philosophy, religion and theology | B19: 0.2598081953 | C19: 0.6202564006 | D19: 0.09677419355 | E19: 0.1487777177 | F19: 0.03225806452 | G19: 0.03154786102 | H19: 0.6111595466 | I19: 0.1511064732
A20: Psychology | B20: 0.1493762311 | C20: 0.6445168586 | D20: 0.06401838477 | E20: 0.1071146232 | F20: 0.06369008536 | G20: 0.04234252933 | H20: 0.7229152988 | I20: 0.181281338
A21: Public management and services | B21: 0.3366795367 | C21: 0.8689602536 | D21: 0.07876447876 | E21: 0.05139059473 | F21: 0.05328185328 | G21: 0.02593013562 | H21: 0.5312741313 | I21: 0.05184054482
A22: Social sciences | B22: 0.2325537174 | C22: 0.8183995793 | D22: 0.07644038791 | E22: 0.07889463913 | F22: 0.07415858528 | G22: 0.018457128 | H22: 0.6168473094 | I22: 0.06452197552
A23: Visual and performing arts | B23: 0.06307692308 | C23: 0.5824156522 | D23: 0.03076923077 | E23: 0.08135246377 | F23: 0.05538461538 | G23: 0.02995188406 | H23: 0.8507692308 | I23: 0.2585507246
A24: Totalbc | B24: 0.2086100017 | C24: 0.7248870999 | D24: 0.05750618675 | E24: 0.06758561784 | F24: 0.0571631588 | G24: 0.04897640228 | H24: 0.6767206527 | I24: 0.146402188
A25: Source: DHET, www.dhet.gov.za, Table 2.13 for all Institutions to 2nd order CESM (Graduates — African, Coloured, Indian, White; 1991 and 2022), accessed 15 July 2024
A26: a CRA calculations. Includes B-Tech Degree and Advanced Diploma. Figures should add up horizontally to 100% (for each year) but may not, owing to rounding.
A27: b Courses unspecified above are included in the total.
A28: c Students whose race is unspecified are included in the total.
A29: d The figures for 1991 exclude the universities of the Transkei, Venda and the North West.

Sheet GradsinSET.94-22
B3: Graduates in Science, Engineering and Technology (SET), 1994-2022
B5: Year | C5: Number | D5: Proportion of total graduatesa | Z5: Proportion of total graduates
B6: 1994 | C6: 20 610a | D6: 0.278 | Y6: 1994 | Z6: 0.278
B7: 1995 | C7: 20 421a | D7: 0.25 | Y7: 1995 | Z7: 0.25
B8: 1996 | C8: 21 726a | D8: 0.252 | Y8: 1996 | Z8: 0.252
B9: 1997 | C9: 22 938a | D9: 0.26 | Y9: 1997 | Z9: 0.26
B10: 1998 | C10: 22 523a | D10: 0.26 | Y10: 1998 | Z10: 0.26
B11: 1999 | C11: 23 310a | D11: 0.252 | Y11: 1999 | Z11: 0.252
B12: 2000 | C12: 24244 | D12: 0.262 | Y12: 2000 | Z12: 0.262
B13: 2001 | C13: 25087 | D13: 0.251 | Y13: 2001 | Z13: 0.251
B14: 2002 | C14: 27177 | D14: 0.268 | Y14: 2002 | Z14: 0.268
B15: 2003 | C15: 29806 | D15: 0.28 | Y15: 2003 | Z15: 0.28
B16: 2004 | C16: 31490 | D16: 0.268 | Y16: 2004 | Z16: 0.268
B17: 2005 | C17: 33506 | D17: 0.279 | Y17: 2005 | Z17: 0.279
B18: 2006 | C18: 35542 | D18: 0.285 | Y18: 2006 | Z18: 0.285
B19: 2007 | C19: 36429 | D19: 0.288 | Y19: 2007 | Z19: 0.288
B20: 2008 | C20: 39307 | D20: 0.291 | Y20: 2008 | Z20: 0.291
B21: 2009 | C21: 41511 | D21: 0.283 | Y21: 2009 | Z21: 0.283
B22: 2010 | C22: 42760 | D22: 0.322 | Y22: 2010 | Z22: 0.322
B23: 2011 | C23: 46099 | D23: 0.31 | Y23: 2011 | Z23: 0.31
B24: 2012 | C24: 48849 | D24: 0.294 | Y24: 2012 | Z24: 0.294
B25: 2013 | C25: 53176 | D25: 0.294 | Y25: 2013 | Z25: 0.294
B26: 2014 | C26: 55574 | D26: 0.3 | Y26: 2014 | Z26: 0.3
B27: 2015 | C27: 58090 | D27: 0.303 | Y27: 2015 | Z27: 0.303
B28: 2016 | C28: 59125.167 | D28: 0.291 | Y28: 2016 | Z28: 0.291
B29: 2017 | C29: 61581 | D29: 0.292 | Y29: 2017 | Z29: 0.292
B30: 2018 | C30: 65210.667 | D30: 0.287 | Y30: 2018 | Z30: 0.287
B31: 2019 | C31: 64682.583 | D31: 0.291 | Y31: 2019 | Z31: 0.291
B32: 2020 | C32: 64721.333 | D32: 0.272 | Y32: 2020 | Z32: 0.272
B33: 2021 | C33: 67422.5 | D33: 0.2890481315 | Y33: 2021 | Z33: 0.2890481315
B34: 2022 | C34: 65999.667 | D34: 0.292 | Y34: 2022
B35: Source: The Presidency, Development Indicators, 2010, p49; DHET, www.dhet.gov.za, Table 2.13 for all institutions to 2nd order CESM (Graduates,1994-2022) accessed 15 July 2024
B36: a CRA calculations.

Sheet PRIVATE HIGHER EDUCATION

Sheet Stud.enrol.in PEIs.race.11-22
A2: Private Higher Education
A4: Private Higher Education Institutions
A6: Students enrolled in Private Higher Education Institutions by race, 2011-22
A8: Year | B8: —Black— | D8: —Coloured— | F8: —Indian/Asian— | H8: —White— | J8: —Totalb—
B9: Number | C9: Proportiona | D9: Number | E9: Proportiona | F9: Number | G9: Proportiona | H9: Number | I9: Proportiona | J9: Number
A10: 2011 | B10: 56988 | C10: =(B10/J10) -> 0.553088241 | D10: 7526 | E10: =(D10/J10) -> 0.07304243177 | F10: 5913 | G10: =(F10/J10) -> 0.05738770915 | H10: 23311 | I10: =(H10/J10) -> 0.2262413137 | J10: 103036
A11: 2012 | B11: 56813 | C11: 0.582828946 | D11: 6876 | E11: 0.07053899341 | F11: 5222 | G11: 0.05357106219 | H11: 18500 | I11: 0.1897864133 | J11: 97478
A12: 2013 | B12: 64933 | C12: 0.5413745091 | D12: 8183 | E12: 0.06822521073 | F12: 6649 | G12: 0.05543558916 | H12: 26664 | I12: 0.2223093021 | J12: 119941
A13: 2014 | B13: 80983 | C13: 0.5680745246 | D13: 12716 | E13: 0.08919940796 | F13: 10396 | G13: 0.07292521588 | H13: 22191 | I13: 0.1556640502 | J13: 142557
A14: 2015 | B14: 83997 | C14: 0.5705930304 | D14: 11127 | E14: 0.0755858977 | F14: 9456 | G14: 0.06423476666 | H14: 25740 | I14: 0.1748522519 | J14: 147210
A15: 2016 | B15: 99972 | C15: 0.5971757622 | D15: 11223 | E15: 0.06703980694 | F15: 10494 | G15: 0.06268517634 | H15: 27212 | I15: 0.1625489821 | J15: 167408
A16: 2017 | B16: 112124 | C16: 0.6059250132 | D16: 13491 | E16: 0.0729061963 | F16: 11955 | G16: 0.06460555754 | H16: 29780 | I16: 0.1609329572 | J16: 185046
A17: 2018 | B17: 122342 | C17: 0.6182073593 | D17: 14057 | E17: 0.0710315415 | F17: 12756 | G17: 0.06445744778 | H17: 31802 | I17: 0.1606989459 | J17: 197898
A18: 2019 | B18: 128519 | C18: 0.6149881806 | D18: 16260 | E18: 0.0778072333 | F18: 14594 | G18: 0.06983510226 | H18: 32131 | I18: 0.1537530266 | J18: 208978
A19: 2020 | B19: 133506 | C19: 0.6095301578 | D19: 18075 | E19: 0.0825225653 | F19: 15898 | G19: 0.07258333295 | H19: 34848 | I19: 0.1591007666 | J19: 219031
A20: 2021 | B20: 142518 | C20: 0.6118884572 | D20: 20175 | E20: 0.08661958225 | F20: 16628 | G20: 0.07139085074 | H20: 37511 | I20: 0.1610501685 | J20: 232915
A21: 2022 | B21: 159948 | C21: 0.662 | D21: 24053 | E21: 0.1 | F21: 17717 | G21: 0.073 | H21: 39949 | I21: 0.165 | J21: 258215
A22: 2011-22 | B22: =(B21-B10)/B10 -> 1.806696147 | C22: =(C21-C10)/C10 -> 0.1969157016 | D22: 2.195987244 | E22: 0.3690672336 | F22: 1.996279384 | G22: 0.2720493827 | H22: 0.7137402943 | I22: -0.2706902321 | J22: 1.506065841
A23: Source: DHET, Statistics on Post-School Education and Training in South Africa: 2022, July 2024, Table 4.12, p34
A24: a CRA calculations. For example, 55.3% of all students enrolled in Private Higher Education Institutions in 2011 were black.
A25: b Includes foreign and Other/Unspecified students.

Sheet Stud.enrol.inPHEIs.sex.11-22
B2: Students enrolled in Private Higher Education Institutions by sex, 2011-22
B4: Year | C4: —Male— | E4: —Female— | G4: —Totalb—
C5: Number | D5: Proportiona | E5: Number | F5: Proportiona | G5: Number
B6: 2011 | C6: 48876 | D6: =(C6/G6) -> 0.4743584766 | E6: 54160 | F6: =(E6/G6) -> 0.5256415234 | G6: 103036
B7: 2012 | C7: 43704 | D7: 0.4483473194 | E7: 53774 | F7: 0.5516526806 | G7: 97478
B8: 2013 | C8: 55606 | D8: 0.4636112755 | E8: 64335 | F8: 0.5363887245 | G8: 119941
B9: 2014 | C9: 65431 | D9: 0.4589813198 | E9: 73776 | F9: 0.5175193081 | G9: 142557
B10: 2015 | C10: 66516 | D10: 0.4518443041 | E10: 80532 | F10: 0.5470552272 | G10: 147210
B11: 2016 | C11: 73801 | D11: 0.4408451209 | E11: 91493 | F11: 0.5465270477 | G11: 167408
B12: 2017 | C12: 77754 | D12: 0.4201874129 | E12: 105983 | F12: 0.5727386704 | G12: 185046
B13: 2018 | C13: 82347 | D13: 0.4161082982 | E13: 115106 | F13: 0.5816430687 | G13: 197898
B14: 2019 | C14: 86037 | D14: 0.4117036243 | E14: 122021 | F14: 0.5838939984 | G14: 208978
B15: 2020 | C15: 86721 | D15: 0.3959302564 | E15: 131149 | F15: 0.598769124 | G15: 219031
B16: 2021 | C16: 89485 | D16: 0.3841959513 | E16: 141751 | F16: 0.6085954103 | G16: 232915
B17: 2022 | C17: 97573 | D17: 0.378 | E17: 160108 | F17: 0.62 | G17: 258215
B18: 2011-21 | C18: =(C17-C6)/C6 -> 0.9963376708 | D18: =(D17-D6)/D6 -> -0.203134299 | E18: 1.95620384 | F18: 0.1795110783 | G18: 1.506065841
B19: Source: DHET, Statistics on Post-School Education and Training in South Africa: 2022, July 2024, Table 4.9, p31
B20: a CRA calculations. For example, 47.4% of all students enrolled in Private Higher Education Institutions in 2011 were male.
B21: b Includes Other/Unspecified students.

Sheet WORK AND EDUCATION

Sheet Education & Employment#.8.24
A2: WORK AND EDUCATION
A4: Education and Employment/Unemployment
A6: Employment and unemployment by highest level of education (actual numbers), 2008 and 2024
B8: — Q2 2008b—
A9: Level of educationa | B9: Employed | C9: Unemployed | D9: Total economically active
A10: No schooling | B10: 582000 | C10: 112000 | D10: 694000
A11: Less than primary school completed | B11: 1465000 | C11: 399000 | D11: 1864000
A12: Completed primary school | B12: 743000 | C12: 235000 | D12: 978000
A13: Less than secondary school completed | B13: 4521000 | C13: 1879000 | D13: 6400000
A14: Secondary completed | B14: 3928000 | C14: 1261000 | D14: 5189000
A15: Tertiary | B15: 2313000 | C15: 192000 | D15: 2505000
A16: Other | B16: 177000 | C16: 37000 | D16: 214000
A17: Total | B17: 13729000 | C17: 4114000 | D17: 17843000
B19: —Q2 2024b—
A20: Level of educationa | B20: Employed | C20: Unemployed | D20: Total economically active
A21: No schooling | B21: 180000 | C21: 56000 | D21: =SUM(B21:C21) -> 236000
A22: Less than primary school completed | B22: 643000 | C22: 382000 | D22: 1025000
A23: Completed primary school | B23: 470000 | C23: 253000 | D23: 723000
A24: Less than secondary school completed | B24: 5100000 | C24: 3441000 | D24: 8541000
A25: Secondary completed | B25: 6066000 | C25: 3387000 | D25: 9453000
A26: Tertiary | B26: 3954000 | C26: 817000 | D26: 4771000
A27: Other | B27: 239000 | C27: 49000 | D27: 288000
A28: Total | B28: 16652000 | C28: 8384000 | D28: 25036000
A29: Source: Stats SA, Quarterly Labour Force Survey, Quarter 1 and Quarter 2, 2008, Statistical release P0211,28 August 2008, Table 6, p16; Quarterly Labour Force Survey Quarter 2, 2024, Statistical release P0211, 13 August 2024, Table 6, pp76-77
A30: a Highest level of education of the employed and unemployed.
A31: b Totals may not add up vertically, owing to rounding.

Sheet Education&Employment%.8.24
A2: Employment and unemployment by highest level of education (proportionsa), 2008 and 2024
B4: —Q2 2008b—
A5: Level of educationa | B5: Employed | C5: Unemployed | D5: Total economically active
A6: No schooling | B6: 0.839 | C6: 0.161 | D6: 1
A7: Less than primary school completed | B7: 0.786 | C7: 0.214 | D7: 1
A8: Completed primary school | B8: 0.76 | C8: 0.24 | D8: 1
A9: Less than secondary school completed | B9: 0.706 | C9: 0.294 | D9: 1
A10: Secondary completed | B10: 0.757 | C10: 0.243 | D10: 1
A11: Tertiary | B11: 0.923 | C11: 0.077 | D11: 1
A12: Other | B12: 0.827 | C12: 0.173 | D12: 1
A13: Total | B13: 0.769 | C13: 0.231 | D13: 1
B15: —Q2 2024b—
A16: Level of educationa | B16: Employed | C16: Unemployed | D16: Total econonomically active
A17: No schooling | B17: 0.8386167147 | C17: 0.1613832853 | D17: 1
A18: Less than primary school completed | B18: 0.785944206 | C18: 0.214055794 | D18: 1
A19: Completed primary school | B19: 0.7597137014 | C19: 0.2402862986 | D19: 1
A20: Less than secondary school completed | B20: 0.70640625 | C20: 0.29359375 | D20: 1
A21: Secondary completed | B21: 0.7569859318 | C21: 0.2430140682 | D21: 1
A22: Tertiary | B22: 0.9233532934 | C22: 0.07664670659 | D22: 1
A23: Other | B23: 0.8271028037 | C23: 0.1728971963 | D23: 1
A24: Total | B24: 0.7694333912 | C24: 0.2305666088 | D24: 1
A25: a CRA calculations. In 2024, for example, 83.9% of all economically active people with no schooling were employed and 16.1% of such people were unemployed.

Sheet Empl.byhighlevelofeducation
B2: Education and labour absorption
B5: Employment by highest level of education, 2024
B7: Level of education | C7: Number employed | D7: Proportiona of total | E7: Absorption ratea by highest level of education | W7: Empl | X7: Unempl | Y7: NEA | Z7: Total | AA7: LAR
B8: No schooling | C8: 180000 | D8: =(C8/Total956235623) -> 0.01080951237 | E8: 0.2496532594 | W8: 180000 | X8: 56000 | Y8: 485000 | Z8: =SUM(W8:Y8) -> 721000 | AA8: =(W8/Z8) -> 0.2496532594
B9: Less than primary completed | C9: 643000 | D9: 0.0386139803 | E9: 0.2913457182 | W9: 643000 | X9: 382000 | Y9: 1182000 | Z9: =SUM(W9:Y9) -> 2207000 | AA9: =(W9/Z9) -> 0.2913457182
B10: Primary completed | C10: 470000 | D10: 0.02822483786 | E10: 0.3077930583 | W10: 470000 | X10: 253000 | Y10: 804000 | Z10: 1527000 | AA10: 0.3077930583
B11: Secondary not completed | C11: 5100000 | D11: 0.3062695172 | E11: 0.3009027081 | W11: 5100000 | X11: 3441000 | Y11: 8408000 | Z11: 16949000 | AA11: 0.3009027081
B12: Secondary completed | C12: 6066000 | D12: 0.3642805669 | E12: 0.4384848923 | W12: 6066000 | X12: 3387000 | Y12: 4381000 | Z12: 13834000 | AA12: 0.4384848923
B13: Tertiary | C13: 3954000 | D13: 0.2374489551 | E13: 0.7146213627 | W13: 3954000 | X13: 817000 | Y13: 762000 | Z13: 5533000 | AA13: 0.7146213627
B14: Other | C14: 239000 | D14: 0.01435263031 | E14: 0.4552380952 | W14: 239000 | X14: 49000 | Y14: 237000 | Z14: 525000 | AA14: 0.4552380952
B15: Total | C15: 16652000 | D15: 1 | E15: 0.4032351802 | W15: 16652000 | X15: 8384000 | Y15: 16260000 | Z15: 41296000 | AA15: 0.4032351802
B16: Source: Stats SA, Quarterly Labour Force Survey Quarter 2: 2024, Statistical release P0211, 13 August 2024, Table 6, pp76-77
B17: a CRA calculations. The proportion column refers to the proportion of the total number of people employed who are in each level of education category. The absorption/employment rate refers to the proportion of people in each category who are employed. For example, 1.1% of all employed people have no schooling and 25.0% of all working-age people with no schooling are employed.

Sheet NEEt rate.15-34.sex.18-24
C2: NEETab rate by sex, 2018-24
C4: Age group | D4: Male | E4: Female | F4: Total
C5: —2018—
C6: 15-24 | D6: 0.289 | E6: 0.344 | F6: 0.316
C7: 15-34 | D7: 0.35 | E7: 0.436 | F7: 0.393
C8: —2022—
C9: 15-24 | D9: 0.343 | E9: 0.371 | F9: 0.357
C10: 15-34 | D10: 0.426 | E10: 0.474 | F10: 0.45
C11: —2023—
C12: 15-24 | D12: 0.324 | E12: 0.36 | F12: 0.342
C13: 15-34 | D13: 0.399 | E13: 0.47 | F13: 0.434
C14: —2024—
C15: 15-24 | D15: 0.339 | E15: 0.366 | F15: 0.352
C16: 15-34 | D16: 0.417 | E16: 0.467 | F16: 0.442
B18: Source: Stats SA, Quarterly Labour Force Survey Quarter 2, 2019, Statistical release P0211, 30 July 2019, Figures 9a and 9b, p8; Quarterly Labour Force Survey Quarter 2, 2023, Statistical release P0211, 15 August 2023, Figures 9a and 9b, p9; Quarterly Labour Force Survey Quarter 2: 2024, Statistical release P0211, 13 August 2024, Figures 9a and 9b, p9
B19: a Not in employment, education or training.
B20: b Stats SA determines the NEET rate by adding the number of unemployed youth to the number of youth not in the labour force and then subtracting the number of unemployed youth and youth not in the labour force who are in education or training. This figure is then divided by the total number of youth.

Sheet Macros
A2: A | B2: HEAD 1 | C2: HELVETICA NEUE 21 pt
A4: B | B4: HEAD 2 | C4: Helvetica Neue 18 pt
A6: C | B6: HEAD 3 | C6: Helvetica Neue 16 pt
A8: D | B8: HEAD 4 | C8: Helvetica Neue 14 pt
A10: E | B10: HEAD 5 | C10: Lucia 12 pt
A12: F | B12: HEAD 6 | C12: Helvetica Neue 13 pt
A14: G | B14: HEAD 7 | C14: Helvetica Neue 12 pt
A16: H | B16: HEAD 8 | C16: Helvetica Neue 11 pt | D16: Source, Footnote, Text
